Department Family,Entity,Date,Expense Type,Expense area,Supplier,Transaction Number,Amount,VAT registration Number
Department of Health,Salisbury NHS Foundation Trust,05-Apr-13,HEALTHCARE - NHS TRUSTS,Surgery,GREAT WESTERN HOSPITALS NHS FT,16937902,2786,
Department of Health,Salisbury NHS Foundation Trust,05-Apr-13,RENTS,Directorate of Operations,GREAT WESTERN HOSPITALS NHS FT,16937902,4320,
Department of Health,Salisbury NHS Foundation Trust,05-Apr-13,HEALTHCARE - NHS TRUSTS,Surgery,GREAT WESTERN HOSPITALS NHS FT,16937902,899,
Department of Health,Salisbury NHS Foundation Trust,05-Apr-13,HEALTHCARE - NHS TRUSTS,Surgery,GREAT WESTERN HOSPITALS NHS FT,16937902,720,
Department of Health,Salisbury NHS Foundation Trust,05-Apr-13,HEALTHCARE - NHS TRUSTS,Directorate of Operations,GREAT WESTERN HOSPITALS NHS FT,16937902,264,
Department of Health,Salisbury NHS Foundation Trust,05-Apr-13,HEALTHCARE - NHS TRUSTS,Critical care,GREAT WESTERN HOSPITALS NHS FT,16937902,422,
Department of Health,Salisbury NHS Foundation Trust,05-Apr-13,HEALTHCARE - NHS TRUSTS,Surgery,GREAT WESTERN HOSPITALS NHS FT,16937902,76,
Department of Health,Salisbury NHS Foundation Trust,05-Apr-13,HEALTHCARE - NHS TRUSTS,Surgery,GREAT WESTERN HOSPITALS NHS FT,16937902,1044,
Department of Health,Salisbury NHS Foundation Trust,05-Apr-13,HEALTHCARE - NHS TRUSTS,Surgery,GREAT WESTERN HOSPITALS NHS FT,16937902,392,
Department of Health,Salisbury NHS Foundation Trust,05-Apr-13,HEALTHCARE - NHS TRUSTS,Directorate of Operations,GREAT WESTERN HOSPITALS NHS FT,16937902,2711,
Department of Health,Salisbury NHS Foundation Trust,05-Apr-13,HEALTHCARE - NHS TRUSTS,Directorate of Operations,GREAT WESTERN HOSPITALS NHS FT,16937902,591,
Department of Health,Salisbury NHS Foundation Trust,05-Apr-13,HEALTHCARE - NHS TRUSTS,Directorate of Operations,GREAT WESTERN HOSPITALS NHS FT,16937902,11256,
Department of Health,Salisbury NHS Foundation Trust,05-Apr-13,HEALTHCARE - NHS TRUSTS,Directorate of Operations,GREAT WESTERN HOSPITALS NHS FT,16937902,9271,
Department of Health,Salisbury NHS Foundation Trust,05-Apr-13,HEALTHCARE - NHS TRUSTS,Directorate of Operations,GREAT WESTERN HOSPITALS NHS FT,16937902,819,
Department of Health,Salisbury NHS Foundation Trust,05-Apr-13,HEALTHCARE - NHS TRUSTS,Clinical Support and Family Services,GREAT WESTERN HOSPITALS NHS FT,16937902,988,
Department of Health,Salisbury NHS Foundation Trust,05-Apr-13,HEALTHCARE - NHS TRUSTS,Clinical Support and Family Services,GREAT WESTERN HOSPITALS NHS FT,16938109,33110.33,
Department of Health,Salisbury NHS Foundation Trust,05-Apr-13,HEALTHCARE - NHS TRUSTS,Surgery,GREAT WESTERN HOSPITALS NHS FT,16937791,36559,
Department of Health,Salisbury NHS Foundation Trust,05-Apr-13,HEALTHCARE - NHS TRUSTS,Clinical Support and Family Services,UNIVERSITY HOSPITAL SOUTHAMPTON NHS FOUNDATION TRUST,7219592,27952,
Department of Health,Salisbury NHS Foundation Trust,05-Apr-13,HEALTHCARE - NHS TRUSTS,Medicine,UNIVERSITY HOSPITAL SOUTHAMPTON NHS FOUNDATION TRUST,7213968,53760,
Department of Health,Salisbury NHS Foundation Trust,05-Apr-13,HEALTHCARE - NHS TRUSTS,Medicine,UNIVERSITY HOSPITAL SOUTHAMPTON NHS FOUNDATION TRUST,7221228,34977.72,
Department of Health,Salisbury NHS Foundation Trust,05-Apr-13,DRUGS,Clinical Support and Family Services,ROCHE PRODUCTS LTD,1321566891,21566.77,
Department of Health,Salisbury NHS Foundation Trust,05-Apr-13,DRUGS,Clinical Support and Family Services,ROCHE PRODUCTS LTD,1321566891,4313.35,
Department of Health,Salisbury NHS Foundation Trust,05-Apr-13,DRUGS,Clinical Support and Family Services,ROCHE PRODUCTS LTD,1321569754,28640.86,
Department of Health,Salisbury NHS Foundation Trust,05-Apr-13,DRUGS,Clinical Support and Family Services,ROCHE PRODUCTS LTD,1321569754,5728.17,
Department of Health,Salisbury NHS Foundation Trust,19-Apr-13,HARD/SOFTWARE-COMPUTER SOFTWARE  SPECIALISED BESPOKE,Clinical Support and Family Services,LAB DATA MANAGEMENT LTD T/A STARLIMS,1004,23923,
Department of Health,Salisbury NHS Foundation Trust,05-Apr-13,HEALTHCARE - NHS TRUSTS,Directorate of Finance and Procurement,LEEDS & YORK PARTNERSHIP NHS FT,973172,35000,
Department of Health,Salisbury NHS Foundation Trust,19-Apr-13,DI & RADIO - RADIOLOGY EQUIPMENT,Clinical Support and Family Services,CSC COMPUTER SCIENCES LTD,5201323935,33410.14,
Department of Health,Salisbury NHS Foundation Trust,05-Apr-13,M & S EQUIPELECTEQUIPINST - OTHER,Clinical Support and Family Services,IMOTECH MEDICAL,IM42698,36489.36,
Department of Health,Salisbury NHS Foundation Trust,05-Apr-13,ETS UNITARY CHARGE,Facilities Directorate,SALISBURY HEALTHCARE FACILITIES LTD,155,250377.28,
Department of Health,Salisbury NHS Foundation Trust,26-Apr-13,BLOOD PRODUCTS,Clinical Support and Family Services,NATIONAL BLOOD SERVICE,821398,66064.51,
Department of Health,Salisbury NHS Foundation Trust,11-Apr-13,ELECTRICAL ENGINEERS,Capital Projects,MAINTAINING ENVIRONMENTS,IN002960,32090.44,
Department of Health,Salisbury NHS Foundation Trust,11-Apr-13,ELECTRICAL ENGINEERS,Capital Projects,MAINTAINING ENVIRONMENTS,IN002960,5000.33,
Department of Health,Salisbury NHS Foundation Trust,12-Apr-13,ADULTS HEARING AIDS,Surgery,NHS LOGISTICS,1014002069,10.83,
Department of Health,Salisbury NHS Foundation Trust,12-Apr-13,ADULTS HEARING AIDS,Surgery,NHS LOGISTICS,1014002069,658.9,
Department of Health,Salisbury NHS Foundation Trust,12-Apr-13,MEDSURGCONS - OTHER,Medicine,NHS LOGISTICS,1014002069,1.75,
Department of Health,Salisbury NHS Foundation Trust,12-Apr-13,MEDSURGCONS - OTHER,Medicine,NHS LOGISTICS,1014002069,2.73,
Department of Health,Salisbury NHS Foundation Trust,12-Apr-13,DRESSINGS - PRE STERILE,Critical care,NHS LOGISTICS,1014002069,27.91,
Department of Health,Salisbury NHS Foundation Trust,12-Apr-13,DRESSINGS - PRE STERILE,Critical care,NHS LOGISTICS,1014002069,19.8,
Department of Health,Salisbury NHS Foundation Trust,12-Apr-13,DRESSINGS - PRE STERILE,Critical care,NHS LOGISTICS,1014002069,22.78,
Department of Health,Salisbury NHS Foundation Trust,12-Apr-13,MED SURG EQUIP REP MAINT CLEANING,Clinical Support and Family Services,NHS LOGISTICS,1014002069,83.42,
Department of Health,Salisbury NHS Foundation Trust,12-Apr-13,DRESSINGS - PRE STERILE,Surgery,NHS LOGISTICS,1014002069,16.51,
Department of Health,Salisbury NHS Foundation Trust,12-Apr-13,NON DISPOSABLE THEATRE DRAPES WIPES,Clinical Support and Family Services,NHS LOGISTICS,1014002069,35.35,
Department of Health,Salisbury NHS Foundation Trust,12-Apr-13,DRESSINGS - PRE STERILE,Clinical Support and Family Services,NHS LOGISTICS,1014002069,1.08,
Department of Health,Salisbury NHS Foundation Trust,12-Apr-13,TISSUES HAND TOWELS & TOILET PAPER,Clinical Support and Family Services,NHS LOGISTICS,1014002069,9.08,
Department of Health,Salisbury NHS Foundation Trust,12-Apr-13,DRESSINGS - PRE STERILE,Clinical Support and Family Services,NHS LOGISTICS,1014002069,3.89,
Department of Health,Salisbury NHS Foundation Trust,12-Apr-13,PAPER ITEMS GENERAL STATIONERY SUNDRIES,Clinical Support and Family Services,NHS LOGISTICS,1014002069,9.33,
Department of Health,Salisbury NHS Foundation Trust,12-Apr-13,ELECTRICAL EQUIPMENT x,Surgery,NHS LOGISTICS,1014002069,5.95,
Department of Health,Salisbury NHS Foundation Trust,12-Apr-13,STATIONERY SUNDRIES,Surgery,NHS LOGISTICS,1014002069,5.22,
Department of Health,Salisbury NHS Foundation Trust,12-Apr-13,OTHER MEDICAL SUPPLIES,Critical care,NHS LOGISTICS,1014002069,17.67,
Department of Health,Salisbury NHS Foundation Trust,12-Apr-13,OTHER MEDICAL SUPPLIES,Critical care,NHS LOGISTICS,1014002069,3.26,
Department of Health,Salisbury NHS Foundation Trust,12-Apr-13,OTHER MEDICAL SUPPLIES,Critical care,NHS LOGISTICS,1014002069,3.26,
Department of Health,Salisbury NHS Foundation Trust,12-Apr-13,MEDSURGCONS-LAPAROSCOPIC EQUIPMENT,Surgery,NHS LOGISTICS,1014002069,134.72,
Department of Health,Salisbury NHS Foundation Trust,12-Apr-13,MEDSURGCONS - OTHER,Surgery,NHS LOGISTICS,1014002069,694.73,
Department of Health,Salisbury NHS Foundation Trust,12-Apr-13,ANAESTHETIC EQUIPMENT ACCESSORIES,Surgery,NHS LOGISTICS,1014002069,25.93,
Department of Health,Salisbury NHS Foundation Trust,12-Apr-13,BEVERAGES & AMBIENT FOOD,Medicine,NHS LOGISTICS,1014002069,10.45,
Department of Health,Salisbury NHS Foundation Trust,12-Apr-13,CLEANING MATERIALS PRODUCTS SUNDRIES,Medicine,NHS LOGISTICS,1014002069,7.91,
Department of Health,Salisbury NHS Foundation Trust,12-Apr-13,BEVERAGES & AMBIENT FOOD,Medicine,NHS LOGISTICS,1014002069,14.73,
Department of Health,Salisbury NHS Foundation Trust,12-Apr-13,BEVERAGES & AMBIENT FOOD,Medicine,NHS LOGISTICS,1014002069,4.45,
Department of Health,Salisbury NHS Foundation Trust,12-Apr-13,ADULTS HEARING AIDS,Surgery,NHS LOGISTICS,1014002069,2363,
Department of Health,Salisbury NHS Foundation Trust,12-Apr-13,BEVERAGES & AMBIENT FOOD,Medicine,NHS LOGISTICS,1014002069,10.45,
Department of Health,Salisbury NHS Foundation Trust,12-Apr-13,CLEANING MATERIALS PRODUCTS SUNDRIES,Medicine,NHS LOGISTICS,1014002069,7.91,
Department of Health,Salisbury NHS Foundation Trust,12-Apr-13,BEVERAGES & AMBIENT FOOD,Medicine,NHS LOGISTICS,1014002069,4.45,
Department of Health,Salisbury NHS Foundation Trust,12-Apr-13,DRESSINGS - PRE STERILE,Critical care,NHS LOGISTICS,1014002069,6.64,
Department of Health,Salisbury NHS Foundation Trust,12-Apr-13,DRESSINGS - PRE STERILE,Critical care,NHS LOGISTICS,1014002069,9.7,
Department of Health,Salisbury NHS Foundation Trust,12-Apr-13,DRESSINGS - PRE STERILE,Critical care,NHS LOGISTICS,1014002069,5.51,
Department of Health,Salisbury NHS Foundation Trust,12-Apr-13,COOKING & KITCHEN UTENSILS,Critical care,NHS LOGISTICS,1014002069,2.45,
Department of Health,Salisbury NHS Foundation Trust,12-Apr-13,PATIENTS INCONTINENCE,Critical care,NHS LOGISTICS,1014002069,8.58,
Department of Health,Salisbury NHS Foundation Trust,12-Apr-13,PATIENT APPLIANCES,Critical care,NHS LOGISTICS,1014002069,3.92,
Department of Health,Salisbury NHS Foundation Trust,12-Apr-13,TOILETRIES PERSONAL HYGIENE PRODUCTS,Critical care,NHS LOGISTICS,1014002069,9.54,
Department of Health,Salisbury NHS Foundation Trust,12-Apr-13,MEDSURGCONS - OTHER,Critical care,NHS LOGISTICS,1014002069,10.42,
Department of Health,Salisbury NHS Foundation Trust,12-Apr-13,NON DISPOSABLE BED LINEN,Critical care,NHS LOGISTICS,1014002069,20.87,
Department of Health,Salisbury NHS Foundation Trust,12-Apr-13,PATIENT APPLIANCES,Critical care,NHS LOGISTICS,1014002069,5.32,
Department of Health,Salisbury NHS Foundation Trust,12-Apr-13,MEDSURGCONS - OTHER,Clinical Support and Family Services,NHS LOGISTICS,1014002069,4.58,
Department of Health,Salisbury NHS Foundation Trust,12-Apr-13,OTHER MEDICAL SUPPLIES,Medicine,NHS LOGISTICS,1014002069,4.42,
Department of Health,Salisbury NHS Foundation Trust,12-Apr-13,M & S EQUIPELECTEQUIPINST - OTHER,Medicine,NHS LOGISTICS,1014002069,1.8,
Department of Health,Salisbury NHS Foundation Trust,12-Apr-13,TISSUES HAND TOWELS & TOILET PAPER,Medicine,NHS LOGISTICS,1014002069,0.88,
Department of Health,Salisbury NHS Foundation Trust,12-Apr-13,PATIENT APPLIANCES,Medicine,NHS LOGISTICS,1014002069,5.32,
Department of Health,Salisbury NHS Foundation Trust,12-Apr-13,CLEANING MATERIALS PRODUCTS SUNDRIES,Human Resources,NHS LOGISTICS,1014002069,3.65,
Department of Health,Salisbury NHS Foundation Trust,12-Apr-13,TISSUES HAND TOWELS & TOILET PAPER,Human Resources,NHS LOGISTICS,1014002069,8.83,
Department of Health,Salisbury NHS Foundation Trust,12-Apr-13,MEDSURGCONS - OTHER,Human Resources,NHS LOGISTICS,1014002069,21.42,
Department of Health,Salisbury NHS Foundation Trust,12-Apr-13,OTHER MEDICAL SUPPLIES,Clinical Support and Family Services,NHS LOGISTICS,1014002069,8.83,
Department of Health,Salisbury NHS Foundation Trust,12-Apr-13,M & S EQUIPELECTEQUIPINST - OTHER,Clinical Support and Family Services,NHS LOGISTICS,1014002069,9,
Department of Health,Salisbury NHS Foundation Trust,12-Apr-13,PATIENTS BEDWEAR UNISEX,Clinical Support and Family Services,NHS LOGISTICS,1014002069,4.14,
Department of Health,Salisbury NHS Foundation Trust,12-Apr-13,MEDSURGCONS - OTHER,Clinical Support and Family Services,NHS LOGISTICS,1014002069,13.17,
Department of Health,Salisbury NHS Foundation Trust,12-Apr-13,COOKING & KITCHEN UTENSILS,Clinical Support and Family Services,NHS LOGISTICS,1014002069,3.68,
Department of Health,Salisbury NHS Foundation Trust,12-Apr-13,DRUGS,Clinical Support and Family Services,NHS LOGISTICS,1014002069,5.66,
Department of Health,Salisbury NHS Foundation Trust,12-Apr-13,M & S EQUIPELECTEQUIPINST - OTHER,Clinical Support and Family Services,NHS LOGISTICS,1014002069,0.76,
Department of Health,Salisbury NHS Foundation Trust,12-Apr-13,MEDSURGCONS - OTHER,Clinical Support and Family Services,NHS LOGISTICS,1014002069,5.21,
Department of Health,Salisbury NHS Foundation Trust,12-Apr-13,MED SURG EQUIP REP MAINT CLEANING,Clinical Support and Family Services,NHS LOGISTICS,1014002069,11.1,
Department of Health,Salisbury NHS Foundation Trust,12-Apr-13,PATIENT APPLIANCES,Clinical Support and Family Services,NHS LOGISTICS,1014002069,5.32,
Department of Health,Salisbury NHS Foundation Trust,12-Apr-13,ELECTRICAL EQUIPMENT x,Medicine,NHS LOGISTICS,1014002069,6.26,
Department of Health,Salisbury NHS Foundation Trust,12-Apr-13,MEDSURGCONS - OTHER,Medicine,NHS LOGISTICS,1014002069,19.67,
Department of Health,Salisbury NHS Foundation Trust,12-Apr-13,TISSUES HAND TOWELS & TOILET PAPER,Clinical Support and Family Services,NHS LOGISTICS,1014002069,1.82,
Department of Health,Salisbury NHS Foundation Trust,12-Apr-13,MED SURG EQUIP REP MAINT CLEANING,Clinical Support and Family Services,NHS LOGISTICS,1014002069,34.5,
Department of Health,Salisbury NHS Foundation Trust,12-Apr-13,TUBES,Clinical Support and Family Services,NHS LOGISTICS,1014002069,6.16,
Department of Health,Salisbury NHS Foundation Trust,12-Apr-13,PATIENTS BABY WEAR,Clinical Support and Family Services,NHS LOGISTICS,1014002069,2.92,
Department of Health,Salisbury NHS Foundation Trust,12-Apr-13,DRESSINGS - PRE STERILE,Clinical Support and Family Services,NHS LOGISTICS,1014002069,1.59,
Department of Health,Salisbury NHS Foundation Trust,12-Apr-13,SURGICAL INSTRUMENTS: GENERAL,Clinical Support and Family Services,NHS LOGISTICS,1014002069,0.51,
Department of Health,Salisbury NHS Foundation Trust,12-Apr-13,NON DISPOSABLE BED LINEN,Clinical Support and Family Services,NHS LOGISTICS,1014002069,5.38,
Department of Health,Salisbury NHS Foundation Trust,12-Apr-13,MEDSURGCONS - OTHER,Clinical Support and Family Services,NHS LOGISTICS,1014002069,18.25,
Department of Health,Salisbury NHS Foundation Trust,12-Apr-13,NON DISPOSABLE BED LINEN,Clinical Support and Family Services,NHS LOGISTICS,1014002069,24.5,
Department of Health,Salisbury NHS Foundation Trust,12-Apr-13,OTHER MEDICAL SUPPLIES,Clinical Support and Family Services,NHS LOGISTICS,1014002069,2.28,
Department of Health,Salisbury NHS Foundation Trust,12-Apr-13,TUBES,Clinical Support and Family Services,NHS LOGISTICS,1014002069,1.17,
Department of Health,Salisbury NHS Foundation Trust,12-Apr-13,TUBES,Clinical Support and Family Services,NHS LOGISTICS,1014002069,3.46,
Department of Health,Salisbury NHS Foundation Trust,12-Apr-13,PATIENT APPLIANCES,Clinical Support and Family Services,NHS LOGISTICS,1014002069,4.91,
Department of Health,Salisbury NHS Foundation Trust,12-Apr-13,OTHER MEDICAL SUPPLIES,Critical care,NHS LOGISTICS,1014002069,13.25,
Department of Health,Salisbury NHS Foundation Trust,12-Apr-13,DRESSINGS - PRE STERILE,Critical care,NHS LOGISTICS,1014002069,13.28,
Department of Health,Salisbury NHS Foundation Trust,12-Apr-13,DRESSINGS - PRE STERILE,Critical care,NHS LOGISTICS,1014002069,19.4,
Department of Health,Salisbury NHS Foundation Trust,12-Apr-13,TISSUES HAND TOWELS & TOILET PAPER,Critical care,NHS LOGISTICS,1014002069,1.82,
Department of Health,Salisbury NHS Foundation Trust,12-Apr-13,DRUGS,Critical care,NHS LOGISTICS,1014002069,7.72,
Department of Health,Salisbury NHS Foundation Trust,12-Apr-13,NON DISPOSABLE BED LINEN,Critical care,NHS LOGISTICS,1014002069,10.77,
Department of Health,Salisbury NHS Foundation Trust,12-Apr-13,STATIONERY SUNDRIES,Human Resources,NHS LOGISTICS,1014002069,6.55,
Department of Health,Salisbury NHS Foundation Trust,12-Apr-13,STATIONERY SUNDRIES,Human Resources,NHS LOGISTICS,1014002069,1.65,
Department of Health,Salisbury NHS Foundation Trust,12-Apr-13,PAPER ITEMS GENERAL STATIONERY SUNDRIES,Human Resources,NHS LOGISTICS,1014002069,10.04,
Department of Health,Salisbury NHS Foundation Trust,12-Apr-13,OTHER MEDICAL SUPPLIES,Critical care,NHS LOGISTICS,1014002069,22.08,
Department of Health,Salisbury NHS Foundation Trust,12-Apr-13,DRESSINGS - PRE STERILE,Critical care,NHS LOGISTICS,1014002069,6.64,
Department of Health,Salisbury NHS Foundation Trust,12-Apr-13,COOKING & KITCHEN UTENSILS,Critical care,NHS LOGISTICS,1014002069,3.68,
Department of Health,Salisbury NHS Foundation Trust,12-Apr-13,DRUGS,Critical care,NHS LOGISTICS,1014002069,7.72,
Department of Health,Salisbury NHS Foundation Trust,12-Apr-13,TISSUES HAND TOWELS & TOILET PAPER,Critical care,NHS LOGISTICS,1014002069,0.36,
Department of Health,Salisbury NHS Foundation Trust,12-Apr-13,NON DISPOSABLE BED LINEN,Critical care,NHS LOGISTICS,1014002069,10.77,
Department of Health,Salisbury NHS Foundation Trust,12-Apr-13,PATIENT APPLIANCES,Critical care,NHS LOGISTICS,1014002069,5.32,
Department of Health,Salisbury NHS Foundation Trust,12-Apr-13,TUBES,Surgery,NHS LOGISTICS,1014002069,775.83,
Department of Health,Salisbury NHS Foundation Trust,12-Apr-13,MED SURG EQUIP REP MAINT CLEANING,Clinical Support and Family Services,NHS LOGISTICS,1014002069,337,
Department of Health,Salisbury NHS Foundation Trust,12-Apr-13,TISSUES HAND TOWELS & TOILET PAPER,Clinical Support and Family Services,NHS LOGISTICS,1014002069,10.9,
Department of Health,Salisbury NHS Foundation Trust,12-Apr-13,SURGICAL INSTRUMENTS: DISPOSABLE,Clinical Support and Family Services,NHS LOGISTICS,1014002069,13.38,
Department of Health,Salisbury NHS Foundation Trust,12-Apr-13,OTHER MEDICAL SUPPLIES,Surgery,NHS LOGISTICS,1014002069,13.25,
Department of Health,Salisbury NHS Foundation Trust,12-Apr-13,DRESSINGS  -  PROCEDURE PACKS,Surgery,NHS LOGISTICS,1014002069,15.83,
Department of Health,Salisbury NHS Foundation Trust,12-Apr-13,DRESSINGS - PRE STERILE,Surgery,NHS LOGISTICS,1014002069,6.83,
Department of Health,Salisbury NHS Foundation Trust,12-Apr-13,SURGICAL INSTRUMENTS: GENERAL,Surgery,NHS LOGISTICS,1014002069,1.55,
Department of Health,Salisbury NHS Foundation Trust,12-Apr-13,PAPER ITEMS GENERAL STATIONERY SUNDRIES,Medicine,NHS LOGISTICS,1014002069,26.7,
Department of Health,Salisbury NHS Foundation Trust,12-Apr-13,PAPER ITEMS GENERAL STATIONERY SUNDRIES,Medicine,NHS LOGISTICS,1014002069,40.17,
Department of Health,Salisbury NHS Foundation Trust,12-Apr-13,STATIONERY SUNDRIES,Medicine,NHS LOGISTICS,1014002069,0.58,
Department of Health,Salisbury NHS Foundation Trust,12-Apr-13,STATIONERY SUNDRIES,Medicine,NHS LOGISTICS,1014002069,1.03,
Department of Health,Salisbury NHS Foundation Trust,12-Apr-13,PAPER ITEMS GENERAL STATIONERY SUNDRIES,Clinical Support and Family Services,NHS LOGISTICS,1014002069,15.63,
Department of Health,Salisbury NHS Foundation Trust,12-Apr-13,STATIONERY SUNDRIES,Clinical Support and Family Services,NHS LOGISTICS,1014002069,0.35,
Department of Health,Salisbury NHS Foundation Trust,12-Apr-13,ADULTS HEARING AIDS,Surgery,NHS LOGISTICS,1014002069,106,
Department of Health,Salisbury NHS Foundation Trust,12-Apr-13,ADULTS HEARING AIDS,Surgery,NHS LOGISTICS,1014002069,11.21,
Department of Health,Salisbury NHS Foundation Trust,12-Apr-13,ADULTS HEARING AIDS,Surgery,NHS LOGISTICS,1014002069,36.25,
Department of Health,Salisbury NHS Foundation Trust,12-Apr-13,ADULTS HEARING AIDS,Surgery,NHS LOGISTICS,1014002069,361.75,
Department of Health,Salisbury NHS Foundation Trust,12-Apr-13,MEDSURGCONS - OTHER,Clinical Support and Family Services,NHS LOGISTICS,1014002069,75.67,
Department of Health,Salisbury NHS Foundation Trust,12-Apr-13,MEDSURGCONS - OTHER,Critical care,NHS LOGISTICS,1014002069,49.98,
Department of Health,Salisbury NHS Foundation Trust,12-Apr-13,SEATING GENERAL,Medicine,NHS LOGISTICS,1014002069,2.89,
Department of Health,Salisbury NHS Foundation Trust,12-Apr-13,STATIONERY SUNDRIES,Medicine,NHS LOGISTICS,1014002069,11.78,
Department of Health,Salisbury NHS Foundation Trust,12-Apr-13,PAPER ITEMS GENERAL STATIONERY SUNDRIES,Medicine,NHS LOGISTICS,1014002069,10.04,
Department of Health,Salisbury NHS Foundation Trust,12-Apr-13,STATIONERY SUNDRIES,Medicine,NHS LOGISTICS,1014002069,9.12,
Department of Health,Salisbury NHS Foundation Trust,12-Apr-13,OTHER MEDICAL SUPPLIES,Surgery,NHS LOGISTICS,1014002069,13.25,
Department of Health,Salisbury NHS Foundation Trust,12-Apr-13,DRESSINGS - PRE STERILE,Surgery,NHS LOGISTICS,1014002069,29.35,
Department of Health,Salisbury NHS Foundation Trust,12-Apr-13,PATIENT APPLIANCES,Surgery,NHS LOGISTICS,1014002069,7.92,
Department of Health,Salisbury NHS Foundation Trust,12-Apr-13,PATIENT APPLIANCES,Surgery,NHS LOGISTICS,1014002069,7.92,
Department of Health,Salisbury NHS Foundation Trust,12-Apr-13,PATIENT APPLIANCES,Surgery,NHS LOGISTICS,1014002069,5.32,
Department of Health,Salisbury NHS Foundation Trust,12-Apr-13,BAGS SACKS - OTHER,Clinical Support and Family Services,NHS LOGISTICS,1014002069,4.63,
Department of Health,Salisbury NHS Foundation Trust,12-Apr-13,M & S EQUIPELECTEQUIPINST - OTHER,Surgery,NHS LOGISTICS,1014002069,27.76,
Department of Health,Salisbury NHS Foundation Trust,12-Apr-13,HEALTHCARE - WEAR,Critical care,NHS LOGISTICS,1014002069,124.5,
Department of Health,Salisbury NHS Foundation Trust,12-Apr-13,HEALTHCARE - WEAR,Critical care,NHS LOGISTICS,1014002069,18.05,
Department of Health,Salisbury NHS Foundation Trust,12-Apr-13,TISSUES HAND TOWELS & TOILET PAPER,Critical care,NHS LOGISTICS,1014002069,20.6,
Department of Health,Salisbury NHS Foundation Trust,12-Apr-13,NON DISPOSABLE BED LINEN,Critical care,NHS LOGISTICS,1014002069,25.12,
Department of Health,Salisbury NHS Foundation Trust,12-Apr-13,PATIENT APPLIANCES,Critical care,NHS LOGISTICS,1014002069,53.17,
Department of Health,Salisbury NHS Foundation Trust,12-Apr-13,PATIENT APPLIANCES,Critical care,NHS LOGISTICS,1014002069,7.67,
Department of Health,Salisbury NHS Foundation Trust,12-Apr-13,COOKING & KITCHEN UTENSILS,Critical care,NHS LOGISTICS,1014002069,2.45,
Department of Health,Salisbury NHS Foundation Trust,12-Apr-13,DRESSINGS - PRE STERILE,Critical care,NHS LOGISTICS,1014002069,2.34,
Department of Health,Salisbury NHS Foundation Trust,12-Apr-13,MEDSURGCONS - OTHER,Critical care,NHS LOGISTICS,1014002069,3.51,
Department of Health,Salisbury NHS Foundation Trust,12-Apr-13,MEDSURGCONS-SUTURES,Critical care,NHS LOGISTICS,1014002069,42.53,
Department of Health,Salisbury NHS Foundation Trust,12-Apr-13,MEDSURGCONS-SUTURES,Critical care,NHS LOGISTICS,1014002069,29.18,
Department of Health,Salisbury NHS Foundation Trust,12-Apr-13,DRESSINGS - PRE STERILE,Critical care,NHS LOGISTICS,1014002069,4.98,
Department of Health,Salisbury NHS Foundation Trust,12-Apr-13,DRESSINGS - PRE STERILE,Critical care,NHS LOGISTICS,1014002069,9.7,
Department of Health,Salisbury NHS Foundation Trust,12-Apr-13,SURGICAL INSTRUMENTS: GENERAL,Critical care,NHS LOGISTICS,1014002069,6.76,
Department of Health,Salisbury NHS Foundation Trust,12-Apr-13,TOILETRIES PERSONAL HYGIENE PRODUCTS,Critical care,NHS LOGISTICS,1014002069,7.32,
Department of Health,Salisbury NHS Foundation Trust,12-Apr-13,TISSUES HAND TOWELS & TOILET PAPER,Critical care,NHS LOGISTICS,1014002069,0.88,
Department of Health,Salisbury NHS Foundation Trust,12-Apr-13,DRESSINGS - PRE STERILE,Critical care,NHS LOGISTICS,1014002069,40,
Department of Health,Salisbury NHS Foundation Trust,12-Apr-13,MEDSURGCONS-SUTURES,Critical care,NHS LOGISTICS,1014002069,42.53,
Department of Health,Salisbury NHS Foundation Trust,12-Apr-13,BAGS SACKS - OTHER,Surgery,NHS LOGISTICS,1014002069,17.96,
Department of Health,Salisbury NHS Foundation Trust,12-Apr-13,OTHER MEDICAL SUPPLIES,Surgery,NHS LOGISTICS,1014002069,15.9,
Department of Health,Salisbury NHS Foundation Trust,12-Apr-13,DRESSINGS - PRE STERILE,Surgery,NHS LOGISTICS,1014002069,65.52,
Department of Health,Salisbury NHS Foundation Trust,12-Apr-13,DRESSINGS - PRE STERILE,Surgery,NHS LOGISTICS,1014002069,18.86,
Department of Health,Salisbury NHS Foundation Trust,12-Apr-13,DENTAL SURGERY EQUIPMENT,Surgery,NHS LOGISTICS,1014002069,8.91,
Department of Health,Salisbury NHS Foundation Trust,12-Apr-13,MEDSURGCONS - OTHER,Surgery,NHS LOGISTICS,1014002069,7.33,
Department of Health,Salisbury NHS Foundation Trust,12-Apr-13,DISPOSABLE THEATRE DRAPES WIPES,Surgery,NHS LOGISTICS,1014002069,3.8,
Department of Health,Salisbury NHS Foundation Trust,12-Apr-13,DISPOSABLE THEATRE DRAPES WIPES,Surgery,NHS LOGISTICS,1014002069,11.27,
Department of Health,Salisbury NHS Foundation Trust,12-Apr-13,DRESSINGS - PRE STERILE,Surgery,NHS LOGISTICS,1014002069,14.43,
Department of Health,Salisbury NHS Foundation Trust,12-Apr-13,MED SURG EQUIP REP MAINT CLEANING,Clinical Support and Family Services,NHS LOGISTICS,1014002069,45.92,
Department of Health,Salisbury NHS Foundation Trust,12-Apr-13,TISSUES HAND TOWELS & TOILET PAPER,Clinical Support and Family Services,NHS LOGISTICS,1014002069,3.63,
Department of Health,Salisbury NHS Foundation Trust,12-Apr-13,TISSUES HAND TOWELS & TOILET PAPER,Clinical Support and Family Services,NHS LOGISTICS,1014002069,0.44,
Department of Health,Salisbury NHS Foundation Trust,12-Apr-13,MEDSURGCONS - OTHER,Clinical Support and Family Services,NHS LOGISTICS,1014002069,3.77,
Department of Health,Salisbury NHS Foundation Trust,12-Apr-13,NON DISPOSABLE BED LINEN,Clinical Support and Family Services,NHS LOGISTICS,1014002069,10.77,
Department of Health,Salisbury NHS Foundation Trust,12-Apr-13,DRESSINGS - PRE STERILE,Surgery,NHS LOGISTICS,1014002069,16.17,
Department of Health,Salisbury NHS Foundation Trust,12-Apr-13,DRESSINGS - PRE STERILE,Surgery,NHS LOGISTICS,1014002069,8.83,
Department of Health,Salisbury NHS Foundation Trust,12-Apr-13,DRESSINGS - PRE STERILE,Surgery,NHS LOGISTICS,1014002069,8.23,
Department of Health,Salisbury NHS Foundation Trust,12-Apr-13,DRESSINGS - PRE STERILE,Surgery,NHS LOGISTICS,1014002069,7.73,
Department of Health,Salisbury NHS Foundation Trust,12-Apr-13,DRESSINGS - PRE STERILE,Surgery,NHS LOGISTICS,1014002069,4.74,
Department of Health,Salisbury NHS Foundation Trust,12-Apr-13,DRESSINGS - PRE STERILE,Surgery,NHS LOGISTICS,1014002069,3.25,
Department of Health,Salisbury NHS Foundation Trust,12-Apr-13,DRESSINGS - PRE STERILE,Surgery,NHS LOGISTICS,1014002069,4.92,
Department of Health,Salisbury NHS Foundation Trust,12-Apr-13,DRESSINGS - PRE STERILE,Surgery,NHS LOGISTICS,1014002069,4.07,
Department of Health,Salisbury NHS Foundation Trust,12-Apr-13,TISSUES HAND TOWELS & TOILET PAPER,Surgery,NHS LOGISTICS,1014002069,5.45,
Department of Health,Salisbury NHS Foundation Trust,12-Apr-13,TISSUES HAND TOWELS & TOILET PAPER,Surgery,NHS LOGISTICS,1014002069,10.9,
Department of Health,Salisbury NHS Foundation Trust,12-Apr-13,PATIENT APPLIANCES,Surgery,NHS LOGISTICS,1014002069,16.03,
Department of Health,Salisbury NHS Foundation Trust,12-Apr-13,PATIENT APPLIANCES,Surgery,NHS LOGISTICS,1014002069,16.03,
Department of Health,Salisbury NHS Foundation Trust,12-Apr-13,PATIENT APPLIANCES,Surgery,NHS LOGISTICS,1014002069,16.03,
Department of Health,Salisbury NHS Foundation Trust,12-Apr-13,OPTICAL  -  OTHER,Surgery,NHS LOGISTICS,1014002069,43.6,
Department of Health,Salisbury NHS Foundation Trust,12-Apr-13,PATIENTS BEDWEAR UNISEX,Medicine,NHS LOGISTICS,1014002069,52.51,
Department of Health,Salisbury NHS Foundation Trust,12-Apr-13,PAPER ITEMS GENERAL STATIONERY SUNDRIES,Medicine,NHS LOGISTICS,1014002069,30.13,
Department of Health,Salisbury NHS Foundation Trust,12-Apr-13,OTHER MEDICAL SUPPLIES,Surgery,NHS LOGISTICS,1014002069,22.08,
Department of Health,Salisbury NHS Foundation Trust,12-Apr-13,DRESSINGS - PRE STERILE,Surgery,NHS LOGISTICS,1014002069,6.64,
Department of Health,Salisbury NHS Foundation Trust,12-Apr-13,OTHER MEDICAL SUPPLIES,Surgery,NHS LOGISTICS,1014002069,5.68,
Department of Health,Salisbury NHS Foundation Trust,12-Apr-13,PATIENTS INCONTINENCE,Surgery,NHS LOGISTICS,1014002069,16.53,
Department of Health,Salisbury NHS Foundation Trust,12-Apr-13,NON DISPOSABLE BED LINEN,Surgery,NHS LOGISTICS,1014002069,20.87,
Department of Health,Salisbury NHS Foundation Trust,12-Apr-13,TISSUES HAND TOWELS & TOILET PAPER,Clinical Support and Family Services,NHS LOGISTICS,1014002069,20.1,
Department of Health,Salisbury NHS Foundation Trust,12-Apr-13,COOKING & KITCHEN UTENSILS,Clinical Support and Family Services,NHS LOGISTICS,1014002069,4.9,
Department of Health,Salisbury NHS Foundation Trust,12-Apr-13,DRESSINGS - PRE STERILE,Clinical Support and Family Services,NHS LOGISTICS,1014002069,5.47,
Department of Health,Salisbury NHS Foundation Trust,12-Apr-13,NON DISPOSABLE BED LINEN,Clinical Support and Family Services,NHS LOGISTICS,1014002069,4.57,
Department of Health,Salisbury NHS Foundation Trust,12-Apr-13,NON DISPOSABLE BED LINEN,Clinical Support and Family Services,NHS LOGISTICS,1014002069,20.87,
Department of Health,Salisbury NHS Foundation Trust,12-Apr-13,TISSUES HAND TOWELS & TOILET PAPER,Critical care,NHS LOGISTICS,1014002069,1.82,
Department of Health,Salisbury NHS Foundation Trust,12-Apr-13,PAPER ITEMS GENERAL STATIONERY SUNDRIES,Surgery,NHS LOGISTICS,1014002069,2.33,
Department of Health,Salisbury NHS Foundation Trust,12-Apr-13,ELECTRICAL EQUIPMENT x,Critical care,NHS LOGISTICS,1014002069,3.2,
Department of Health,Salisbury NHS Foundation Trust,12-Apr-13,PAPER ITEMS GENERAL STATIONERY SUNDRIES,Critical care,NHS LOGISTICS,1014002069,13.89,
Department of Health,Salisbury NHS Foundation Trust,12-Apr-13,STATIONERY SUNDRIES,Critical care,NHS LOGISTICS,1014002069,20.27,
Department of Health,Salisbury NHS Foundation Trust,12-Apr-13,HARD/SOFTWARE-COMPUTER ACCESSORIES  TEST EQUIPMENT,Critical care,NHS LOGISTICS,1014002069,2.1,
Department of Health,Salisbury NHS Foundation Trust,12-Apr-13,STATIONERY SUNDRIES,Critical care,NHS LOGISTICS,1014002069,17.27,
Department of Health,Salisbury NHS Foundation Trust,12-Apr-13,STATIONERY SUNDRIES,Critical care,NHS LOGISTICS,1014002069,0.52,
Department of Health,Salisbury NHS Foundation Trust,12-Apr-13,TISSUES HAND TOWELS & TOILET PAPER,Critical care,NHS LOGISTICS,1014002069,7.5,
Department of Health,Salisbury NHS Foundation Trust,12-Apr-13,STATIONERY SUNDRIES,Critical care,NHS LOGISTICS,1014002069,2.18,
Department of Health,Salisbury NHS Foundation Trust,12-Apr-13,PAPER ITEMS GENERAL STATIONERY SUNDRIES,Critical care,NHS LOGISTICS,1014002069,15.46,
Department of Health,Salisbury NHS Foundation Trust,12-Apr-13,STATIONERY SUNDRIES,Critical care,NHS LOGISTICS,1014002069,2.5,
Department of Health,Salisbury NHS Foundation Trust,12-Apr-13,DRESSINGS - PRE STERILE,Critical care,NHS LOGISTICS,1014002069,19.8,
Department of Health,Salisbury NHS Foundation Trust,12-Apr-13,DRESSINGS - PRE STERILE,Critical care,NHS LOGISTICS,1014002069,22.78,
Department of Health,Salisbury NHS Foundation Trust,12-Apr-13,DRESSINGS - PRE STERILE,Critical care,NHS LOGISTICS,1014002069,2.51,
Department of Health,Salisbury NHS Foundation Trust,12-Apr-13,PATIENTS FOOTWEAR,Critical care,NHS LOGISTICS,1014002069,38.29,
Department of Health,Salisbury NHS Foundation Trust,12-Apr-13,PATIENTS FOOTWEAR,Critical care,NHS LOGISTICS,1014002069,38.29,
Department of Health,Salisbury NHS Foundation Trust,12-Apr-13,TISSUES HAND TOWELS & TOILET PAPER,Critical care,NHS LOGISTICS,1014002069,10.9,
Department of Health,Salisbury NHS Foundation Trust,12-Apr-13,COOKING & KITCHEN UTENSILS,Critical care,NHS LOGISTICS,1014002069,3.68,
Department of Health,Salisbury NHS Foundation Trust,12-Apr-13,DRESSINGS - PRE STERILE,Critical care,NHS LOGISTICS,1014002069,27.71,
Department of Health,Salisbury NHS Foundation Trust,12-Apr-13,DRESSINGS - PRE STERILE,Critical care,NHS LOGISTICS,1014002069,13.37,
Department of Health,Salisbury NHS Foundation Trust,12-Apr-13,TOILETRIES PERSONAL HYGIENE PRODUCTS,Surgery,NHS LOGISTICS,1014002069,11.5,
Department of Health,Salisbury NHS Foundation Trust,12-Apr-13,TOILETRIES PERSONAL HYGIENE PRODUCTS,Surgery,NHS LOGISTICS,1014002069,3.93,
Department of Health,Salisbury NHS Foundation Trust,12-Apr-13,PAPER ITEMS GENERAL STATIONERY SUNDRIES,Surgery,NHS LOGISTICS,1014002069,6.01,
Department of Health,Salisbury NHS Foundation Trust,12-Apr-13,TISSUES HAND TOWELS & TOILET PAPER,Surgery,NHS LOGISTICS,1014002069,11.25,
Department of Health,Salisbury NHS Foundation Trust,12-Apr-13,MEDSURGCONS - OTHER,Medicine,NHS LOGISTICS,1014002069,17.57,
Department of Health,Salisbury NHS Foundation Trust,12-Apr-13,MEDSURGCONS-SUTURES,Medicine,NHS LOGISTICS,1014002069,43.92,
Department of Health,Salisbury NHS Foundation Trust,12-Apr-13,MEDSURGCONS - OTHER,Medicine,NHS LOGISTICS,1014002069,5.21,
Department of Health,Salisbury NHS Foundation Trust,12-Apr-13,DRESSINGS - PRE STERILE,Medicine,NHS LOGISTICS,1014002069,1.08,
Department of Health,Salisbury NHS Foundation Trust,12-Apr-13,MEDSURGCONS - OTHER,Medicine,NHS LOGISTICS,1014002069,1.13,
Department of Health,Salisbury NHS Foundation Trust,12-Apr-13,MEDSURGCONS - OTHER,Medicine,NHS LOGISTICS,1014002069,18.23,
Department of Health,Salisbury NHS Foundation Trust,12-Apr-13,PATIENT APPLIANCES,Medicine,NHS LOGISTICS,1014002069,32.93,
Department of Health,Salisbury NHS Foundation Trust,12-Apr-13,PATIENT APPLIANCES,Medicine,NHS LOGISTICS,1014002069,16.47,
Department of Health,Salisbury NHS Foundation Trust,12-Apr-13,PATIENT APPLIANCES,Medicine,NHS LOGISTICS,1014002069,24.7,
Department of Health,Salisbury NHS Foundation Trust,12-Apr-13,PATIENT APPLIANCES,Medicine,NHS LOGISTICS,1014002069,16.47,
Department of Health,Salisbury NHS Foundation Trust,12-Apr-13,PATIENT APPLIANCES,Medicine,NHS LOGISTICS,1014002069,16.47,
Department of Health,Salisbury NHS Foundation Trust,12-Apr-13,OTHER MEDICAL SUPPLIES,Medicine,NHS LOGISTICS,1014002069,11.11,
Department of Health,Salisbury NHS Foundation Trust,12-Apr-13,PATIENTS INCONTINENCE,Medicine,NHS LOGISTICS,1014002069,4.29,
Department of Health,Salisbury NHS Foundation Trust,12-Apr-13,PATIENTS INCONTINENCE,Medicine,NHS LOGISTICS,1014002069,5.46,
Department of Health,Salisbury NHS Foundation Trust,12-Apr-13,MEDSURGCONS - OTHER,Medicine,NHS LOGISTICS,1014002069,6.87,
Department of Health,Salisbury NHS Foundation Trust,12-Apr-13,MEDSURGCONS - OTHER,Medicine,NHS LOGISTICS,1014002069,15.63,
Department of Health,Salisbury NHS Foundation Trust,12-Apr-13,MEDSURGCONS - OTHER,Medicine,NHS LOGISTICS,1014002069,8.27,
Department of Health,Salisbury NHS Foundation Trust,12-Apr-13,TOILETRIES PERSONAL HYGIENE PRODUCTS,Medicine,NHS LOGISTICS,1014002069,3.22,
Department of Health,Salisbury NHS Foundation Trust,12-Apr-13,NON DISPOSABLE BED LINEN,Medicine,NHS LOGISTICS,1014002069,10.77,
Department of Health,Salisbury NHS Foundation Trust,12-Apr-13,ANAESTHETIC EQUIPMENT ACCESSORIES,Surgery,NHS LOGISTICS,1014002069,85.63,
Department of Health,Salisbury NHS Foundation Trust,12-Apr-13,MEDSURGCONS - OTHER,Surgery,NHS LOGISTICS,1014002069,27.5,
Department of Health,Salisbury NHS Foundation Trust,12-Apr-13,OTHER MEDICAL SUPPLIES,Surgery,NHS LOGISTICS,1014002069,45.85,
Department of Health,Salisbury NHS Foundation Trust,12-Apr-13,OTHER MEDICAL SUPPLIES,Surgery,NHS LOGISTICS,1014002069,11.67,
Department of Health,Salisbury NHS Foundation Trust,12-Apr-13,OTHER MEDICAL SUPPLIES,Surgery,NHS LOGISTICS,1014002069,11.67,
Department of Health,Salisbury NHS Foundation Trust,12-Apr-13,PAPER ITEMS GENERAL STATIONERY SUNDRIES,Medicine,NHS LOGISTICS,1014002069,20.08,
Department of Health,Salisbury NHS Foundation Trust,12-Apr-13,STATIONERY SUNDRIES,Medicine,NHS LOGISTICS,1014002069,13.68,
Department of Health,Salisbury NHS Foundation Trust,12-Apr-13,PATIENTS BEDWEAR UNISEX,Critical care,NHS LOGISTICS,1014002069,52.51,
Department of Health,Salisbury NHS Foundation Trust,12-Apr-13,STATIONERY SUNDRIES,Critical care,NHS LOGISTICS,1014002069,0.4,
Department of Health,Salisbury NHS Foundation Trust,12-Apr-13,HEALTHCARE - WEAR,Surgery,NHS LOGISTICS,1014002069,255.35,
Department of Health,Salisbury NHS Foundation Trust,12-Apr-13,HEALTHCARE - WEAR,Surgery,NHS LOGISTICS,1014002069,146.68,
Department of Health,Salisbury NHS Foundation Trust,12-Apr-13,PAPER ITEMS GENERAL STATIONERY SUNDRIES,Surgery,NHS LOGISTICS,1014002069,22.7,
Department of Health,Salisbury NHS Foundation Trust,12-Apr-13,PAPER ITEMS GENERAL STATIONERY SUNDRIES,Surgery,NHS LOGISTICS,1014002069,27.8,
Department of Health,Salisbury NHS Foundation Trust,12-Apr-13,PAPER ITEMS GENERAL STATIONERY SUNDRIES,Surgery,NHS LOGISTICS,1014002069,37.33,
Department of Health,Salisbury NHS Foundation Trust,12-Apr-13,STATIONERY SUNDRIES,Surgery,NHS LOGISTICS,1014002069,1.85,
Department of Health,Salisbury NHS Foundation Trust,12-Apr-13,MEDSURGCONS - OTHER,Medicine,NHS LOGISTICS,1014002069,1.42,
Department of Health,Salisbury NHS Foundation Trust,12-Apr-13,MEDSURGCONS - OTHER,Medicine,NHS LOGISTICS,1014002069,2.73,
Department of Health,Salisbury NHS Foundation Trust,12-Apr-13,BAGS SACKS - OTHER,Medicine,NHS LOGISTICS,1014002069,19.25,
Department of Health,Salisbury NHS Foundation Trust,12-Apr-13,TISSUES HAND TOWELS & TOILET PAPER,Medicine,NHS LOGISTICS,1014002069,5.45,
Department of Health,Salisbury NHS Foundation Trust,12-Apr-13,TISSUES HAND TOWELS & TOILET PAPER,Medicine,NHS LOGISTICS,1014002069,3.53,
Department of Health,Salisbury NHS Foundation Trust,12-Apr-13,CLEANING MATERIALS PRODUCTS SUNDRIES,Medicine,NHS LOGISTICS,1014002069,22.23,
Department of Health,Salisbury NHS Foundation Trust,12-Apr-13,PATIENT APPLIANCES,Medicine,NHS LOGISTICS,1014002069,3.92,
Department of Health,Salisbury NHS Foundation Trust,12-Apr-13,MEDSURGCONS - OTHER,Medicine,NHS LOGISTICS,1014002069,5.21,
Department of Health,Salisbury NHS Foundation Trust,12-Apr-13,NON DISPOSABLE BED LINEN,Medicine,NHS LOGISTICS,1014002069,16.15,
Department of Health,Salisbury NHS Foundation Trust,12-Apr-13,PATIENT APPLIANCES,Medicine,NHS LOGISTICS,1014002069,5.32,
Department of Health,Salisbury NHS Foundation Trust,12-Apr-13,PATIENT APPLIANCES,Medicine,NHS LOGISTICS,1014002069,1.92,
Department of Health,Salisbury NHS Foundation Trust,12-Apr-13,OTHER MEDICAL SUPPLIES,Surgery,NHS LOGISTICS,1014002069,35.33,
Department of Health,Salisbury NHS Foundation Trust,12-Apr-13,TUBES,Surgery,NHS LOGISTICS,1014002069,20.63,
Department of Health,Salisbury NHS Foundation Trust,12-Apr-13,MEDSURGCONS - OTHER,Surgery,NHS LOGISTICS,1014002069,30.83,
Department of Health,Salisbury NHS Foundation Trust,12-Apr-13,ANAESTHETIC EQUIPMENT ACCESSORIES,Surgery,NHS LOGISTICS,1014002069,31.74,
Department of Health,Salisbury NHS Foundation Trust,12-Apr-13,DRESSINGS - PRE STERILE,Surgery,NHS LOGISTICS,1014002069,65.52,
Department of Health,Salisbury NHS Foundation Trust,12-Apr-13,MEDSURGCONS - OTHER,Surgery,NHS LOGISTICS,1014002069,13.75,
Department of Health,Salisbury NHS Foundation Trust,12-Apr-13,MEDSURGCONS - OTHER,Surgery,NHS LOGISTICS,1014002069,12.21,
Department of Health,Salisbury NHS Foundation Trust,12-Apr-13,HABERDASHERY,Surgery,NHS LOGISTICS,1014002069,9.95,
Department of Health,Salisbury NHS Foundation Trust,12-Apr-13,TOILETRIES PERSONAL HYGIENE PRODUCTS,Surgery,NHS LOGISTICS,1014002069,3.73,
Department of Health,Salisbury NHS Foundation Trust,12-Apr-13,TOILETRIES PERSONAL HYGIENE PRODUCTS,Surgery,NHS LOGISTICS,1014002069,6,
Department of Health,Salisbury NHS Foundation Trust,12-Apr-13,DRESSINGS - PRE STERILE,Surgery,NHS LOGISTICS,1014002069,28.87,
Department of Health,Salisbury NHS Foundation Trust,12-Apr-13,MEDSURGCONS-LAPAROSCOPIC EQUIPMENT,Surgery,NHS LOGISTICS,1014002069,134.72,
Department of Health,Salisbury NHS Foundation Trust,12-Apr-13,BAGS SACKS - OTHER,Surgery,NHS LOGISTICS,1014002069,12.03,
Department of Health,Salisbury NHS Foundation Trust,12-Apr-13,CLEANING MATERIALS PRODUCTS SUNDRIES,Surgery,NHS LOGISTICS,1014002069,28.33,
Department of Health,Salisbury NHS Foundation Trust,12-Apr-13,COOKING & KITCHEN UTENSILS,Surgery,NHS LOGISTICS,1014002069,17.57,
Department of Health,Salisbury NHS Foundation Trust,12-Apr-13,DRESSINGS  -  PROCEDURE PACKS,Surgery,NHS LOGISTICS,1014002069,1.46,
Department of Health,Salisbury NHS Foundation Trust,12-Apr-13,BEVERAGES & AMBIENT FOOD,Surgery,NHS LOGISTICS,1014002069,29.46,
Department of Health,Salisbury NHS Foundation Trust,12-Apr-13,BEVERAGES & AMBIENT FOOD,Surgery,NHS LOGISTICS,1014002069,6.08,
Department of Health,Salisbury NHS Foundation Trust,12-Apr-13,MEDSURGCONS - OTHER,Surgery,NHS LOGISTICS,1014002069,127.2,
Department of Health,Salisbury NHS Foundation Trust,12-Apr-13,DRESSINGS  -  PROCEDURE PACKS,Surgery,NHS LOGISTICS,1014002069,13.67,
Department of Health,Salisbury NHS Foundation Trust,12-Apr-13,PAPER ITEMS GENERAL STATIONERY SUNDRIES,Surgery,NHS LOGISTICS,1014002069,10.04,
Department of Health,Salisbury NHS Foundation Trust,12-Apr-13,DRUGS,Surgery,NHS LOGISTICS,1014002069,90.6,
Department of Health,Salisbury NHS Foundation Trust,12-Apr-13,BEVERAGES & AMBIENT FOOD,Surgery,NHS LOGISTICS,1014002069,2.24,
Department of Health,Salisbury NHS Foundation Trust,12-Apr-13,DRUGS,Surgery,NHS LOGISTICS,1014002069,45.3,
Department of Health,Salisbury NHS Foundation Trust,12-Apr-13,DRESSINGS - PRE STERILE,Surgery,NHS LOGISTICS,1014002069,20.03,
Department of Health,Salisbury NHS Foundation Trust,12-Apr-13,DRESSINGS - PRE STERILE,Surgery,NHS LOGISTICS,1014002069,34.8,
Department of Health,Salisbury NHS Foundation Trust,12-Apr-13,DRESSINGS - PRE STERILE,Surgery,NHS LOGISTICS,1014002069,58.7,
Department of Health,Salisbury NHS Foundation Trust,12-Apr-13,PATIENT APPLIANCES,Surgery,NHS LOGISTICS,1014002069,21.27,
Department of Health,Salisbury NHS Foundation Trust,12-Apr-13,CLEANING MATERIALS PRODUCTS SUNDRIES,Surgery,NHS LOGISTICS,1014002069,6.4,
Department of Health,Salisbury NHS Foundation Trust,12-Apr-13,DISPOSABLE THEATRE DRAPES WIPES,Surgery,NHS LOGISTICS,1014002069,11.27,
Department of Health,Salisbury NHS Foundation Trust,12-Apr-13,OTHER MEDICAL SUPPLIES,Medicine,NHS LOGISTICS,1014002069,22.08,
Department of Health,Salisbury NHS Foundation Trust,12-Apr-13,DRESSINGS - PRE STERILE,Medicine,NHS LOGISTICS,1014002069,2.15,
Department of Health,Salisbury NHS Foundation Trust,12-Apr-13,DRESSINGS - PRE STERILE,Medicine,NHS LOGISTICS,1014002069,6.64,
Department of Health,Salisbury NHS Foundation Trust,12-Apr-13,OTHER MEDICAL SUPPLIES,Medicine,NHS LOGISTICS,1014002069,16.53,
Department of Health,Salisbury NHS Foundation Trust,12-Apr-13,CLEANING MATERIALS PRODUCTS SUNDRIES,Medicine,NHS LOGISTICS,1014002069,6.93,
Department of Health,Salisbury NHS Foundation Trust,12-Apr-13,TUBES,Medicine,NHS LOGISTICS,1014002069,6.16,
Department of Health,Salisbury NHS Foundation Trust,12-Apr-13,OTHER MEDICAL SUPPLIES,Medicine,NHS LOGISTICS,1014002069,5.68,
Department of Health,Salisbury NHS Foundation Trust,12-Apr-13,PATIENTS INCONTINENCE,Medicine,NHS LOGISTICS,1014002069,4.29,
Department of Health,Salisbury NHS Foundation Trust,12-Apr-13,TOILETRIES PERSONAL HYGIENE PRODUCTS,Medicine,NHS LOGISTICS,1014002069,19.08,
Department of Health,Salisbury NHS Foundation Trust,12-Apr-13,MEDSURGCONS - OTHER,Medicine,NHS LOGISTICS,1014002069,15.63,
Department of Health,Salisbury NHS Foundation Trust,12-Apr-13,MEDSURGCONS - OTHER,Medicine,NHS LOGISTICS,1014002069,12.4,
Department of Health,Salisbury NHS Foundation Trust,12-Apr-13,TISSUES HAND TOWELS & TOILET PAPER,Medicine,NHS LOGISTICS,1014002069,2.15,
Department of Health,Salisbury NHS Foundation Trust,12-Apr-13,MED SURG EQUIP REP MAINT CLEANING,Medicine,NHS LOGISTICS,1014002069,11.1,
Department of Health,Salisbury NHS Foundation Trust,12-Apr-13,NON DISPOSABLE BED LINEN,Medicine,NHS LOGISTICS,1014002069,10.77,
Department of Health,Salisbury NHS Foundation Trust,12-Apr-13,DRESSINGS  -  PROCEDURE PACKS,Surgery,NHS LOGISTICS,1014002069,1.17,
Department of Health,Salisbury NHS Foundation Trust,12-Apr-13,DRESSINGS  -  PROCEDURE PACKS,Surgery,NHS LOGISTICS,1014002069,1.75,
Department of Health,Salisbury NHS Foundation Trust,12-Apr-13,DRESSINGS - PRE STERILE,Surgery,NHS LOGISTICS,1014002069,29.35,
Department of Health,Salisbury NHS Foundation Trust,12-Apr-13,TISSUES HAND TOWELS & TOILET PAPER,Surgery,NHS LOGISTICS,1014002069,0.68,
Department of Health,Salisbury NHS Foundation Trust,12-Apr-13,TISSUES HAND TOWELS & TOILET PAPER,Surgery,NHS LOGISTICS,1014002069,1.82,
Department of Health,Salisbury NHS Foundation Trust,12-Apr-13,DISPOSABLE THEATRE DRAPES WIPES,Surgery,NHS LOGISTICS,1014002069,2.2,
Department of Health,Salisbury NHS Foundation Trust,12-Apr-13,OTHER MEDICAL SUPPLIES,Surgery,NHS LOGISTICS,1014002069,22.08,
Department of Health,Salisbury NHS Foundation Trust,12-Apr-13,BAGS SACKS - OTHER,Surgery,NHS LOGISTICS,1014002069,4.01,
Department of Health,Salisbury NHS Foundation Trust,12-Apr-13,OTHER MEDICAL SUPPLIES,Surgery,NHS LOGISTICS,1014002069,16.53,
Department of Health,Salisbury NHS Foundation Trust,12-Apr-13,COOKING & KITCHEN UTENSILS,Surgery,NHS LOGISTICS,1014002069,9.8,
Department of Health,Salisbury NHS Foundation Trust,12-Apr-13,CLEANING MATERIALS PRODUCTS SUNDRIES,Surgery,NHS LOGISTICS,1014002069,6.93,
Department of Health,Salisbury NHS Foundation Trust,12-Apr-13,PATIENTS INCONTINENCE,Surgery,NHS LOGISTICS,1014002069,4.05,
Department of Health,Salisbury NHS Foundation Trust,12-Apr-13,MED SURG EQUIP REP MAINT CLEANING,Surgery,NHS LOGISTICS,1014002069,17.25,
Department of Health,Salisbury NHS Foundation Trust,12-Apr-13,M & S EQUIPELECTEQUIPINST - OTHER,Surgery,NHS LOGISTICS,1014002069,63.63,
Department of Health,Salisbury NHS Foundation Trust,12-Apr-13,MEDSURGCONS - OTHER,Surgery,NHS LOGISTICS,1014002069,16.5,
Department of Health,Salisbury NHS Foundation Trust,12-Apr-13,DRESSINGS - PRE STERILE,Surgery,NHS LOGISTICS,1014002069,1.34,
Department of Health,Salisbury NHS Foundation Trust,12-Apr-13,PATIENTS INCONTINENCE,Surgery,NHS LOGISTICS,1014002069,12.88,
Department of Health,Salisbury NHS Foundation Trust,12-Apr-13,MEDSURGCONS - OTHER,Surgery,NHS LOGISTICS,1014002069,16.25,
Department of Health,Salisbury NHS Foundation Trust,12-Apr-13,MEDSURGCONS - OTHER,Surgery,NHS LOGISTICS,1014002069,10.42,
Department of Health,Salisbury NHS Foundation Trust,12-Apr-13,NON DISPOSABLE BED LINEN,Surgery,NHS LOGISTICS,1014002069,20.87,
Department of Health,Salisbury NHS Foundation Trust,12-Apr-13,PATIENT APPLIANCES,Surgery,NHS LOGISTICS,1014002069,5.32,
Department of Health,Salisbury NHS Foundation Trust,12-Apr-13,OTHER MEDICAL SUPPLIES,Medicine,NHS LOGISTICS,1014002069,51.75,
Department of Health,Salisbury NHS Foundation Trust,12-Apr-13,TISSUES HAND TOWELS & TOILET PAPER,Medicine,NHS LOGISTICS,1014002069,1.82,
Department of Health,Salisbury NHS Foundation Trust,12-Apr-13,OTHER MEDICAL SUPPLIES,Medicine,NHS LOGISTICS,1014002069,1.78,
Department of Health,Salisbury NHS Foundation Trust,12-Apr-13,DRESSINGS - PRE STERILE,Medicine,NHS LOGISTICS,1014002069,4.62,
Department of Health,Salisbury NHS Foundation Trust,12-Apr-13,OTHER MEDICAL SUPPLIES,Medicine,NHS LOGISTICS,1014002069,8.83,
Department of Health,Salisbury NHS Foundation Trust,12-Apr-13,TISSUES HAND TOWELS & TOILET PAPER,Medicine,NHS LOGISTICS,1014002069,0.88,
Department of Health,Salisbury NHS Foundation Trust,12-Apr-13,MEDSURGCONS - OTHER,Medicine,NHS LOGISTICS,1014002069,13.98,
Department of Health,Salisbury NHS Foundation Trust,12-Apr-13,MEDSURGCONS - OTHER,Medicine,NHS LOGISTICS,1014002069,9.32,
Department of Health,Salisbury NHS Foundation Trust,12-Apr-13,MEDSURGCONS - OTHER,Medicine,NHS LOGISTICS,1014002069,54.58,
Department of Health,Salisbury NHS Foundation Trust,12-Apr-13,OTHER MEDICAL SUPPLIES,Medicine,NHS LOGISTICS,1014002069,7.46,
Department of Health,Salisbury NHS Foundation Trust,12-Apr-13,MEDSURGCONS - OTHER,Medicine,NHS LOGISTICS,1014002069,15.63,
Department of Health,Salisbury NHS Foundation Trust,12-Apr-13,NON DISPOSABLE BED LINEN,Medicine,NHS LOGISTICS,1014002069,10.77,
Department of Health,Salisbury NHS Foundation Trust,12-Apr-13,DRESSINGS - PRE STERILE,Medicine,NHS LOGISTICS,1014002069,6.64,
Department of Health,Salisbury NHS Foundation Trust,12-Apr-13,OTHER MEDICAL SUPPLIES,Medicine,NHS LOGISTICS,1014002069,16.53,
Department of Health,Salisbury NHS Foundation Trust,12-Apr-13,PATIENTS INCONTINENCE,Medicine,NHS LOGISTICS,1014002069,3.34,
Department of Health,Salisbury NHS Foundation Trust,12-Apr-13,PATIENTS INCONTINENCE,Medicine,NHS LOGISTICS,1014002069,15.43,
Department of Health,Salisbury NHS Foundation Trust,12-Apr-13,PATIENTS INCONTINENCE,Medicine,NHS LOGISTICS,1014002069,6.32,
Department of Health,Salisbury NHS Foundation Trust,12-Apr-13,MED SURG EQUIP REP MAINT CLEANING,Medicine,NHS LOGISTICS,1014002069,17.25,
Department of Health,Salisbury NHS Foundation Trust,12-Apr-13,OTHER MEDICAL SUPPLIES,Medicine,NHS LOGISTICS,1014002069,5.68,
Department of Health,Salisbury NHS Foundation Trust,12-Apr-13,PATIENTS INCONTINENCE,Medicine,NHS LOGISTICS,1014002069,3.63,
Department of Health,Salisbury NHS Foundation Trust,12-Apr-13,PATIENTS INCONTINENCE,Medicine,NHS LOGISTICS,1014002069,9.58,
Department of Health,Salisbury NHS Foundation Trust,12-Apr-13,PATIENTS INCONTINENCE,Medicine,NHS LOGISTICS,1014002069,36.93,
Department of Health,Salisbury NHS Foundation Trust,12-Apr-13,TISSUES HAND TOWELS & TOILET PAPER,Medicine,NHS LOGISTICS,1014002069,0.36,
Department of Health,Salisbury NHS Foundation Trust,12-Apr-13,NON DISPOSABLE BED LINEN,Medicine,NHS LOGISTICS,1014002069,62.6,
Department of Health,Salisbury NHS Foundation Trust,12-Apr-13,PATIENT APPLIANCES,Medicine,NHS LOGISTICS,1014002069,23.75,
Department of Health,Salisbury NHS Foundation Trust,12-Apr-13,PATIENT APPLIANCES,Medicine,NHS LOGISTICS,1014002069,10.63,
Department of Health,Salisbury NHS Foundation Trust,12-Apr-13,PATIENT APPLIANCES,Medicine,NHS LOGISTICS,1014002069,19.17,
Department of Health,Salisbury NHS Foundation Trust,12-Apr-13,OTHER MEDICAL SUPPLIES,Medicine,NHS LOGISTICS,1014002069,16.53,
Department of Health,Salisbury NHS Foundation Trust,12-Apr-13,TISSUES HAND TOWELS & TOILET PAPER,Medicine,NHS LOGISTICS,1014002069,1.82,
Department of Health,Salisbury NHS Foundation Trust,12-Apr-13,PATIENTS INCONTINENCE,Medicine,NHS LOGISTICS,1014002069,8.1,
Department of Health,Salisbury NHS Foundation Trust,12-Apr-13,NON DISPOSABLE BED LINEN,Medicine,NHS LOGISTICS,1014002069,20.87,
Department of Health,Salisbury NHS Foundation Trust,12-Apr-13,BAGS SACKS - OTHER,Critical care,NHS LOGISTICS,1014002069,12.03,
Department of Health,Salisbury NHS Foundation Trust,12-Apr-13,OTHER MEDICAL SUPPLIES,Critical care,NHS LOGISTICS,1014002069,33.07,
Department of Health,Salisbury NHS Foundation Trust,12-Apr-13,TISSUES HAND TOWELS & TOILET PAPER,Critical care,NHS LOGISTICS,1014002069,3.63,
Department of Health,Salisbury NHS Foundation Trust,12-Apr-13,COOKING & KITCHEN UTENSILS,Critical care,NHS LOGISTICS,1014002069,7.35,
Department of Health,Salisbury NHS Foundation Trust,12-Apr-13,PATIENTS INCONTINENCE,Critical care,NHS LOGISTICS,1014002069,3.16,
Department of Health,Salisbury NHS Foundation Trust,12-Apr-13,NON DISPOSABLE BED LINEN,Critical care,NHS LOGISTICS,1014002069,12.56,
Department of Health,Salisbury NHS Foundation Trust,12-Apr-13,OTHER MEDICAL SUPPLIES,Critical care,NHS LOGISTICS,1014002069,3.26,
Department of Health,Salisbury NHS Foundation Trust,12-Apr-13,PATIENTS INCONTINENCE,Critical care,NHS LOGISTICS,1014002069,8.58,
Department of Health,Salisbury NHS Foundation Trust,12-Apr-13,PATIENTS INCONTINENCE,Critical care,NHS LOGISTICS,1014002069,16.53,
Department of Health,Salisbury NHS Foundation Trust,12-Apr-13,PATIENT APPLIANCES,Critical care,NHS LOGISTICS,1014002069,3.92,
Department of Health,Salisbury NHS Foundation Trust,12-Apr-13,DRUGS,Critical care,NHS LOGISTICS,1014002069,3.86,
Department of Health,Salisbury NHS Foundation Trust,12-Apr-13,MEDSURGCONS - OTHER,Critical care,NHS LOGISTICS,1014002069,18.74,
Department of Health,Salisbury NHS Foundation Trust,12-Apr-13,MEDSURGCONS - OTHER,Critical care,NHS LOGISTICS,1014002069,15.17,
Department of Health,Salisbury NHS Foundation Trust,12-Apr-13,MEDSURGCONS - OTHER,Critical care,NHS LOGISTICS,1014002069,10.42,
Department of Health,Salisbury NHS Foundation Trust,12-Apr-13,TOILETRIES PERSONAL HYGIENE PRODUCTS,Critical care,NHS LOGISTICS,1014002069,3.22,
Department of Health,Salisbury NHS Foundation Trust,12-Apr-13,NON DISPOSABLE BED LINEN,Critical care,NHS LOGISTICS,1014002069,20.87,
Department of Health,Salisbury NHS Foundation Trust,12-Apr-13,PATIENT APPLIANCES,Critical care,NHS LOGISTICS,1014002069,7.92,
Department of Health,Salisbury NHS Foundation Trust,12-Apr-13,PATIENT APPLIANCES,Critical care,NHS LOGISTICS,1014002069,10.63,
Department of Health,Salisbury NHS Foundation Trust,12-Apr-13,DISPOSABLE THEATRE DRAPES WIPES,Medicine,NHS LOGISTICS,1014002069,17.05,
Department of Health,Salisbury NHS Foundation Trust,12-Apr-13,DISPOSABLE THEATRE DRAPES WIPES,Medicine,NHS LOGISTICS,1014002069,11.27,
Department of Health,Salisbury NHS Foundation Trust,12-Apr-13,OTHER MEDICAL SUPPLIES,Surgery,NHS LOGISTICS,1014002069,13.25,
Department of Health,Salisbury NHS Foundation Trust,12-Apr-13,DRESSINGS  -  PROCEDURE PACKS,Surgery,NHS LOGISTICS,1014002069,7.5,
Department of Health,Salisbury NHS Foundation Trust,12-Apr-13,DRESSINGS - PRE STERILE,Surgery,NHS LOGISTICS,1014002069,1.71,
Department of Health,Salisbury NHS Foundation Trust,12-Apr-13,OTHER MEDICAL SUPPLIES,Clinical Support and Family Services,NHS LOGISTICS,1014002069,4.42,
Department of Health,Salisbury NHS Foundation Trust,12-Apr-13,MEDSURGCONS - OTHER,Clinical Support and Family Services,NHS LOGISTICS,1014002069,13.17,
Department of Health,Salisbury NHS Foundation Trust,12-Apr-13,TISSUES HAND TOWELS & TOILET PAPER,Clinical Support and Family Services,NHS LOGISTICS,1014002069,1.82,
Department of Health,Salisbury NHS Foundation Trust,12-Apr-13,COOKING & KITCHEN UTENSILS,Clinical Support and Family Services,NHS LOGISTICS,1014002069,1.23,
Department of Health,Salisbury NHS Foundation Trust,12-Apr-13,M & S EQUIPELECTEQUIPINST - OTHER,Clinical Support and Family Services,NHS LOGISTICS,1014002069,119.83,
Department of Health,Salisbury NHS Foundation Trust,12-Apr-13,M & S EQUIPELECTEQUIPINST - OTHER,Clinical Support and Family Services,NHS LOGISTICS,1014002069,196.88,
Department of Health,Salisbury NHS Foundation Trust,12-Apr-13,M & S EQUIPELECTEQUIPINST - OTHER,Clinical Support and Family Services,NHS LOGISTICS,1014002069,167.33,
Department of Health,Salisbury NHS Foundation Trust,12-Apr-13,M & S EQUIPELECTEQUIPINST - OTHER,Clinical Support and Family Services,NHS LOGISTICS,1014002069,241,
Department of Health,Salisbury NHS Foundation Trust,12-Apr-13,M & S EQUIPELECTEQUIPINST - OTHER,Clinical Support and Family Services,NHS LOGISTICS,1014002069,184.16,
Department of Health,Salisbury NHS Foundation Trust,12-Apr-13,OTHER MEDICAL SUPPLIES,Medicine,NHS LOGISTICS,1014002069,22.08,
Department of Health,Salisbury NHS Foundation Trust,12-Apr-13,DRESSINGS - PRE STERILE,Medicine,NHS LOGISTICS,1014002069,1.08,
Department of Health,Salisbury NHS Foundation Trust,12-Apr-13,OTHER MEDICAL SUPPLIES,Medicine,NHS LOGISTICS,1014002069,16.53,
Department of Health,Salisbury NHS Foundation Trust,12-Apr-13,TISSUES HAND TOWELS & TOILET PAPER,Medicine,NHS LOGISTICS,1014002069,1.82,
Department of Health,Salisbury NHS Foundation Trust,12-Apr-13,PATIENTS INCONTINENCE,Medicine,NHS LOGISTICS,1014002069,3.34,
Department of Health,Salisbury NHS Foundation Trust,12-Apr-13,PATIENTS INCONTINENCE,Medicine,NHS LOGISTICS,1014002069,4.05,
Department of Health,Salisbury NHS Foundation Trust,12-Apr-13,MEDSURGCONS - OTHER,Medicine,NHS LOGISTICS,1014002069,18.25,
Department of Health,Salisbury NHS Foundation Trust,12-Apr-13,PATIENTS INCONTINENCE,Medicine,NHS LOGISTICS,1014002069,1.82,
Department of Health,Salisbury NHS Foundation Trust,12-Apr-13,PATIENTS INCONTINENCE,Medicine,NHS LOGISTICS,1014002069,18.47,
Department of Health,Salisbury NHS Foundation Trust,12-Apr-13,DRESSINGS - PRE STERILE,Medicine,NHS LOGISTICS,1014002069,0.62,
Department of Health,Salisbury NHS Foundation Trust,12-Apr-13,NON DISPOSABLE BED LINEN,Medicine,NHS LOGISTICS,1014002069,10.77,
Department of Health,Salisbury NHS Foundation Trust,12-Apr-13,SURGICAL INSTRUMENTS: DISPOSABLE,Clinical Support and Family Services,NHS LOGISTICS,1014002069,13.38,
Department of Health,Salisbury NHS Foundation Trust,12-Apr-13,DRESSINGS - PRE STERILE,Medicine,NHS LOGISTICS,1014002069,29.49,
Department of Health,Salisbury NHS Foundation Trust,12-Apr-13,TISSUES HAND TOWELS & TOILET PAPER,Medicine,NHS LOGISTICS,1014002069,0.88,
Department of Health,Salisbury NHS Foundation Trust,12-Apr-13,MEDSURGCONS-SUTURES,Medicine,NHS LOGISTICS,1014002069,22.56,
Department of Health,Salisbury NHS Foundation Trust,12-Apr-13,OTHER MEDICAL SUPPLIES,Medicine,NHS LOGISTICS,1014002069,22.08,
Department of Health,Salisbury NHS Foundation Trust,12-Apr-13,PATIENTS INCONTINENCE,Medicine,NHS LOGISTICS,1014002069,17.3,
Department of Health,Salisbury NHS Foundation Trust,12-Apr-13,PATIENTS INCONTINENCE,Medicine,NHS LOGISTICS,1014002069,16.73,
Department of Health,Salisbury NHS Foundation Trust,12-Apr-13,OTHER MEDICAL SUPPLIES,Medicine,NHS LOGISTICS,1014002069,16.53,
Department of Health,Salisbury NHS Foundation Trust,12-Apr-13,PATIENTS INCONTINENCE,Medicine,NHS LOGISTICS,1014002069,4.05,
Department of Health,Salisbury NHS Foundation Trust,12-Apr-13,TUBES,Medicine,NHS LOGISTICS,1014002069,6.16,
Department of Health,Salisbury NHS Foundation Trust,12-Apr-13,DISPOSABLE TABLE LINEN,Medicine,NHS LOGISTICS,1014002069,3.25,
Department of Health,Salisbury NHS Foundation Trust,12-Apr-13,PATIENTS INCONTINENCE,Medicine,NHS LOGISTICS,1014002069,8.58,
Department of Health,Salisbury NHS Foundation Trust,12-Apr-13,DRESSINGS - PRE STERILE,Medicine,NHS LOGISTICS,1014002069,0.62,
Department of Health,Salisbury NHS Foundation Trust,12-Apr-13,TISSUES HAND TOWELS & TOILET PAPER,Medicine,NHS LOGISTICS,1014002069,0.72,
Department of Health,Salisbury NHS Foundation Trust,12-Apr-13,NON DISPOSABLE BED LINEN,Medicine,NHS LOGISTICS,1014002069,20.87,
Department of Health,Salisbury NHS Foundation Trust,12-Apr-13,OTHER MEDICAL SUPPLIES,Critical care,NHS LOGISTICS,1014002069,22.08,
Department of Health,Salisbury NHS Foundation Trust,12-Apr-13,MEDSURGCONS - OTHER,Critical care,NHS LOGISTICS,1014002069,16.25,
Department of Health,Salisbury NHS Foundation Trust,12-Apr-13,MEDSURGCONS - OTHER,Critical care,NHS LOGISTICS,1014002069,18.74,
Department of Health,Salisbury NHS Foundation Trust,12-Apr-13,MEDSURGCONS - OTHER,Critical care,NHS LOGISTICS,1014002069,16.25,
Department of Health,Salisbury NHS Foundation Trust,12-Apr-13,TISSUES HAND TOWELS & TOILET PAPER,Clinical Support and Family Services,NHS LOGISTICS,1014002069,3.63,
Department of Health,Salisbury NHS Foundation Trust,12-Apr-13,NON DISPOSABLE BED LINEN,Clinical Support and Family Services,NHS LOGISTICS,1014002069,5.38,
Department of Health,Salisbury NHS Foundation Trust,12-Apr-13,OTHER MEDICAL SUPPLIES,Critical care,NHS LOGISTICS,1014002069,22.08,
Department of Health,Salisbury NHS Foundation Trust,12-Apr-13,HEALTHCARE - WEAR,Critical care,NHS LOGISTICS,1014002069,28.58,
Department of Health,Salisbury NHS Foundation Trust,12-Apr-13,DRESSINGS - PRE STERILE,Critical care,NHS LOGISTICS,1014002069,6.64,
Department of Health,Salisbury NHS Foundation Trust,12-Apr-13,DRESSINGS - PRE STERILE,Critical care,NHS LOGISTICS,1014002069,9.7,
Department of Health,Salisbury NHS Foundation Trust,12-Apr-13,COOKING & KITCHEN UTENSILS,Critical care,NHS LOGISTICS,1014002069,2.45,
Department of Health,Salisbury NHS Foundation Trust,12-Apr-13,CLEANING MATERIALS PRODUCTS SUNDRIES,Critical care,NHS LOGISTICS,1014002069,7.91,
Department of Health,Salisbury NHS Foundation Trust,12-Apr-13,NON DISPOSABLE BED LINEN,Critical care,NHS LOGISTICS,1014002069,10.77,
Department of Health,Salisbury NHS Foundation Trust,12-Apr-13,PATIENT APPLIANCES,Critical care,NHS LOGISTICS,1014002069,5.32,
Department of Health,Salisbury NHS Foundation Trust,12-Apr-13,ANAESTHETIC EQUIPMENT ACCESSORIES,Critical care,NHS LOGISTICS,1014002069,8.42,
Department of Health,Salisbury NHS Foundation Trust,12-Apr-13,DRESSINGS - PRE STERILE,Critical care,NHS LOGISTICS,1014002069,9.05,
Department of Health,Salisbury NHS Foundation Trust,12-Apr-13,NON DISPOSABLE BED LINEN,Critical care,NHS LOGISTICS,1014002069,10.77,
Department of Health,Salisbury NHS Foundation Trust,12-Apr-13,OTHER MEDICAL SUPPLIES,Medicine,NHS LOGISTICS,1014002069,17.67,
Department of Health,Salisbury NHS Foundation Trust,12-Apr-13,PATIENTS INCONTINENCE,Medicine,NHS LOGISTICS,1014002069,8.62,
Department of Health,Salisbury NHS Foundation Trust,12-Apr-13,BAGS SACKS - OTHER,Medicine,NHS LOGISTICS,1014002069,4.01,
Department of Health,Salisbury NHS Foundation Trust,12-Apr-13,OTHER MEDICAL SUPPLIES,Medicine,NHS LOGISTICS,1014002069,16.53,
Department of Health,Salisbury NHS Foundation Trust,12-Apr-13,TISSUES HAND TOWELS & TOILET PAPER,Medicine,NHS LOGISTICS,1014002069,1.82,
Department of Health,Salisbury NHS Foundation Trust,12-Apr-13,COOKING & KITCHEN UTENSILS,Medicine,NHS LOGISTICS,1014002069,8.58,
Department of Health,Salisbury NHS Foundation Trust,12-Apr-13,DRESSINGS  -  PROCEDURE PACKS,Medicine,NHS LOGISTICS,1014002069,2.78,
Department of Health,Salisbury NHS Foundation Trust,12-Apr-13,MEDSURGCONS - OTHER,Medicine,NHS LOGISTICS,1014002069,33,
Department of Health,Salisbury NHS Foundation Trust,12-Apr-13,TOILETRIES PERSONAL HYGIENE PRODUCTS,Medicine,NHS LOGISTICS,1014002069,9.54,
Department of Health,Salisbury NHS Foundation Trust,12-Apr-13,MEDSURGCONS - OTHER,Medicine,NHS LOGISTICS,1014002069,5.21,
Department of Health,Salisbury NHS Foundation Trust,12-Apr-13,NON DISPOSABLE BED LINEN,Medicine,NHS LOGISTICS,1014002069,5.38,
Department of Health,Salisbury NHS Foundation Trust,12-Apr-13,PATIENT APPLIANCES,Medicine,NHS LOGISTICS,1014002069,5.32,
Department of Health,Salisbury NHS Foundation Trust,12-Apr-13,TISSUES HAND TOWELS & TOILET PAPER,Clinical Support and Family Services,NHS LOGISTICS,1014002069,10.9,
Department of Health,Salisbury NHS Foundation Trust,12-Apr-13,TISSUES HAND TOWELS & TOILET PAPER,Clinical Support and Family Services,NHS LOGISTICS,1014002069,40.2,
Department of Health,Salisbury NHS Foundation Trust,12-Apr-13,COOKING & KITCHEN UTENSILS,Clinical Support and Family Services,NHS LOGISTICS,1014002069,4.9,
Department of Health,Salisbury NHS Foundation Trust,12-Apr-13,MEDSURGCONS - OTHER,Clinical Support and Family Services,NHS LOGISTICS,1014002069,9.32,
Department of Health,Salisbury NHS Foundation Trust,12-Apr-13,MEDSURGCONS - OTHER,Clinical Support and Family Services,NHS LOGISTICS,1014002069,5.21,
Department of Health,Salisbury NHS Foundation Trust,12-Apr-13,NON DISPOSABLE BED LINEN,Clinical Support and Family Services,NHS LOGISTICS,1014002069,22.83,
Department of Health,Salisbury NHS Foundation Trust,12-Apr-13,NON DISPOSABLE BED LINEN,Clinical Support and Family Services,NHS LOGISTICS,1014002069,20.87,
Department of Health,Salisbury NHS Foundation Trust,12-Apr-13,OTHER MEDICAL SUPPLIES,Clinical Support and Family Services,NHS LOGISTICS,1014002069,57.74,
Department of Health,Salisbury NHS Foundation Trust,12-Apr-13,COOKING & KITCHEN UTENSILS,Clinical Support and Family Services,NHS LOGISTICS,1014002069,2.45,
Department of Health,Salisbury NHS Foundation Trust,12-Apr-13,TUBES,Clinical Support and Family Services,NHS LOGISTICS,1014002069,6.16,
Department of Health,Salisbury NHS Foundation Trust,12-Apr-13,BABY TEXTURE MODIFIED FOODS,Clinical Support and Family Services,NHS LOGISTICS,1014002069,14.77,
Department of Health,Salisbury NHS Foundation Trust,12-Apr-13,MED SURG EQUIP REP MAINT CLEANING,Clinical Support and Family Services,NHS LOGISTICS,1014002069,67.4,
Department of Health,Salisbury NHS Foundation Trust,12-Apr-13,MED SURG EQUIP REP MAINT CLEANING,Clinical Support and Family Services,NHS LOGISTICS,1014002069,108.7,
Department of Health,Salisbury NHS Foundation Trust,12-Apr-13,MED SURG EQUIP REP MAINT CLEANING,Clinical Support and Family Services,NHS LOGISTICS,1014002069,11.68,
Department of Health,Salisbury NHS Foundation Trust,12-Apr-13,MED SURG EQUIP REP MAINT CLEANING,Clinical Support and Family Services,NHS LOGISTICS,1014002069,11.68,
Department of Health,Salisbury NHS Foundation Trust,12-Apr-13,OTHER MEDICAL SUPPLIES,Medicine,NHS LOGISTICS,1014002069,4.42,
Department of Health,Salisbury NHS Foundation Trust,12-Apr-13,DRESSINGS - PRE STERILE,Clinical Support and Family Services,NHS LOGISTICS,1014002069,6.64,
Department of Health,Salisbury NHS Foundation Trust,12-Apr-13,DRESSINGS - PRE STERILE,Clinical Support and Family Services,NHS LOGISTICS,1014002069,2.73,
Department of Health,Salisbury NHS Foundation Trust,12-Apr-13,OTHER MEDICAL SUPPLIES,Clinical Support and Family Services,NHS LOGISTICS,1014002069,19.37,
Department of Health,Salisbury NHS Foundation Trust,12-Apr-13,TUBES,Clinical Support and Family Services,NHS LOGISTICS,1014002069,6.88,
Department of Health,Salisbury NHS Foundation Trust,12-Apr-13,TUBES,Clinical Support and Family Services,NHS LOGISTICS,1014002069,7.25,
Department of Health,Salisbury NHS Foundation Trust,12-Apr-13,TISSUES HAND TOWELS & TOILET PAPER,Clinical Support and Family Services,NHS LOGISTICS,1014002069,7.27,
Department of Health,Salisbury NHS Foundation Trust,12-Apr-13,MEDSURGCONS - OTHER,Clinical Support and Family Services,NHS LOGISTICS,1014002069,3.42,
Department of Health,Salisbury NHS Foundation Trust,12-Apr-13,MEDSURGCONS - OTHER,Clinical Support and Family Services,NHS LOGISTICS,1014002069,2.21,
Department of Health,Salisbury NHS Foundation Trust,12-Apr-13,TOILETRIES PERSONAL HYGIENE PRODUCTS,Clinical Support and Family Services,NHS LOGISTICS,1014002069,3.83,
Department of Health,Salisbury NHS Foundation Trust,12-Apr-13,DRESSINGS - PRE STERILE,Clinical Support and Family Services,NHS LOGISTICS,1014002069,10.08,
Department of Health,Salisbury NHS Foundation Trust,12-Apr-13,OTHER MEDICAL SUPPLIES,Surgery,NHS LOGISTICS,1014002069,39.17,
Department of Health,Salisbury NHS Foundation Trust,12-Apr-13,ANAESTHETIC EQUIPMENT ACCESSORIES,Surgery,NHS LOGISTICS,1014002069,2.03,
Department of Health,Salisbury NHS Foundation Trust,12-Apr-13,PATIENTS INCONTINENCE,Surgery,NHS LOGISTICS,1014002069,8.1,
Department of Health,Salisbury NHS Foundation Trust,12-Apr-13,OTHER MEDICAL SUPPLIES,Surgery,NHS LOGISTICS,1014002069,5.68,
Department of Health,Salisbury NHS Foundation Trust,12-Apr-13,PATIENT APPLIANCES,Surgery,NHS LOGISTICS,1014002069,7.92,
Department of Health,Salisbury NHS Foundation Trust,12-Apr-13,OTHER MEDICAL SUPPLIES,Surgery,NHS LOGISTICS,1014002069,17.67,
Department of Health,Salisbury NHS Foundation Trust,12-Apr-13,OTHER MEDICAL SUPPLIES,Surgery,NHS LOGISTICS,1014002069,45.85,
Department of Health,Salisbury NHS Foundation Trust,12-Apr-13,MEDSURGCONS - OTHER,Surgery,NHS LOGISTICS,1014002069,10.78,
Department of Health,Salisbury NHS Foundation Trust,12-Apr-13,MEDSURGCONS - OTHER,Surgery,NHS LOGISTICS,1014002069,10.78,
Department of Health,Salisbury NHS Foundation Trust,12-Apr-13,DRESSINGS  -  PROCEDURE PACKS,Surgery,NHS LOGISTICS,1014002069,15.83,
Department of Health,Salisbury NHS Foundation Trust,12-Apr-13,DRESSINGS - PRE STERILE,Surgery,NHS LOGISTICS,1014002069,5.13,
Department of Health,Salisbury NHS Foundation Trust,12-Apr-13,COOKING & KITCHEN UTENSILS,Surgery,NHS LOGISTICS,1014002069,17.57,
Department of Health,Salisbury NHS Foundation Trust,12-Apr-13,OTHER MEDICAL SUPPLIES,Medicine,NHS LOGISTICS,1014002069,22.08,
Department of Health,Salisbury NHS Foundation Trust,12-Apr-13,DRESSINGS - PRE STERILE,Medicine,NHS LOGISTICS,1014002069,1.08,
Department of Health,Salisbury NHS Foundation Trust,12-Apr-13,DRESSINGS - PRE STERILE,Medicine,NHS LOGISTICS,1014002069,5.74,
Department of Health,Salisbury NHS Foundation Trust,12-Apr-13,MEDSURGCONS - OTHER,Medicine,NHS LOGISTICS,1014002069,9.12,
Department of Health,Salisbury NHS Foundation Trust,12-Apr-13,PATIENT APPLIANCES,Medicine,NHS LOGISTICS,1014002069,8.23,
Department of Health,Salisbury NHS Foundation Trust,12-Apr-13,PATIENT APPLIANCES,Medicine,NHS LOGISTICS,1014002069,8.23,
Department of Health,Salisbury NHS Foundation Trust,12-Apr-13,PATIENT APPLIANCES,Medicine,NHS LOGISTICS,1014002069,8.23,
Department of Health,Salisbury NHS Foundation Trust,12-Apr-13,TUBES,Medicine,NHS LOGISTICS,1014002069,6.16,
Department of Health,Salisbury NHS Foundation Trust,12-Apr-13,MEDSURGCONS-SUTURES,Medicine,NHS LOGISTICS,1014002069,62.64,
Department of Health,Salisbury NHS Foundation Trust,12-Apr-13,MEDSURGCONS - OTHER,Medicine,NHS LOGISTICS,1014002069,10.42,
Department of Health,Salisbury NHS Foundation Trust,12-Apr-13,NON DISPOSABLE BED LINEN,Medicine,NHS LOGISTICS,1014002069,10.77,
Department of Health,Salisbury NHS Foundation Trust,12-Apr-13,DRESSINGS - PRE STERILE,Critical care,NHS LOGISTICS,1014002069,6.64,
Department of Health,Salisbury NHS Foundation Trust,12-Apr-13,TISSUES HAND TOWELS & TOILET PAPER,Critical care,NHS LOGISTICS,1014002069,10.9,
Department of Health,Salisbury NHS Foundation Trust,12-Apr-13,DRESSINGS - PRE STERILE,Critical care,NHS LOGISTICS,1014002069,41.44,
Department of Health,Salisbury NHS Foundation Trust,12-Apr-13,DRESSINGS - PRE STERILE,Critical care,NHS LOGISTICS,1014002069,30,
Department of Health,Salisbury NHS Foundation Trust,12-Apr-13,MEDSURGCONS-SUTURES,Critical care,NHS LOGISTICS,1014002069,43.29,
Department of Health,Salisbury NHS Foundation Trust,12-Apr-13,MED SURG EQUIP REP MAINT CLEANING,Clinical Support and Family Services,NHS LOGISTICS,1014002069,91.83,
Department of Health,Salisbury NHS Foundation Trust,12-Apr-13,TISSUES HAND TOWELS & TOILET PAPER,Clinical Support and Family Services,NHS LOGISTICS,1014002069,1.82,
Department of Health,Salisbury NHS Foundation Trust,12-Apr-13,TOILETRIES PERSONAL HYGIENE PRODUCTS,Clinical Support and Family Services,NHS LOGISTICS,1014002069,6,
Department of Health,Salisbury NHS Foundation Trust,12-Apr-13,M & S EQUIPELECTEQUIPINST - OTHER,Clinical Support and Family Services,NHS LOGISTICS,1014002069,180.28,
Department of Health,Salisbury NHS Foundation Trust,12-Apr-13,TISSUES HAND TOWELS & TOILET PAPER,Clinical Support and Family Services,NHS LOGISTICS,1014002069,1.33,
Department of Health,Salisbury NHS Foundation Trust,12-Apr-13,DRESSINGS - PRE STERILE,Clinical Support and Family Services,NHS LOGISTICS,1014002069,0.39,
Department of Health,Salisbury NHS Foundation Trust,12-Apr-13,OTHER MEDICAL SUPPLIES,Clinical Support and Family Services,NHS LOGISTICS,1014002069,6.52,
Department of Health,Salisbury NHS Foundation Trust,12-Apr-13,MEDSURGCONS - OTHER,Clinical Support and Family Services,NHS LOGISTICS,1014002069,5.21,
Department of Health,Salisbury NHS Foundation Trust,12-Apr-13,NON DISPOSABLE BED LINEN,Clinical Support and Family Services,NHS LOGISTICS,1014002069,16.15,
Department of Health,Salisbury NHS Foundation Trust,12-Apr-13,DRESSINGS - PRE STERILE,Medicine,NHS LOGISTICS,1014002069,45.58,
Department of Health,Salisbury NHS Foundation Trust,12-Apr-13,DRESSINGS - PRE STERILE,Medicine,NHS LOGISTICS,1014002069,55.82,
Department of Health,Salisbury NHS Foundation Trust,12-Apr-13,MEDSURGCONS - OTHER,Surgery,NHS LOGISTICS,1014002069,3.72,
Department of Health,Salisbury NHS Foundation Trust,12-Apr-13,MEDSURGCONS - OTHER,Medicine,NHS LOGISTICS,1014002069,31.84,
Department of Health,Salisbury NHS Foundation Trust,12-Apr-13,ANAESTHETIC EQUIPMENT ACCESSORIES,Clinical Support and Family Services,NHS LOGISTICS,1014002069,61.63,
Department of Health,Salisbury NHS Foundation Trust,12-Apr-13,ANAESTHETIC EQUIPMENT ACCESSORIES,Clinical Support and Family Services,NHS LOGISTICS,1014002069,44.02,
Department of Health,Salisbury NHS Foundation Trust,12-Apr-13,MEDSURGCONS-SUTURES,Surgery,NHS LOGISTICS,1014002069,90.43,
Department of Health,Salisbury NHS Foundation Trust,12-Apr-13,MEDSURGCONS-SUTURES,Surgery,NHS LOGISTICS,1014002069,90.43,
Department of Health,Salisbury NHS Foundation Trust,12-Apr-13,HARD/SOFTWARE-OFF THE SHELF APPLICATIONS,Medicine,NHS LOGISTICS,1014002069,39.26,
Department of Health,Salisbury NHS Foundation Trust,12-Apr-13,BABY TEXTURE MODIFIED FOODS,Clinical Support and Family Services,NHS LOGISTICS,1014002069,17.7,
Department of Health,Salisbury NHS Foundation Trust,12-Apr-13,COOKING & KITCHEN UTENSILS,Clinical Support and Family Services,NHS LOGISTICS,1014002069,2.45,
Department of Health,Salisbury NHS Foundation Trust,12-Apr-13,DISPOSABLE THEATRE DRAPES WIPES,Clinical Support and Family Services,NHS LOGISTICS,1014002069,1.63,
Department of Health,Salisbury NHS Foundation Trust,12-Apr-13,MEDSURGCONS - OTHER,Clinical Support and Family Services,NHS LOGISTICS,1014002069,10.78,
Department of Health,Salisbury NHS Foundation Trust,12-Apr-13,MEDSURGCONS - OTHER,Clinical Support and Family Services,NHS LOGISTICS,1014002069,10.78,
Department of Health,Salisbury NHS Foundation Trust,12-Apr-13,DRESSINGS - PRE STERILE,Clinical Support and Family Services,NHS LOGISTICS,1014002069,0.39,
Department of Health,Salisbury NHS Foundation Trust,12-Apr-13,LAB EQUIP-LABORATORY APPARATUS,Clinical Support and Family Services,NHS LOGISTICS,1014002069,7.55,
Department of Health,Salisbury NHS Foundation Trust,12-Apr-13,DRUGS,Clinical Support and Family Services,NHS LOGISTICS,1014002069,0.84,
Department of Health,Salisbury NHS Foundation Trust,12-Apr-13,TISSUES HAND TOWELS & TOILET PAPER,Clinical Support and Family Services,NHS LOGISTICS,1014002069,20.1,
Department of Health,Salisbury NHS Foundation Trust,12-Apr-13,BABY TEXTURE MODIFIED FOODS,Clinical Support and Family Services,NHS LOGISTICS,1014002069,29.53,
Department of Health,Salisbury NHS Foundation Trust,12-Apr-13,OTHER MEDICAL SUPPLIES,Clinical Support and Family Services,NHS LOGISTICS,1014002069,2.8,
Department of Health,Salisbury NHS Foundation Trust,12-Apr-13,OTHER MEDICAL SUPPLIES,Clinical Support and Family Services,NHS LOGISTICS,1014002069,8.42,
Department of Health,Salisbury NHS Foundation Trust,12-Apr-13,TISSUES HAND TOWELS & TOILET PAPER,Clinical Support and Family Services,NHS LOGISTICS,1014002069,2.25,
Department of Health,Salisbury NHS Foundation Trust,12-Apr-13,TOILETRIES PERSONAL HYGIENE PRODUCTS,Clinical Support and Family Services,NHS LOGISTICS,1014002069,3.97,
Department of Health,Salisbury NHS Foundation Trust,12-Apr-13,DISPOSABLE THEATRE DRAPES WIPES,Clinical Support and Family Services,NHS LOGISTICS,1014002069,0.63,
Department of Health,Salisbury NHS Foundation Trust,12-Apr-13,NON DISPOSABLE BED LINEN,Clinical Support and Family Services,NHS LOGISTICS,1014002069,5.38,
Department of Health,Salisbury NHS Foundation Trust,12-Apr-13,MEDSURGCONS - OTHER,Clinical Support and Family Services,NHS LOGISTICS,1014002069,5.71,
Department of Health,Salisbury NHS Foundation Trust,12-Apr-13,COOKING & KITCHEN UTENSILS,Clinical Support and Family Services,NHS LOGISTICS,1014002069,2.45,
Department of Health,Salisbury NHS Foundation Trust,12-Apr-13,DISPOSABLE THEATRE DRAPES WIPES,Clinical Support and Family Services,NHS LOGISTICS,1014002069,7.12,
Department of Health,Salisbury NHS Foundation Trust,12-Apr-13,DISPOSABLE THEATRE DRAPES WIPES,Clinical Support and Family Services,NHS LOGISTICS,1014002069,11.47,
Department of Health,Salisbury NHS Foundation Trust,12-Apr-13,TISSUES HAND TOWELS & TOILET PAPER,Clinical Support and Family Services,NHS LOGISTICS,1014002069,46.5,
Department of Health,Salisbury NHS Foundation Trust,12-Apr-13,DRESSINGS - PRE STERILE,Clinical Support and Family Services,NHS LOGISTICS,1014002069,1.82,
Department of Health,Salisbury NHS Foundation Trust,12-Apr-13,DRESSINGS - PRE STERILE,Clinical Support and Family Services,NHS LOGISTICS,1014002069,6.87,
Department of Health,Salisbury NHS Foundation Trust,12-Apr-13,DRESSINGS - PRE STERILE,Clinical Support and Family Services,NHS LOGISTICS,1014002069,2.15,
Department of Health,Salisbury NHS Foundation Trust,12-Apr-13,OTHER MEDICAL SUPPLIES,Clinical Support and Family Services,NHS LOGISTICS,1014002069,81.68,
Department of Health,Salisbury NHS Foundation Trust,12-Apr-13,MEDSURGCONS - OTHER,Clinical Support and Family Services,NHS LOGISTICS,1014002069,6.87,
Department of Health,Salisbury NHS Foundation Trust,12-Apr-13,MEDSURGCONS - OTHER,Clinical Support and Family Services,NHS LOGISTICS,1014002069,9.89,
Department of Health,Salisbury NHS Foundation Trust,12-Apr-13,M & S EQUIPELECTEQUIPINST - OTHER,Clinical Support and Family Services,NHS LOGISTICS,1014002069,15.91,
Department of Health,Salisbury NHS Foundation Trust,12-Apr-13,M & S EQUIPELECTEQUIPINST - OTHER,Clinical Support and Family Services,NHS LOGISTICS,1014002069,3.47,
Department of Health,Salisbury NHS Foundation Trust,12-Apr-13,FRUIT & VEGETABLES,Facilities Directorate,NHS LOGISTICS,1014002069,37.84,
Department of Health,Salisbury NHS Foundation Trust,12-Apr-13,BEVERAGES & AMBIENT FOOD,Facilities Directorate,NHS LOGISTICS,1014002069,50.58,
Department of Health,Salisbury NHS Foundation Trust,12-Apr-13,BEVERAGES & AMBIENT FOOD,Facilities Directorate,NHS LOGISTICS,1014002069,12.06,
Department of Health,Salisbury NHS Foundation Trust,12-Apr-13,BEVERAGES & AMBIENT FOOD,Facilities Directorate,NHS LOGISTICS,1014002069,26.55,
Department of Health,Salisbury NHS Foundation Trust,12-Apr-13,BEVERAGES & AMBIENT FOOD,Facilities Directorate,NHS LOGISTICS,1014002069,36,
Department of Health,Salisbury NHS Foundation Trust,12-Apr-13,BEVERAGES & AMBIENT FOOD,Facilities Directorate,NHS LOGISTICS,1014002069,9.6,
Department of Health,Salisbury NHS Foundation Trust,12-Apr-13,BEVERAGES & AMBIENT FOOD,Facilities Directorate,NHS LOGISTICS,1014002069,12.75,
Department of Health,Salisbury NHS Foundation Trust,12-Apr-13,BEVERAGES & AMBIENT FOOD,Facilities Directorate,NHS LOGISTICS,1014002069,12.75,
Department of Health,Salisbury NHS Foundation Trust,12-Apr-13,BEVERAGES & AMBIENT FOOD,Facilities Directorate,NHS LOGISTICS,1014002069,14.4,
Department of Health,Salisbury NHS Foundation Trust,12-Apr-13,BEVERAGES & AMBIENT FOOD,Facilities Directorate,NHS LOGISTICS,1014002069,33.16,
Department of Health,Salisbury NHS Foundation Trust,12-Apr-13,BEVERAGES & AMBIENT FOOD,Facilities Directorate,NHS LOGISTICS,1014002069,31,
Department of Health,Salisbury NHS Foundation Trust,12-Apr-13,BEVERAGES & AMBIENT FOOD,Facilities Directorate,NHS LOGISTICS,1014002069,4.64,
Department of Health,Salisbury NHS Foundation Trust,12-Apr-13,BEVERAGES & AMBIENT FOOD,Facilities Directorate,NHS LOGISTICS,1014002069,3.81,
Department of Health,Salisbury NHS Foundation Trust,12-Apr-13,FLAVOURINGS HERBS SPICES,Facilities Directorate,NHS LOGISTICS,1014002069,4.15,
Department of Health,Salisbury NHS Foundation Trust,12-Apr-13,FLAVOURINGS HERBS SPICES,Facilities Directorate,NHS LOGISTICS,1014002069,5.24,
Department of Health,Salisbury NHS Foundation Trust,12-Apr-13,BEVERAGES & AMBIENT FOOD,Facilities Directorate,NHS LOGISTICS,1014002069,8.1,
Department of Health,Salisbury NHS Foundation Trust,12-Apr-13,BEVERAGES & AMBIENT FOOD,Facilities Directorate,NHS LOGISTICS,1014002069,18.24,
Department of Health,Salisbury NHS Foundation Trust,12-Apr-13,BEVERAGES & AMBIENT FOOD,Facilities Directorate,NHS LOGISTICS,1014002069,9.68,
Department of Health,Salisbury NHS Foundation Trust,12-Apr-13,FRUIT & VEGETABLES,Facilities Directorate,NHS LOGISTICS,1014002069,7.58,
Department of Health,Salisbury NHS Foundation Trust,12-Apr-13,BEVERAGES & AMBIENT FOOD,Facilities Directorate,NHS LOGISTICS,1014002069,7.02,
Department of Health,Salisbury NHS Foundation Trust,12-Apr-13,BEVERAGES & AMBIENT FOOD,Facilities Directorate,NHS LOGISTICS,1014002069,23.4,
Department of Health,Salisbury NHS Foundation Trust,12-Apr-13,BEVERAGES & AMBIENT FOOD,Facilities Directorate,NHS LOGISTICS,1014002069,9.66,
Department of Health,Salisbury NHS Foundation Trust,12-Apr-13,FLAVOURINGS HERBS SPICES,Facilities Directorate,NHS LOGISTICS,1014002069,12.12,
Department of Health,Salisbury NHS Foundation Trust,12-Apr-13,FRUIT & VEGETABLES,Facilities Directorate,NHS LOGISTICS,1014002069,9.84,
Department of Health,Salisbury NHS Foundation Trust,12-Apr-13,EGGS MILK OTHER DAIRY PRODUCTS,Facilities Directorate,NHS LOGISTICS,1014002069,18.6,
Department of Health,Salisbury NHS Foundation Trust,12-Apr-13,LIQUID REFRESHMENTS,Facilities Directorate,NHS LOGISTICS,1014002069,73.8,
Department of Health,Salisbury NHS Foundation Trust,12-Apr-13,BEVERAGES & AMBIENT FOOD,Facilities Directorate,NHS LOGISTICS,1014002069,41.36,
Department of Health,Salisbury NHS Foundation Trust,12-Apr-13,BEVERAGES & AMBIENT FOOD,Facilities Directorate,NHS LOGISTICS,1014002069,10.26,
Department of Health,Salisbury NHS Foundation Trust,12-Apr-13,FRUIT & VEGETABLES,Facilities Directorate,NHS LOGISTICS,1014002069,53.4,
Department of Health,Salisbury NHS Foundation Trust,12-Apr-13,FRUIT & VEGETABLES,Facilities Directorate,NHS LOGISTICS,1014002069,12.06,
Department of Health,Salisbury NHS Foundation Trust,12-Apr-13,FRUIT & VEGETABLES,Facilities Directorate,NHS LOGISTICS,1014002069,10.92,
Department of Health,Salisbury NHS Foundation Trust,12-Apr-13,FRUIT & VEGETABLES,Facilities Directorate,NHS LOGISTICS,1014002069,52.5,
Department of Health,Salisbury NHS Foundation Trust,12-Apr-13,FRUIT & VEGETABLES,Facilities Directorate,NHS LOGISTICS,1014002069,19.44,
Department of Health,Salisbury NHS Foundation Trust,12-Apr-13,FRUIT & VEGETABLES,Facilities Directorate,NHS LOGISTICS,1014002069,6.66,
Department of Health,Salisbury NHS Foundation Trust,12-Apr-13,BEVERAGES & AMBIENT FOOD,Facilities Directorate,NHS LOGISTICS,1014002069,9.96,
Department of Health,Salisbury NHS Foundation Trust,12-Apr-13,BEVERAGES & AMBIENT FOOD,Facilities Directorate,NHS LOGISTICS,1014002069,17.92,
Department of Health,Salisbury NHS Foundation Trust,12-Apr-13,FLAVOURINGS HERBS SPICES,Facilities Directorate,NHS LOGISTICS,1014002069,4.86,
Department of Health,Salisbury NHS Foundation Trust,12-Apr-13,FLAVOURINGS HERBS SPICES,Facilities Directorate,NHS LOGISTICS,1014002069,6.64,
Department of Health,Salisbury NHS Foundation Trust,12-Apr-13,BEVERAGES & AMBIENT FOOD,Facilities Directorate,NHS LOGISTICS,1014002069,12.42,
Department of Health,Salisbury NHS Foundation Trust,12-Apr-13,BEVERAGES & AMBIENT FOOD,Facilities Directorate,NHS LOGISTICS,1014002069,34.92,
Department of Health,Salisbury NHS Foundation Trust,12-Apr-13,BEVERAGES & AMBIENT FOOD,Facilities Directorate,NHS LOGISTICS,1014002069,11,
Department of Health,Salisbury NHS Foundation Trust,12-Apr-13,MEDSURGCONS-SUTURES,Surgery,NHS LOGISTICS,1014002069,56.12,
Department of Health,Salisbury NHS Foundation Trust,12-Apr-13,MEDSURGCONS-SUTURES,Surgery,NHS LOGISTICS,1014002069,60.65,
Department of Health,Salisbury NHS Foundation Trust,12-Apr-13,MEDSURGCONS-SUTURES,Surgery,NHS LOGISTICS,1014002069,52.7,
Department of Health,Salisbury NHS Foundation Trust,12-Apr-13,MEDSURGCONS-SUTURES,Surgery,NHS LOGISTICS,1014002069,87.83,
Department of Health,Salisbury NHS Foundation Trust,12-Apr-13,MEDSURGCONS-SUTURES,Surgery,NHS LOGISTICS,1014002069,60.76,
Department of Health,Salisbury NHS Foundation Trust,12-Apr-13,MEDSURGCONS-SUTURES,Surgery,NHS LOGISTICS,1014002069,32.95,
Department of Health,Salisbury NHS Foundation Trust,12-Apr-13,MEDSURGCONS-SUTURES,Surgery,NHS LOGISTICS,1014002069,106.56,
Department of Health,Salisbury NHS Foundation Trust,12-Apr-13,MEDSURGCONS-SUTURES,Surgery,NHS LOGISTICS,1014002069,105.98,
Department of Health,Salisbury NHS Foundation Trust,12-Apr-13,MEDSURGCONS-SUTURES,Surgery,NHS LOGISTICS,1014002069,35.55,
Department of Health,Salisbury NHS Foundation Trust,12-Apr-13,MEDSURGCONS-SUTURES,Surgery,NHS LOGISTICS,1014002069,18.18,
Department of Health,Salisbury NHS Foundation Trust,12-Apr-13,MEDSURGCONS-SUTURES,Surgery,NHS LOGISTICS,1014002069,106.6,
Department of Health,Salisbury NHS Foundation Trust,12-Apr-13,MEDSURGCONS-SUTURES,Surgery,NHS LOGISTICS,1014002069,53.97,
Department of Health,Salisbury NHS Foundation Trust,12-Apr-13,MEDSURGCONS-SUTURES,Surgery,NHS LOGISTICS,1014002069,86.19,
Department of Health,Salisbury NHS Foundation Trust,12-Apr-13,M & S EQUIPELECTEQUIPINST - OTHER,Critical care,NHS LOGISTICS,1014002069,21.72,
Department of Health,Salisbury NHS Foundation Trust,12-Apr-13,DRUGS,Surgery,NHS LOGISTICS,1014002069,26.4,
Department of Health,Salisbury NHS Foundation Trust,12-Apr-13,DRUGS,Surgery,NHS LOGISTICS,1014002069,26.4,
Department of Health,Salisbury NHS Foundation Trust,12-Apr-13,MEDSURGCONS-SUTURES,Surgery,NHS LOGISTICS,1014002069,27.01,
Department of Health,Salisbury NHS Foundation Trust,12-Apr-13,MEDSURGCONS-SUTURES,Surgery,NHS LOGISTICS,1014002069,21.96,
Department of Health,Salisbury NHS Foundation Trust,12-Apr-13,MEDSURGCONS-SUTURES,Surgery,NHS LOGISTICS,1014002069,26.47,
Department of Health,Salisbury NHS Foundation Trust,12-Apr-13,MEDSURGCONS-SUTURES,Surgery,NHS LOGISTICS,1014002069,39.43,
Department of Health,Salisbury NHS Foundation Trust,12-Apr-13,MEDSURGCONS-SUTURES,Surgery,NHS LOGISTICS,1014002069,22.23,
Department of Health,Salisbury NHS Foundation Trust,12-Apr-13,MEDSURGCONS-SUTURES,Surgery,NHS LOGISTICS,1014002069,42.53,
Department of Health,Salisbury NHS Foundation Trust,12-Apr-13,DRUGS,Surgery,NHS LOGISTICS,1014002069,8.15,
Department of Health,Salisbury NHS Foundation Trust,12-Apr-13,OTHER MEDICAL SUPPLIES,Surgery,NHS LOGISTICS,1014002069,40.58,
Department of Health,Salisbury NHS Foundation Trust,12-Apr-13,PAPER ITEMS GENERAL STATIONERY SUNDRIES,Medicine,NHS LOGISTICS,1014002069,20.53,
Department of Health,Salisbury NHS Foundation Trust,12-Apr-13,TISSUES HAND TOWELS & TOILET PAPER,Medicine,NHS LOGISTICS,1014002069,0.44,
Department of Health,Salisbury NHS Foundation Trust,12-Apr-13,OTHER MEDICAL SUPPLIES,Medicine,NHS LOGISTICS,1014002069,0.87,
Department of Health,Salisbury NHS Foundation Trust,12-Apr-13,TISSUES HAND TOWELS & TOILET PAPER,Medicine,NHS LOGISTICS,1014002069,10.9,
Department of Health,Salisbury NHS Foundation Trust,12-Apr-13,MEDSURGCONS-SUTURES,Medicine,NHS LOGISTICS,1014002069,89.85,
Department of Health,Salisbury NHS Foundation Trust,12-Apr-13,PATIENTS BABY WEAR,Medicine,NHS LOGISTICS,1014002069,4.25,
Department of Health,Salisbury NHS Foundation Trust,12-Apr-13,PATIENTS BABY WEAR,Medicine,NHS LOGISTICS,1014002069,3.61,
Department of Health,Salisbury NHS Foundation Trust,12-Apr-13,MEDSURGCONS - OTHER,Surgery,NHS LOGISTICS,1014002069,5.83,
Department of Health,Salisbury NHS Foundation Trust,12-Apr-13,MEDSURGCONS - OTHER,Surgery,NHS LOGISTICS,1014002069,11.63,
Department of Health,Salisbury NHS Foundation Trust,12-Apr-13,MEDSURGCONS - OTHER,Surgery,NHS LOGISTICS,1014002069,11.63,
Department of Health,Salisbury NHS Foundation Trust,12-Apr-13,MEDSURGCONS - OTHER,Surgery,NHS LOGISTICS,1014002069,11.63,
Department of Health,Salisbury NHS Foundation Trust,12-Apr-13,MEDSURGCONS-SUTURES,Surgery,NHS LOGISTICS,1014002069,67.59,
Department of Health,Salisbury NHS Foundation Trust,12-Apr-13,MED SURG EQUIP REP MAINT CLEANING,Surgery,NHS LOGISTICS,1014002069,6.94,
Department of Health,Salisbury NHS Foundation Trust,12-Apr-13,MED SURG EQUIP REP MAINT CLEANING,Surgery,NHS LOGISTICS,1014002069,6.94,
Department of Health,Salisbury NHS Foundation Trust,12-Apr-13,MED SURG EQUIP REP MAINT CLEANING,Surgery,NHS LOGISTICS,1014002069,6.94,
Department of Health,Salisbury NHS Foundation Trust,12-Apr-13,OTHER MEDICAL SUPPLIES,Surgery,NHS LOGISTICS,1014002069,40.58,
Department of Health,Salisbury NHS Foundation Trust,12-Apr-13,TISSUES HAND TOWELS & TOILET PAPER,Surgery,NHS LOGISTICS,1014002069,31,
Department of Health,Salisbury NHS Foundation Trust,12-Apr-13,BAGS SACKS - OTHER,Surgery,NHS LOGISTICS,1014002069,41.1,
Department of Health,Salisbury NHS Foundation Trust,12-Apr-13,BAGS SACKS - OTHER,Surgery,NHS LOGISTICS,1014002069,46.2,
Department of Health,Salisbury NHS Foundation Trust,12-Apr-13,BAGS SACKS - OTHER,Surgery,NHS LOGISTICS,1014002069,6.9,
Department of Health,Salisbury NHS Foundation Trust,12-Apr-13,DISPOSABLE THEATRE DRAPES WIPES,Surgery,NHS LOGISTICS,1014002069,11.87,
Department of Health,Salisbury NHS Foundation Trust,12-Apr-13,TUBES,Surgery,NHS LOGISTICS,1014002069,38.89,
Department of Health,Salisbury NHS Foundation Trust,12-Apr-13,MEDSURGCONS - OTHER,Surgery,NHS LOGISTICS,1014002069,4.65,
Department of Health,Salisbury NHS Foundation Trust,12-Apr-13,MEDSURGCONS - OTHER,Surgery,NHS LOGISTICS,1014002069,4.65,
Department of Health,Salisbury NHS Foundation Trust,12-Apr-13,MEDSURGCONS - OTHER,Surgery,NHS LOGISTICS,1014002069,4.65,
Department of Health,Salisbury NHS Foundation Trust,12-Apr-13,TUBES,Surgery,NHS LOGISTICS,1014002069,12.78,
Department of Health,Salisbury NHS Foundation Trust,12-Apr-13,OTHER MEDICAL SUPPLIES,Surgery,NHS LOGISTICS,1014002069,8.83,
Department of Health,Salisbury NHS Foundation Trust,12-Apr-13,OTHER MEDICAL SUPPLIES,Surgery,NHS LOGISTICS,1014002069,39.17,
Department of Health,Salisbury NHS Foundation Trust,12-Apr-13,MEDSURGCONS - OTHER,Facilities Directorate,NHS LOGISTICS,1014002069,600,
Department of Health,Salisbury NHS Foundation Trust,12-Apr-13,DRESSINGS  -  PROCEDURE PACKS,Facilities Directorate,NHS LOGISTICS,1014002069,11.4,
Department of Health,Salisbury NHS Foundation Trust,12-Apr-13,MEDSURGCONS - OTHER,Facilities Directorate,NHS LOGISTICS,1014002069,10.42,
Department of Health,Salisbury NHS Foundation Trust,12-Apr-13,DRESSINGS - PRE STERILE,Facilities Directorate,NHS LOGISTICS,1014002069,22.9,
Department of Health,Salisbury NHS Foundation Trust,12-Apr-13,DRESSINGS - PRE STERILE,Facilities Directorate,NHS LOGISTICS,1014002069,1.9,
Department of Health,Salisbury NHS Foundation Trust,12-Apr-13,DRESSINGS - PRE STERILE,Facilities Directorate,NHS LOGISTICS,1014002069,7.27,
Department of Health,Salisbury NHS Foundation Trust,12-Apr-13,TISSUES HAND TOWELS & TOILET PAPER,Facilities Directorate,NHS LOGISTICS,1014002069,27,
Department of Health,Salisbury NHS Foundation Trust,12-Apr-13,DRESSINGS - PRE STERILE,Facilities Directorate,NHS LOGISTICS,1014002069,4.48,
Department of Health,Salisbury NHS Foundation Trust,12-Apr-13,DRESSINGS  -  PROCEDURE PACKS,Facilities Directorate,NHS LOGISTICS,1014002069,54,
Department of Health,Salisbury NHS Foundation Trust,12-Apr-13,HEALTHCARE - WEAR,Facilities Directorate,NHS LOGISTICS,1014002069,42.12,
Department of Health,Salisbury NHS Foundation Trust,12-Apr-13,PAPER ITEMS GENERAL STATIONERY SUNDRIES,Facilities Directorate,NHS LOGISTICS,1014002069,15.67,
Department of Health,Salisbury NHS Foundation Trust,12-Apr-13,PAPER ITEMS GENERAL STATIONERY SUNDRIES,Facilities Directorate,NHS LOGISTICS,1014002069,10.04,
Department of Health,Salisbury NHS Foundation Trust,12-Apr-13,PAPER ITEMS GENERAL STATIONERY SUNDRIES,Facilities Directorate,NHS LOGISTICS,1014002069,15.67,
Department of Health,Salisbury NHS Foundation Trust,12-Apr-13,STATIONERY SUNDRIES,Facilities Directorate,NHS LOGISTICS,1014002069,38.75,
Department of Health,Salisbury NHS Foundation Trust,12-Apr-13,STATIONERY SUNDRIES,Facilities Directorate,NHS LOGISTICS,1014002069,3.47,
Department of Health,Salisbury NHS Foundation Trust,12-Apr-13,TOILETRIES PERSONAL HYGIENE PRODUCTS,Facilities Directorate,NHS LOGISTICS,1014002069,15.87,
Department of Health,Salisbury NHS Foundation Trust,12-Apr-13,HEALTHCARE - WEAR,Facilities Directorate,NHS LOGISTICS,1014002069,192.55,
Department of Health,Salisbury NHS Foundation Trust,12-Apr-13,DRESSINGS - PRE STERILE,Facilities Directorate,NHS LOGISTICS,1014002069,53.68,
Department of Health,Salisbury NHS Foundation Trust,12-Apr-13,M & S EQUIPELECTEQUIPINST - OTHER,Clinical Support and Family Services,NHS LOGISTICS,1014002069,935.83,
Department of Health,Salisbury NHS Foundation Trust,12-Apr-13,MEDSURGCONS-SUTURES,Surgery,NHS LOGISTICS,1014002069,56.12,
Department of Health,Salisbury NHS Foundation Trust,12-Apr-13,MEDSURGCONS-SUTURES,Surgery,NHS LOGISTICS,1014002069,28.06,
Department of Health,Salisbury NHS Foundation Trust,12-Apr-13,MEDSURGCONS-SUTURES,Surgery,NHS LOGISTICS,1014002069,33.59,
Department of Health,Salisbury NHS Foundation Trust,12-Apr-13,MEDSURGCONS-SUTURES,Surgery,NHS LOGISTICS,1014002069,30.33,
Department of Health,Salisbury NHS Foundation Trust,12-Apr-13,MEDSURGCONS-SUTURES,Surgery,NHS LOGISTICS,1014002069,21.96,
Department of Health,Salisbury NHS Foundation Trust,12-Apr-13,MEDSURGCONS-SUTURES,Surgery,NHS LOGISTICS,1014002069,60.76,
Department of Health,Salisbury NHS Foundation Trust,12-Apr-13,MEDSURGCONS-SUTURES,Surgery,NHS LOGISTICS,1014002069,45.02,
Department of Health,Salisbury NHS Foundation Trust,12-Apr-13,MEDSURGCONS-SUTURES,Surgery,NHS LOGISTICS,1014002069,23.06,
Department of Health,Salisbury NHS Foundation Trust,12-Apr-13,MEDSURGCONS-SUTURES,Surgery,NHS LOGISTICS,1014002069,72.92,
Department of Health,Salisbury NHS Foundation Trust,12-Apr-13,MEDSURGCONS-SUTURES,Surgery,NHS LOGISTICS,1014002069,134.65,
Department of Health,Salisbury NHS Foundation Trust,12-Apr-13,MEDSURGCONS-SUTURES,Surgery,NHS LOGISTICS,1014002069,106.56,
Department of Health,Salisbury NHS Foundation Trust,12-Apr-13,MEDSURGCONS-SUTURES,Surgery,NHS LOGISTICS,1014002069,26.32,
Department of Health,Salisbury NHS Foundation Trust,12-Apr-13,MEDSURGCONS-SUTURES,Surgery,NHS LOGISTICS,1014002069,29.38,
Department of Health,Salisbury NHS Foundation Trust,12-Apr-13,MEDSURGCONS-SUTURES,Surgery,NHS LOGISTICS,1014002069,18.18,
Department of Health,Salisbury NHS Foundation Trust,12-Apr-13,MEDSURGCONS-SUTURES,Surgery,NHS LOGISTICS,1014002069,29.35,
Department of Health,Salisbury NHS Foundation Trust,12-Apr-13,MEDSURGCONS-SUTURES,Surgery,NHS LOGISTICS,1014002069,105.93,
Department of Health,Salisbury NHS Foundation Trust,12-Apr-13,MEDSURGCONS-SUTURES,Surgery,NHS LOGISTICS,1014002069,45.08,
Department of Health,Salisbury NHS Foundation Trust,12-Apr-13,LAB EQUIP-LABORATORY APPARATUS,Clinical Support and Family Services,NHS LOGISTICS,1014002069,60.83,
Department of Health,Salisbury NHS Foundation Trust,12-Apr-13,OTHER MEDICAL SUPPLIES,Medicine,NHS LOGISTICS,1014002069,28.11,
Department of Health,Salisbury NHS Foundation Trust,12-Apr-13,STATIONERY SUNDRIES,Medicine,NHS LOGISTICS,1014002069,54.53,
Department of Health,Salisbury NHS Foundation Trust,12-Apr-13,STATIONERY SUNDRIES,Surgery,NHS LOGISTICS,1014002069,15.07,
Department of Health,Salisbury NHS Foundation Trust,12-Apr-13,MOBILE ITEMS,Clinical Support and Family Services,NHS LOGISTICS,1014002069,18.75,
Department of Health,Salisbury NHS Foundation Trust,12-Apr-13,OTHER MEDICAL SUPPLIES,Surgery,NHS LOGISTICS,1014002069,7.7,
Department of Health,Salisbury NHS Foundation Trust,12-Apr-13,MEDSURGCONS - OTHER,Surgery,NHS LOGISTICS,1014002069,7.02,
Department of Health,Salisbury NHS Foundation Trust,12-Apr-13,DRESSINGS - PRE STERILE,Critical care,NHS LOGISTICS,1014002069,20,
Department of Health,Salisbury NHS Foundation Trust,12-Apr-13,DRESSINGS - PRE STERILE,Critical care,NHS LOGISTICS,1014002069,41.44,
Department of Health,Salisbury NHS Foundation Trust,12-Apr-13,MEDSURGCONS - OTHER,Critical care,NHS LOGISTICS,1014002069,17.54,
Department of Health,Salisbury NHS Foundation Trust,12-Apr-13,STATIONERY SUNDRIES,Surgery,NHS LOGISTICS,1014002069,11.67,
Department of Health,Salisbury NHS Foundation Trust,12-Apr-13,MEDSURGCONS-SUTURES,Surgery,NHS LOGISTICS,1014002069,22.51,
Department of Health,Salisbury NHS Foundation Trust,12-Apr-13,MEDSURGCONS-SUTURES,Surgery,NHS LOGISTICS,1014002069,60.76,
Department of Health,Salisbury NHS Foundation Trust,12-Apr-13,MEDSURGCONS-SUTURES,Surgery,NHS LOGISTICS,1014002069,71.6,
Department of Health,Salisbury NHS Foundation Trust,12-Apr-13,MEDSURGCONS-SUTURES,Surgery,NHS LOGISTICS,1014002069,35.33,
Department of Health,Salisbury NHS Foundation Trust,12-Apr-13,MEDSURGCONS-SUTURES,Surgery,NHS LOGISTICS,1014002069,66.4,
Department of Health,Salisbury NHS Foundation Trust,12-Apr-13,MEDSURGCONS-SUTURES,Surgery,NHS LOGISTICS,1014002069,48.58,
Department of Health,Salisbury NHS Foundation Trust,12-Apr-13,MEDSURGCONS-SUTURES,Surgery,NHS LOGISTICS,1014002069,41.52,
Department of Health,Salisbury NHS Foundation Trust,12-Apr-13,MEDSURGCONS-SUTURES,Surgery,NHS LOGISTICS,1014002069,42.65,
Department of Health,Salisbury NHS Foundation Trust,12-Apr-13,EGGS MILK OTHER DAIRY PRODUCTS,Facilities Directorate,NHS LOGISTICS,1014002069,296.24,
Department of Health,Salisbury NHS Foundation Trust,12-Apr-13,FRUIT & VEGETABLES,Facilities Directorate,NHS LOGISTICS,1014002069,18.92,
Department of Health,Salisbury NHS Foundation Trust,12-Apr-13,BEVERAGES & AMBIENT FOOD,Facilities Directorate,NHS LOGISTICS,1014002069,50.58,
Department of Health,Salisbury NHS Foundation Trust,12-Apr-13,BEVERAGES & AMBIENT FOOD,Facilities Directorate,NHS LOGISTICS,1014002069,12.06,
Department of Health,Salisbury NHS Foundation Trust,12-Apr-13,BEVERAGES & AMBIENT FOOD,Facilities Directorate,NHS LOGISTICS,1014002069,17.7,
Department of Health,Salisbury NHS Foundation Trust,12-Apr-13,BEVERAGES & AMBIENT FOOD,Facilities Directorate,NHS LOGISTICS,1014002069,36,
Department of Health,Salisbury NHS Foundation Trust,12-Apr-13,BEVERAGES & AMBIENT FOOD,Facilities Directorate,NHS LOGISTICS,1014002069,9.6,
Department of Health,Salisbury NHS Foundation Trust,12-Apr-13,BEVERAGES & AMBIENT FOOD,Facilities Directorate,NHS LOGISTICS,1014002069,9.82,
Department of Health,Salisbury NHS Foundation Trust,12-Apr-13,BEVERAGES & AMBIENT FOOD,Facilities Directorate,NHS LOGISTICS,1014002069,8.36,
Department of Health,Salisbury NHS Foundation Trust,12-Apr-13,BEVERAGES & AMBIENT FOOD,Facilities Directorate,NHS LOGISTICS,1014002069,33.16,
Department of Health,Salisbury NHS Foundation Trust,12-Apr-13,BEVERAGES & AMBIENT FOOD,Facilities Directorate,NHS LOGISTICS,1014002069,15.94,
Department of Health,Salisbury NHS Foundation Trust,12-Apr-13,BEVERAGES & AMBIENT FOOD,Facilities Directorate,NHS LOGISTICS,1014002069,7.4,
Department of Health,Salisbury NHS Foundation Trust,12-Apr-13,BEVERAGES & AMBIENT FOOD,Facilities Directorate,NHS LOGISTICS,1014002069,12.48,
Department of Health,Salisbury NHS Foundation Trust,12-Apr-13,BEVERAGES & AMBIENT FOOD,Facilities Directorate,NHS LOGISTICS,1014002069,11,
Department of Health,Salisbury NHS Foundation Trust,12-Apr-13,BEVERAGES & AMBIENT FOOD,Facilities Directorate,NHS LOGISTICS,1014002069,4.96,
Department of Health,Salisbury NHS Foundation Trust,12-Apr-13,BEVERAGES & AMBIENT FOOD,Facilities Directorate,NHS LOGISTICS,1014002069,9.76,
Department of Health,Salisbury NHS Foundation Trust,12-Apr-13,FLAVOURINGS HERBS SPICES,Facilities Directorate,NHS LOGISTICS,1014002069,16.6,
Department of Health,Salisbury NHS Foundation Trust,12-Apr-13,FLAVOURINGS HERBS SPICES,Facilities Directorate,NHS LOGISTICS,1014002069,5.24,
Department of Health,Salisbury NHS Foundation Trust,12-Apr-13,COOKING & KITCHEN UTENSILS,Facilities Directorate,NHS LOGISTICS,1014002069,27.5,
Department of Health,Salisbury NHS Foundation Trust,12-Apr-13,COOKING & KITCHEN UTENSILS,Facilities Directorate,NHS LOGISTICS,1014002069,28.5,
Department of Health,Salisbury NHS Foundation Trust,12-Apr-13,BEVERAGES & AMBIENT FOOD,Facilities Directorate,NHS LOGISTICS,1014002069,10.65,
Department of Health,Salisbury NHS Foundation Trust,12-Apr-13,BEVERAGES & AMBIENT FOOD,Facilities Directorate,NHS LOGISTICS,1014002069,45.72,
Department of Health,Salisbury NHS Foundation Trust,12-Apr-13,BEVERAGES & AMBIENT FOOD,Facilities Directorate,NHS LOGISTICS,1014002069,6.12,
Department of Health,Salisbury NHS Foundation Trust,12-Apr-13,FRUIT & VEGETABLES,Facilities Directorate,NHS LOGISTICS,1014002069,9.44,
Department of Health,Salisbury NHS Foundation Trust,12-Apr-13,FRUIT & VEGETABLES,Facilities Directorate,NHS LOGISTICS,1014002069,7.58,
Department of Health,Salisbury NHS Foundation Trust,12-Apr-13,LIQUID REFRESHMENTS,Facilities Directorate,NHS LOGISTICS,1014002069,3.83,
Department of Health,Salisbury NHS Foundation Trust,12-Apr-13,BEVERAGES & AMBIENT FOOD,Facilities Directorate,NHS LOGISTICS,1014002069,5.86,
Department of Health,Salisbury NHS Foundation Trust,12-Apr-13,BEVERAGES & AMBIENT FOOD,Facilities Directorate,NHS LOGISTICS,1014002069,22.24,
Department of Health,Salisbury NHS Foundation Trust,12-Apr-13,BEVERAGES & AMBIENT FOOD,Facilities Directorate,NHS LOGISTICS,1014002069,13.92,
Department of Health,Salisbury NHS Foundation Trust,12-Apr-13,BEVERAGES & AMBIENT FOOD,Facilities Directorate,NHS LOGISTICS,1014002069,70.2,
Department of Health,Salisbury NHS Foundation Trust,12-Apr-13,BEVERAGES & AMBIENT FOOD,Facilities Directorate,NHS LOGISTICS,1014002069,20,
Department of Health,Salisbury NHS Foundation Trust,12-Apr-13,BEVERAGES & AMBIENT FOOD,Facilities Directorate,NHS LOGISTICS,1014002069,10.48,
Department of Health,Salisbury NHS Foundation Trust,12-Apr-13,EGGS MILK OTHER DAIRY PRODUCTS,Facilities Directorate,NHS LOGISTICS,1014002069,29.44,
Department of Health,Salisbury NHS Foundation Trust,12-Apr-13,BEVERAGES & AMBIENT FOOD,Facilities Directorate,NHS LOGISTICS,1014002069,4.92,
Department of Health,Salisbury NHS Foundation Trust,12-Apr-13,FLAVOURINGS HERBS SPICES,Facilities Directorate,NHS LOGISTICS,1014002069,24.24,
Department of Health,Salisbury NHS Foundation Trust,12-Apr-13,FRUIT & VEGETABLES,Facilities Directorate,NHS LOGISTICS,1014002069,29.52,
Department of Health,Salisbury NHS Foundation Trust,12-Apr-13,EGGS MILK OTHER DAIRY PRODUCTS,Facilities Directorate,NHS LOGISTICS,1014002069,55.8,
Department of Health,Salisbury NHS Foundation Trust,12-Apr-13,LIQUID REFRESHMENTS,Facilities Directorate,NHS LOGISTICS,1014002069,147.6,
Department of Health,Salisbury NHS Foundation Trust,12-Apr-13,BEVERAGES & AMBIENT FOOD,Facilities Directorate,NHS LOGISTICS,1014002069,72.75,
Department of Health,Salisbury NHS Foundation Trust,12-Apr-13,LIQUID REFRESHMENTS,Facilities Directorate,NHS LOGISTICS,1014002069,3.2,
Department of Health,Salisbury NHS Foundation Trust,12-Apr-13,BEVERAGES & AMBIENT FOOD,Facilities Directorate,NHS LOGISTICS,1014002069,124.08,
Department of Health,Salisbury NHS Foundation Trust,12-Apr-13,BABY TEXTURE MODIFIED FOODS,Facilities Directorate,NHS LOGISTICS,1014002069,55.86,
Department of Health,Salisbury NHS Foundation Trust,12-Apr-13,BABY TEXTURE MODIFIED FOODS,Facilities Directorate,NHS LOGISTICS,1014002069,79.6,
Department of Health,Salisbury NHS Foundation Trust,12-Apr-13,BABY TEXTURE MODIFIED FOODS,Facilities Directorate,NHS LOGISTICS,1014002069,103.92,
Department of Health,Salisbury NHS Foundation Trust,12-Apr-13,DIETETIC FOOD,Facilities Directorate,NHS LOGISTICS,1014002069,19.49,
Department of Health,Salisbury NHS Foundation Trust,12-Apr-13,DIETETIC FOOD,Facilities Directorate,NHS LOGISTICS,1014002069,19.49,
Department of Health,Salisbury NHS Foundation Trust,12-Apr-13,BAGS SACKS - OTHER,Facilities Directorate,NHS LOGISTICS,1014002069,5.88,
Department of Health,Salisbury NHS Foundation Trust,12-Apr-13,BAGS SACKS - OTHER,Facilities Directorate,NHS LOGISTICS,1014002069,8.26,
Department of Health,Salisbury NHS Foundation Trust,12-Apr-13,BAGS SACKS - OTHER,Facilities Directorate,NHS LOGISTICS,1014002069,37.67,
Department of Health,Salisbury NHS Foundation Trust,12-Apr-13,FRUIT & VEGETABLES,Facilities Directorate,NHS LOGISTICS,1014002069,21.36,
Department of Health,Salisbury NHS Foundation Trust,12-Apr-13,FRUIT & VEGETABLES,Facilities Directorate,NHS LOGISTICS,1014002069,10.26,
Department of Health,Salisbury NHS Foundation Trust,12-Apr-13,FRUIT & VEGETABLES,Facilities Directorate,NHS LOGISTICS,1014002069,10.92,
Department of Health,Salisbury NHS Foundation Trust,12-Apr-13,FRUIT & VEGETABLES,Facilities Directorate,NHS LOGISTICS,1014002069,42,
Department of Health,Salisbury NHS Foundation Trust,12-Apr-13,FRUIT & VEGETABLES,Facilities Directorate,NHS LOGISTICS,1014002069,6.56,
Department of Health,Salisbury NHS Foundation Trust,12-Apr-13,FRUIT & VEGETABLES,Facilities Directorate,NHS LOGISTICS,1014002069,39.36,
Department of Health,Salisbury NHS Foundation Trust,12-Apr-13,FRUIT & VEGETABLES,Facilities Directorate,NHS LOGISTICS,1014002069,6.66,
Department of Health,Salisbury NHS Foundation Trust,12-Apr-13,BEVERAGES & AMBIENT FOOD,Facilities Directorate,NHS LOGISTICS,1014002069,8.94,
Department of Health,Salisbury NHS Foundation Trust,12-Apr-13,LIQUID REFRESHMENTS,Facilities Directorate,NHS LOGISTICS,1014002069,15.35,
Department of Health,Salisbury NHS Foundation Trust,12-Apr-13,LIQUID REFRESHMENTS,Facilities Directorate,NHS LOGISTICS,1014002069,16.98,
Department of Health,Salisbury NHS Foundation Trust,12-Apr-13,FRUIT & VEGETABLES,Facilities Directorate,NHS LOGISTICS,1014002069,0.95,
Department of Health,Salisbury NHS Foundation Trust,12-Apr-13,BEVERAGES & AMBIENT FOOD,Facilities Directorate,NHS LOGISTICS,1014002069,3.44,
Department of Health,Salisbury NHS Foundation Trust,12-Apr-13,LIQUID REFRESHMENTS,Facilities Directorate,NHS LOGISTICS,1014002069,10.7,
Department of Health,Salisbury NHS Foundation Trust,12-Apr-13,LIQUID REFRESHMENTS,Facilities Directorate,NHS LOGISTICS,1014002069,10.7,
Department of Health,Salisbury NHS Foundation Trust,12-Apr-13,LIQUID REFRESHMENTS,Facilities Directorate,NHS LOGISTICS,1014002069,34.9,
Department of Health,Salisbury NHS Foundation Trust,12-Apr-13,LIQUID REFRESHMENTS,Facilities Directorate,NHS LOGISTICS,1014002069,18.4,
Department of Health,Salisbury NHS Foundation Trust,12-Apr-13,BEVERAGES & AMBIENT FOOD,Facilities Directorate,NHS LOGISTICS,1014002069,71.64,
Department of Health,Salisbury NHS Foundation Trust,12-Apr-13,BEVERAGES & AMBIENT FOOD,Facilities Directorate,NHS LOGISTICS,1014002069,33.12,
Department of Health,Salisbury NHS Foundation Trust,12-Apr-13,FRUIT & VEGETABLES,Facilities Directorate,NHS LOGISTICS,1014002069,10.28,
Department of Health,Salisbury NHS Foundation Trust,12-Apr-13,FLAVOURINGS HERBS SPICES,Facilities Directorate,NHS LOGISTICS,1014002069,1.97,
Department of Health,Salisbury NHS Foundation Trust,12-Apr-13,FLAVOURINGS HERBS SPICES,Facilities Directorate,NHS LOGISTICS,1014002069,2.79,
Department of Health,Salisbury NHS Foundation Trust,12-Apr-13,FRUIT & VEGETABLES,Facilities Directorate,NHS LOGISTICS,1014002069,9.6,
Department of Health,Salisbury NHS Foundation Trust,12-Apr-13,BEVERAGES & AMBIENT FOOD,Facilities Directorate,NHS LOGISTICS,1014002069,15.48,
Department of Health,Salisbury NHS Foundation Trust,12-Apr-13,LIQUID REFRESHMENTS,Facilities Directorate,NHS LOGISTICS,1014002069,16.1,
Department of Health,Salisbury NHS Foundation Trust,12-Apr-13,LIQUID REFRESHMENTS,Facilities Directorate,NHS LOGISTICS,1014002069,23,
Department of Health,Salisbury NHS Foundation Trust,12-Apr-13,LIQUID REFRESHMENTS,Facilities Directorate,NHS LOGISTICS,1014002069,2.97,
Department of Health,Salisbury NHS Foundation Trust,12-Apr-13,LIQUID REFRESHMENTS,Facilities Directorate,NHS LOGISTICS,1014002069,13.3,
Department of Health,Salisbury NHS Foundation Trust,12-Apr-13,BEVERAGES & AMBIENT FOOD,Facilities Directorate,NHS LOGISTICS,1014002069,14.21,
Department of Health,Salisbury NHS Foundation Trust,12-Apr-13,BEVERAGES & AMBIENT FOOD,Facilities Directorate,NHS LOGISTICS,1014002069,104.76,
Department of Health,Salisbury NHS Foundation Trust,12-Apr-13,COOKING & KITCHEN UTENSILS,Facilities Directorate,NHS LOGISTICS,1014002069,28.17,
Department of Health,Salisbury NHS Foundation Trust,12-Apr-13,TISSUES HAND TOWELS & TOILET PAPER,Facilities Directorate,NHS LOGISTICS,1014002069,10.9,
Department of Health,Salisbury NHS Foundation Trust,12-Apr-13,COOKING & KITCHEN UTENSILS,Facilities Directorate,NHS LOGISTICS,1014002069,96.48,
Department of Health,Salisbury NHS Foundation Trust,12-Apr-13,FRUIT & VEGETABLES,Facilities Directorate,NHS LOGISTICS,1014002069,9.92,
Department of Health,Salisbury NHS Foundation Trust,12-Apr-13,FRUIT & VEGETABLES,Facilities Directorate,NHS LOGISTICS,1014002069,15.24,
Department of Health,Salisbury NHS Foundation Trust,12-Apr-13,FRUIT & VEGETABLES,Facilities Directorate,NHS LOGISTICS,1014002069,12.66,
Department of Health,Salisbury NHS Foundation Trust,12-Apr-13,FRUIT & VEGETABLES,Facilities Directorate,NHS LOGISTICS,1014002069,30.72,
Department of Health,Salisbury NHS Foundation Trust,12-Apr-13,FRUIT & VEGETABLES,Facilities Directorate,NHS LOGISTICS,1014002069,17.34,
Department of Health,Salisbury NHS Foundation Trust,12-Apr-13,HEALTHCARE - WEAR,Facilities Directorate,NHS LOGISTICS,1014002069,103.6,
Department of Health,Salisbury NHS Foundation Trust,12-Apr-13,FRUIT & VEGETABLES,Facilities Directorate,NHS LOGISTICS,1014002069,22.2,
Department of Health,Salisbury NHS Foundation Trust,12-Apr-13,BEVERAGES & AMBIENT FOOD,Facilities Directorate,NHS LOGISTICS,1014002069,13.56,
Department of Health,Salisbury NHS Foundation Trust,12-Apr-13,FRUIT & VEGETABLES,Facilities Directorate,NHS LOGISTICS,1014002069,1,
Department of Health,Salisbury NHS Foundation Trust,12-Apr-13,FRUIT & VEGETABLES,Facilities Directorate,NHS LOGISTICS,1014002069,0.93,
Department of Health,Salisbury NHS Foundation Trust,12-Apr-13,BEVERAGES & AMBIENT FOOD,Facilities Directorate,NHS LOGISTICS,1014002069,3.4,
Department of Health,Salisbury NHS Foundation Trust,12-Apr-13,FRUIT & VEGETABLES,Facilities Directorate,NHS LOGISTICS,1014002069,1.32,
Department of Health,Salisbury NHS Foundation Trust,12-Apr-13,COOKING & KITCHEN UTENSILS,Facilities Directorate,NHS LOGISTICS,1014002069,17.81,
Department of Health,Salisbury NHS Foundation Trust,12-Apr-13,OTHER MEDICAL SUPPLIES,Surgery,NHS LOGISTICS,1014002069,36.82,
Department of Health,Salisbury NHS Foundation Trust,12-Apr-13,DRESSINGS - PRE STERILE,Clinical Support and Family Services,NHS LOGISTICS,1014002069,0.34,
Department of Health,Salisbury NHS Foundation Trust,12-Apr-13,DRESSINGS - PRE STERILE,Facilities Directorate,NHS LOGISTICS,1014002069,0.22,
Department of Health,Salisbury NHS Foundation Trust,12-Apr-13,ADULTS HEARING AIDS,Surgery,NHS LOGISTICS,1014002069,2.17,
Department of Health,Salisbury NHS Foundation Trust,12-Apr-13,ADULTS HEARING AIDS,Surgery,NHS LOGISTICS,1014002069,131.78,
Department of Health,Salisbury NHS Foundation Trust,12-Apr-13,MEDSURGCONS - OTHER,Medicine,NHS LOGISTICS,1014002069,0.35,
Department of Health,Salisbury NHS Foundation Trust,12-Apr-13,MEDSURGCONS - OTHER,Medicine,NHS LOGISTICS,1014002069,0.55,
Department of Health,Salisbury NHS Foundation Trust,12-Apr-13,DRESSINGS - PRE STERILE,Critical care,NHS LOGISTICS,1014002069,5.58,
Department of Health,Salisbury NHS Foundation Trust,12-Apr-13,DRESSINGS - PRE STERILE,Critical care,NHS LOGISTICS,1014002069,3.96,
Department of Health,Salisbury NHS Foundation Trust,12-Apr-13,DRESSINGS - PRE STERILE,Critical care,NHS LOGISTICS,1014002069,4.56,
Department of Health,Salisbury NHS Foundation Trust,12-Apr-13,MED SURG EQUIP REP MAINT CLEANING,Clinical Support and Family Services,NHS LOGISTICS,1014002069,16.68,
Department of Health,Salisbury NHS Foundation Trust,12-Apr-13,DRESSINGS - PRE STERILE,Surgery,NHS LOGISTICS,1014002069,3.3,
Department of Health,Salisbury NHS Foundation Trust,12-Apr-13,NON DISPOSABLE THEATRE DRAPES WIPES,Clinical Support and Family Services,NHS LOGISTICS,1014002069,7.07,
Department of Health,Salisbury NHS Foundation Trust,12-Apr-13,DRESSINGS - PRE STERILE,Clinical Support and Family Services,NHS LOGISTICS,1014002069,0.22,
Department of Health,Salisbury NHS Foundation Trust,12-Apr-13,TISSUES HAND TOWELS & TOILET PAPER,Clinical Support and Family Services,NHS LOGISTICS,1014002069,1.82,
Department of Health,Salisbury NHS Foundation Trust,12-Apr-13,DRESSINGS - PRE STERILE,Clinical Support and Family Services,NHS LOGISTICS,1014002069,0.78,
Department of Health,Salisbury NHS Foundation Trust,12-Apr-13,PAPER ITEMS GENERAL STATIONERY SUNDRIES,Clinical Support and Family Services,NHS LOGISTICS,1014002069,1.87,
Department of Health,Salisbury NHS Foundation Trust,12-Apr-13,ELECTRICAL EQUIPMENT x,Surgery,NHS LOGISTICS,1014002069,1.19,
Department of Health,Salisbury NHS Foundation Trust,12-Apr-13,STATIONERY SUNDRIES,Surgery,NHS LOGISTICS,1014002069,1.04,
Department of Health,Salisbury NHS Foundation Trust,12-Apr-13,OTHER MEDICAL SUPPLIES,Critical care,NHS LOGISTICS,1014002069,3.53,
Department of Health,Salisbury NHS Foundation Trust,12-Apr-13,OTHER MEDICAL SUPPLIES,Critical care,NHS LOGISTICS,1014002069,0.65,
Department of Health,Salisbury NHS Foundation Trust,12-Apr-13,OTHER MEDICAL SUPPLIES,Critical care,NHS LOGISTICS,1014002069,0.65,
Department of Health,Salisbury NHS Foundation Trust,12-Apr-13,MEDSURGCONS-LAPAROSCOPIC EQUIPMENT,Surgery,NHS LOGISTICS,1014002069,26.94,
Department of Health,Salisbury NHS Foundation Trust,12-Apr-13,MEDSURGCONS - OTHER,Surgery,NHS LOGISTICS,1014002069,138.95,
Department of Health,Salisbury NHS Foundation Trust,12-Apr-13,ANAESTHETIC EQUIPMENT ACCESSORIES,Surgery,NHS LOGISTICS,1014002069,5.19,
Department of Health,Salisbury NHS Foundation Trust,12-Apr-13,BEVERAGES & AMBIENT FOOD,Medicine,NHS LOGISTICS,1014002069,2.09,
Department of Health,Salisbury NHS Foundation Trust,12-Apr-13,CLEANING MATERIALS PRODUCTS SUNDRIES,Medicine,NHS LOGISTICS,1014002069,1.58,
Department of Health,Salisbury NHS Foundation Trust,12-Apr-13,BEVERAGES & AMBIENT FOOD,Medicine,NHS LOGISTICS,1014002069,2.95,
Department of Health,Salisbury NHS Foundation Trust,12-Apr-13,BEVERAGES & AMBIENT FOOD,Medicine,NHS LOGISTICS,1014002069,0.89,
Department of Health,Salisbury NHS Foundation Trust,12-Apr-13,ADULTS HEARING AIDS,Surgery,NHS LOGISTICS,1014002069,472.6,
Department of Health,Salisbury NHS Foundation Trust,12-Apr-13,BEVERAGES & AMBIENT FOOD,Medicine,NHS LOGISTICS,1014002069,2.09,
Department of Health,Salisbury NHS Foundation Trust,12-Apr-13,CLEANING MATERIALS PRODUCTS SUNDRIES,Medicine,NHS LOGISTICS,1014002069,1.58,
Department of Health,Salisbury NHS Foundation Trust,12-Apr-13,BEVERAGES & AMBIENT FOOD,Medicine,NHS LOGISTICS,1014002069,0.89,
Department of Health,Salisbury NHS Foundation Trust,12-Apr-13,DRESSINGS - PRE STERILE,Critical care,NHS LOGISTICS,1014002069,1.33,
Department of Health,Salisbury NHS Foundation Trust,12-Apr-13,DRESSINGS - PRE STERILE,Critical care,NHS LOGISTICS,1014002069,1.94,
Department of Health,Salisbury NHS Foundation Trust,12-Apr-13,DRESSINGS - PRE STERILE,Critical care,NHS LOGISTICS,1014002069,1.1,
Department of Health,Salisbury NHS Foundation Trust,12-Apr-13,COOKING & KITCHEN UTENSILS,Critical care,NHS LOGISTICS,1014002069,0.49,
Department of Health,Salisbury NHS Foundation Trust,12-Apr-13,PATIENTS INCONTINENCE,Critical care,NHS LOGISTICS,1014002069,1.72,
Department of Health,Salisbury NHS Foundation Trust,12-Apr-13,PATIENT APPLIANCES,Critical care,NHS LOGISTICS,1014002069,0.78,
Department of Health,Salisbury NHS Foundation Trust,12-Apr-13,TOILETRIES PERSONAL HYGIENE PRODUCTS,Critical care,NHS LOGISTICS,1014002069,1.91,
Department of Health,Salisbury NHS Foundation Trust,12-Apr-13,MEDSURGCONS - OTHER,Critical care,NHS LOGISTICS,1014002069,2.08,
Department of Health,Salisbury NHS Foundation Trust,12-Apr-13,NON DISPOSABLE BED LINEN,Critical care,NHS LOGISTICS,1014002069,4.17,
Department of Health,Salisbury NHS Foundation Trust,12-Apr-13,PATIENT APPLIANCES,Critical care,NHS LOGISTICS,1014002069,1.06,
Department of Health,Salisbury NHS Foundation Trust,12-Apr-13,MEDSURGCONS - OTHER,Clinical Support and Family Services,NHS LOGISTICS,1014002069,0.92,
Department of Health,Salisbury NHS Foundation Trust,12-Apr-13,OTHER MEDICAL SUPPLIES,Medicine,NHS LOGISTICS,1014002069,0.88,
Department of Health,Salisbury NHS Foundation Trust,12-Apr-13,M & S EQUIPELECTEQUIPINST - OTHER,Medicine,NHS LOGISTICS,1014002069,0.36,
Department of Health,Salisbury NHS Foundation Trust,12-Apr-13,TISSUES HAND TOWELS & TOILET PAPER,Medicine,NHS LOGISTICS,1014002069,0.18,
Department of Health,Salisbury NHS Foundation Trust,12-Apr-13,PATIENT APPLIANCES,Medicine,NHS LOGISTICS,1014002069,1.06,
Department of Health,Salisbury NHS Foundation Trust,12-Apr-13,CLEANING MATERIALS PRODUCTS SUNDRIES,Human Resources,NHS LOGISTICS,1014002069,0.73,
Department of Health,Salisbury NHS Foundation Trust,12-Apr-13,TISSUES HAND TOWELS & TOILET PAPER,Human Resources,NHS LOGISTICS,1014002069,1.77,
Department of Health,Salisbury NHS Foundation Trust,12-Apr-13,MEDSURGCONS - OTHER,Human Resources,NHS LOGISTICS,1014002069,4.28,
Department of Health,Salisbury NHS Foundation Trust,12-Apr-13,OTHER MEDICAL SUPPLIES,Clinical Support and Family Services,NHS LOGISTICS,1014002069,1.77,
Department of Health,Salisbury NHS Foundation Trust,12-Apr-13,M & S EQUIPELECTEQUIPINST - OTHER,Clinical Support and Family Services,NHS LOGISTICS,1014002069,1.8,
Department of Health,Salisbury NHS Foundation Trust,12-Apr-13,PATIENTS BEDWEAR UNISEX,Clinical Support and Family Services,NHS LOGISTICS,1014002069,0.83,
Department of Health,Salisbury NHS Foundation Trust,12-Apr-13,MEDSURGCONS - OTHER,Clinical Support and Family Services,NHS LOGISTICS,1014002069,2.63,
Department of Health,Salisbury NHS Foundation Trust,12-Apr-13,COOKING & KITCHEN UTENSILS,Clinical Support and Family Services,NHS LOGISTICS,1014002069,0.74,
Department of Health,Salisbury NHS Foundation Trust,12-Apr-13,DRUGS,Clinical Support and Family Services,NHS LOGISTICS,1014002069,1.13,
Department of Health,Salisbury NHS Foundation Trust,12-Apr-13,M & S EQUIPELECTEQUIPINST - OTHER,Clinical Support and Family Services,NHS LOGISTICS,1014002069,0.15,
Department of Health,Salisbury NHS Foundation Trust,12-Apr-13,MEDSURGCONS - OTHER,Clinical Support and Family Services,NHS LOGISTICS,1014002069,1.04,
Department of Health,Salisbury NHS Foundation Trust,12-Apr-13,MED SURG EQUIP REP MAINT CLEANING,Clinical Support and Family Services,NHS LOGISTICS,1014002069,2.22,
Department of Health,Salisbury NHS Foundation Trust,12-Apr-13,PATIENT APPLIANCES,Clinical Support and Family Services,NHS LOGISTICS,1014002069,1.06,
Department of Health,Salisbury NHS Foundation Trust,12-Apr-13,ELECTRICAL EQUIPMENT x,Medicine,NHS LOGISTICS,1014002069,1.25,
Department of Health,Salisbury NHS Foundation Trust,12-Apr-13,MEDSURGCONS - OTHER,Medicine,NHS LOGISTICS,1014002069,3.93,
Department of Health,Salisbury NHS Foundation Trust,12-Apr-13,TISSUES HAND TOWELS & TOILET PAPER,Clinical Support and Family Services,NHS LOGISTICS,1014002069,0.36,
Department of Health,Salisbury NHS Foundation Trust,12-Apr-13,MED SURG EQUIP REP MAINT CLEANING,Clinical Support and Family Services,NHS LOGISTICS,1014002069,6.9,
Department of Health,Salisbury NHS Foundation Trust,12-Apr-13,TUBES,Clinical Support and Family Services,NHS LOGISTICS,1014002069,1.23,
Department of Health,Salisbury NHS Foundation Trust,12-Apr-13,PATIENTS BABY WEAR,Clinical Support and Family Services,NHS LOGISTICS,1014002069,0.58,
Department of Health,Salisbury NHS Foundation Trust,12-Apr-13,DRESSINGS - PRE STERILE,Clinical Support and Family Services,NHS LOGISTICS,1014002069,0.32,
Department of Health,Salisbury NHS Foundation Trust,12-Apr-13,SURGICAL INSTRUMENTS: GENERAL,Clinical Support and Family Services,NHS LOGISTICS,1014002069,0.1,
Department of Health,Salisbury NHS Foundation Trust,12-Apr-13,NON DISPOSABLE BED LINEN,Clinical Support and Family Services,NHS LOGISTICS,1014002069,1.08,
Department of Health,Salisbury NHS Foundation Trust,12-Apr-13,MEDSURGCONS - OTHER,Clinical Support and Family Services,NHS LOGISTICS,1014002069,3.65,
Department of Health,Salisbury NHS Foundation Trust,12-Apr-13,NON DISPOSABLE BED LINEN,Clinical Support and Family Services,NHS LOGISTICS,1014002069,4.9,
Department of Health,Salisbury NHS Foundation Trust,12-Apr-13,OTHER MEDICAL SUPPLIES,Clinical Support and Family Services,NHS LOGISTICS,1014002069,0.46,
Department of Health,Salisbury NHS Foundation Trust,12-Apr-13,TUBES,Clinical Support and Family Services,NHS LOGISTICS,1014002069,0.23,
Department of Health,Salisbury NHS Foundation Trust,12-Apr-13,TUBES,Clinical Support and Family Services,NHS LOGISTICS,1014002069,0.69,
Department of Health,Salisbury NHS Foundation Trust,12-Apr-13,PATIENT APPLIANCES,Clinical Support and Family Services,NHS LOGISTICS,1014002069,0.98,
Department of Health,Salisbury NHS Foundation Trust,12-Apr-13,OTHER MEDICAL SUPPLIES,Critical care,NHS LOGISTICS,1014002069,2.65,
Department of Health,Salisbury NHS Foundation Trust,12-Apr-13,DRESSINGS - PRE STERILE,Critical care,NHS LOGISTICS,1014002069,2.66,
Department of Health,Salisbury NHS Foundation Trust,12-Apr-13,DRESSINGS - PRE STERILE,Critical care,NHS LOGISTICS,1014002069,3.88,
Department of Health,Salisbury NHS Foundation Trust,12-Apr-13,TISSUES HAND TOWELS & TOILET PAPER,Critical care,NHS LOGISTICS,1014002069,0.36,
Department of Health,Salisbury NHS Foundation Trust,12-Apr-13,DRUGS,Critical care,NHS LOGISTICS,1014002069,1.54,
Department of Health,Salisbury NHS Foundation Trust,12-Apr-13,NON DISPOSABLE BED LINEN,Critical care,NHS LOGISTICS,1014002069,2.15,
Department of Health,Salisbury NHS Foundation Trust,12-Apr-13,STATIONERY SUNDRIES,Human Resources,NHS LOGISTICS,1014002069,1.31,
Department of Health,Salisbury NHS Foundation Trust,12-Apr-13,STATIONERY SUNDRIES,Human Resources,NHS LOGISTICS,1014002069,0.33,
Department of Health,Salisbury NHS Foundation Trust,12-Apr-13,PAPER ITEMS GENERAL STATIONERY SUNDRIES,Human Resources,NHS LOGISTICS,1014002069,2.01,
Department of Health,Salisbury NHS Foundation Trust,12-Apr-13,OTHER MEDICAL SUPPLIES,Critical care,NHS LOGISTICS,1014002069,4.42,
Department of Health,Salisbury NHS Foundation Trust,12-Apr-13,DRESSINGS - PRE STERILE,Critical care,NHS LOGISTICS,1014002069,1.33,
Department of Health,Salisbury NHS Foundation Trust,12-Apr-13,COOKING & KITCHEN UTENSILS,Critical care,NHS LOGISTICS,1014002069,0.74,
Department of Health,Salisbury NHS Foundation Trust,12-Apr-13,DRUGS,Critical care,NHS LOGISTICS,1014002069,1.54,
Department of Health,Salisbury NHS Foundation Trust,12-Apr-13,TISSUES HAND TOWELS & TOILET PAPER,Critical care,NHS LOGISTICS,1014002069,0.07,
Department of Health,Salisbury NHS Foundation Trust,12-Apr-13,NON DISPOSABLE BED LINEN,Critical care,NHS LOGISTICS,1014002069,2.15,
Department of Health,Salisbury NHS Foundation Trust,12-Apr-13,PATIENT APPLIANCES,Critical care,NHS LOGISTICS,1014002069,1.06,
Department of Health,Salisbury NHS Foundation Trust,12-Apr-13,TUBES,Surgery,NHS LOGISTICS,1014002069,155.17,
Department of Health,Salisbury NHS Foundation Trust,12-Apr-13,MED SURG EQUIP REP MAINT CLEANING,Clinical Support and Family Services,NHS LOGISTICS,1014002069,67.4,
Department of Health,Salisbury NHS Foundation Trust,12-Apr-13,TISSUES HAND TOWELS & TOILET PAPER,Clinical Support and Family Services,NHS LOGISTICS,1014002069,2.18,
Department of Health,Salisbury NHS Foundation Trust,12-Apr-13,SURGICAL INSTRUMENTS: DISPOSABLE,Clinical Support and Family Services,NHS LOGISTICS,1014002069,2.68,
Department of Health,Salisbury NHS Foundation Trust,12-Apr-13,OTHER MEDICAL SUPPLIES,Surgery,NHS LOGISTICS,1014002069,2.65,
Department of Health,Salisbury NHS Foundation Trust,12-Apr-13,DRESSINGS  -  PROCEDURE PACKS,Surgery,NHS LOGISTICS,1014002069,3.17,
Department of Health,Salisbury NHS Foundation Trust,12-Apr-13,DRESSINGS - PRE STERILE,Surgery,NHS LOGISTICS,1014002069,1.37,
Department of Health,Salisbury NHS Foundation Trust,12-Apr-13,SURGICAL INSTRUMENTS: GENERAL,Surgery,NHS LOGISTICS,1014002069,0.31,
Department of Health,Salisbury NHS Foundation Trust,12-Apr-13,PAPER ITEMS GENERAL STATIONERY SUNDRIES,Medicine,NHS LOGISTICS,1014002069,5.34,
Department of Health,Salisbury NHS Foundation Trust,12-Apr-13,PAPER ITEMS GENERAL STATIONERY SUNDRIES,Medicine,NHS LOGISTICS,1014002069,8.03,
Department of Health,Salisbury NHS Foundation Trust,12-Apr-13,STATIONERY SUNDRIES,Medicine,NHS LOGISTICS,1014002069,0.12,
Department of Health,Salisbury NHS Foundation Trust,12-Apr-13,STATIONERY SUNDRIES,Medicine,NHS LOGISTICS,1014002069,0.21,
Department of Health,Salisbury NHS Foundation Trust,12-Apr-13,PAPER ITEMS GENERAL STATIONERY SUNDRIES,Clinical Support and Family Services,NHS LOGISTICS,1014002069,3.13,
Department of Health,Salisbury NHS Foundation Trust,12-Apr-13,STATIONERY SUNDRIES,Clinical Support and Family Services,NHS LOGISTICS,1014002069,0.07,
Department of Health,Salisbury NHS Foundation Trust,12-Apr-13,ADULTS HEARING AIDS,Surgery,NHS LOGISTICS,1014002069,21.2,
Department of Health,Salisbury NHS Foundation Trust,12-Apr-13,ADULTS HEARING AIDS,Surgery,NHS LOGISTICS,1014002069,2.24,
Department of Health,Salisbury NHS Foundation Trust,12-Apr-13,ADULTS HEARING AIDS,Surgery,NHS LOGISTICS,1014002069,7.25,
Department of Health,Salisbury NHS Foundation Trust,12-Apr-13,ADULTS HEARING AIDS,Surgery,NHS LOGISTICS,1014002069,72.35,
Department of Health,Salisbury NHS Foundation Trust,12-Apr-13,MEDSURGCONS - OTHER,Clinical Support and Family Services,NHS LOGISTICS,1014002069,15.13,
Department of Health,Salisbury NHS Foundation Trust,12-Apr-13,MEDSURGCONS - OTHER,Critical care,NHS LOGISTICS,1014002069,10,
Department of Health,Salisbury NHS Foundation Trust,12-Apr-13,SEATING GENERAL,Medicine,NHS LOGISTICS,1014002069,0.58,
Department of Health,Salisbury NHS Foundation Trust,12-Apr-13,STATIONERY SUNDRIES,Medicine,NHS LOGISTICS,1014002069,2.36,
Department of Health,Salisbury NHS Foundation Trust,12-Apr-13,PAPER ITEMS GENERAL STATIONERY SUNDRIES,Medicine,NHS LOGISTICS,1014002069,2.01,
Department of Health,Salisbury NHS Foundation Trust,12-Apr-13,STATIONERY SUNDRIES,Medicine,NHS LOGISTICS,1014002069,1.82,
Department of Health,Salisbury NHS Foundation Trust,12-Apr-13,OTHER MEDICAL SUPPLIES,Surgery,NHS LOGISTICS,1014002069,2.65,
Department of Health,Salisbury NHS Foundation Trust,12-Apr-13,DRESSINGS - PRE STERILE,Surgery,NHS LOGISTICS,1014002069,5.87,
Department of Health,Salisbury NHS Foundation Trust,12-Apr-13,PATIENT APPLIANCES,Surgery,NHS LOGISTICS,1014002069,1.58,
Department of Health,Salisbury NHS Foundation Trust,12-Apr-13,PATIENT APPLIANCES,Surgery,NHS LOGISTICS,1014002069,1.58,
Department of Health,Salisbury NHS Foundation Trust,12-Apr-13,PATIENT APPLIANCES,Surgery,NHS LOGISTICS,1014002069,1.06,
Department of Health,Salisbury NHS Foundation Trust,12-Apr-13,BAGS SACKS - OTHER,Clinical Support and Family Services,NHS LOGISTICS,1014002069,0.93,
Department of Health,Salisbury NHS Foundation Trust,12-Apr-13,M & S EQUIPELECTEQUIPINST - OTHER,Surgery,NHS LOGISTICS,1014002069,5.55,
Department of Health,Salisbury NHS Foundation Trust,12-Apr-13,HEALTHCARE - WEAR,Critical care,NHS LOGISTICS,1014002069,24.9,
Department of Health,Salisbury NHS Foundation Trust,12-Apr-13,HEALTHCARE - WEAR,Critical care,NHS LOGISTICS,1014002069,3.61,
Department of Health,Salisbury NHS Foundation Trust,12-Apr-13,TISSUES HAND TOWELS & TOILET PAPER,Critical care,NHS LOGISTICS,1014002069,4.12,
Department of Health,Salisbury NHS Foundation Trust,12-Apr-13,NON DISPOSABLE BED LINEN,Critical care,NHS LOGISTICS,1014002069,5.02,
Department of Health,Salisbury NHS Foundation Trust,12-Apr-13,PATIENT APPLIANCES,Critical care,NHS LOGISTICS,1014002069,10.63,
Department of Health,Salisbury NHS Foundation Trust,12-Apr-13,PATIENT APPLIANCES,Critical care,NHS LOGISTICS,1014002069,1.53,
Department of Health,Salisbury NHS Foundation Trust,12-Apr-13,COOKING & KITCHEN UTENSILS,Critical care,NHS LOGISTICS,1014002069,0.49,
Department of Health,Salisbury NHS Foundation Trust,12-Apr-13,DRESSINGS - PRE STERILE,Critical care,NHS LOGISTICS,1014002069,0.47,
Department of Health,Salisbury NHS Foundation Trust,12-Apr-13,MEDSURGCONS - OTHER,Critical care,NHS LOGISTICS,1014002069,0.7,
Department of Health,Salisbury NHS Foundation Trust,12-Apr-13,MEDSURGCONS-SUTURES,Critical care,NHS LOGISTICS,1014002069,8.51,
Department of Health,Salisbury NHS Foundation Trust,12-Apr-13,MEDSURGCONS-SUTURES,Critical care,NHS LOGISTICS,1014002069,5.84,
Department of Health,Salisbury NHS Foundation Trust,12-Apr-13,DRESSINGS - PRE STERILE,Critical care,NHS LOGISTICS,1014002069,1,
Department of Health,Salisbury NHS Foundation Trust,12-Apr-13,DRESSINGS - PRE STERILE,Critical care,NHS LOGISTICS,1014002069,1.94,
Department of Health,Salisbury NHS Foundation Trust,12-Apr-13,SURGICAL INSTRUMENTS: GENERAL,Critical care,NHS LOGISTICS,1014002069,1.35,
Department of Health,Salisbury NHS Foundation Trust,12-Apr-13,TOILETRIES PERSONAL HYGIENE PRODUCTS,Critical care,NHS LOGISTICS,1014002069,1.46,
Department of Health,Salisbury NHS Foundation Trust,12-Apr-13,TISSUES HAND TOWELS & TOILET PAPER,Critical care,NHS LOGISTICS,1014002069,0.18,
Department of Health,Salisbury NHS Foundation Trust,12-Apr-13,DRESSINGS - PRE STERILE,Critical care,NHS LOGISTICS,1014002069,8,
Department of Health,Salisbury NHS Foundation Trust,12-Apr-13,MEDSURGCONS-SUTURES,Critical care,NHS LOGISTICS,1014002069,8.51,
Department of Health,Salisbury NHS Foundation Trust,12-Apr-13,BAGS SACKS - OTHER,Surgery,NHS LOGISTICS,1014002069,3.59,
Department of Health,Salisbury NHS Foundation Trust,12-Apr-13,OTHER MEDICAL SUPPLIES,Surgery,NHS LOGISTICS,1014002069,3.18,
Department of Health,Salisbury NHS Foundation Trust,12-Apr-13,DRESSINGS - PRE STERILE,Surgery,NHS LOGISTICS,1014002069,13.1,
Department of Health,Salisbury NHS Foundation Trust,12-Apr-13,DRESSINGS - PRE STERILE,Surgery,NHS LOGISTICS,1014002069,3.77,
Department of Health,Salisbury NHS Foundation Trust,12-Apr-13,DENTAL SURGERY EQUIPMENT,Surgery,NHS LOGISTICS,1014002069,1.78,
Department of Health,Salisbury NHS Foundation Trust,12-Apr-13,MEDSURGCONS - OTHER,Surgery,NHS LOGISTICS,1014002069,1.47,
Department of Health,Salisbury NHS Foundation Trust,12-Apr-13,DISPOSABLE THEATRE DRAPES WIPES,Surgery,NHS LOGISTICS,1014002069,0.76,
Department of Health,Salisbury NHS Foundation Trust,12-Apr-13,DISPOSABLE THEATRE DRAPES WIPES,Surgery,NHS LOGISTICS,1014002069,2.25,
Department of Health,Salisbury NHS Foundation Trust,12-Apr-13,DRESSINGS - PRE STERILE,Surgery,NHS LOGISTICS,1014002069,2.89,
Department of Health,Salisbury NHS Foundation Trust,12-Apr-13,MED SURG EQUIP REP MAINT CLEANING,Clinical Support and Family Services,NHS LOGISTICS,1014002069,9.18,
Department of Health,Salisbury NHS Foundation Trust,12-Apr-13,TISSUES HAND TOWELS & TOILET PAPER,Clinical Support and Family Services,NHS LOGISTICS,1014002069,0.73,
Department of Health,Salisbury NHS Foundation Trust,12-Apr-13,TISSUES HAND TOWELS & TOILET PAPER,Clinical Support and Family Services,NHS LOGISTICS,1014002069,0.09,
Department of Health,Salisbury NHS Foundation Trust,12-Apr-13,MEDSURGCONS - OTHER,Clinical Support and Family Services,NHS LOGISTICS,1014002069,0.75,
Department of Health,Salisbury NHS Foundation Trust,12-Apr-13,NON DISPOSABLE BED LINEN,Clinical Support and Family Services,NHS LOGISTICS,1014002069,2.15,
Department of Health,Salisbury NHS Foundation Trust,12-Apr-13,DRESSINGS - PRE STERILE,Surgery,NHS LOGISTICS,1014002069,3.23,
Department of Health,Salisbury NHS Foundation Trust,12-Apr-13,DRESSINGS - PRE STERILE,Surgery,NHS LOGISTICS,1014002069,1.77,
Department of Health,Salisbury NHS Foundation Trust,12-Apr-13,DRESSINGS - PRE STERILE,Surgery,NHS LOGISTICS,1014002069,1.65,
Department of Health,Salisbury NHS Foundation Trust,12-Apr-13,DRESSINGS - PRE STERILE,Surgery,NHS LOGISTICS,1014002069,1.55,
Department of Health,Salisbury NHS Foundation Trust,12-Apr-13,DRESSINGS - PRE STERILE,Surgery,NHS LOGISTICS,1014002069,0.95,
Department of Health,Salisbury NHS Foundation Trust,12-Apr-13,DRESSINGS - PRE STERILE,Surgery,NHS LOGISTICS,1014002069,0.65,
Department of Health,Salisbury NHS Foundation Trust,12-Apr-13,DRESSINGS - PRE STERILE,Surgery,NHS LOGISTICS,1014002069,0.98,
Department of Health,Salisbury NHS Foundation Trust,12-Apr-13,DRESSINGS - PRE STERILE,Surgery,NHS LOGISTICS,1014002069,0.81,
Department of Health,Salisbury NHS Foundation Trust,12-Apr-13,TISSUES HAND TOWELS & TOILET PAPER,Surgery,NHS LOGISTICS,1014002069,1.09,
Department of Health,Salisbury NHS Foundation Trust,12-Apr-13,TISSUES HAND TOWELS & TOILET PAPER,Surgery,NHS LOGISTICS,1014002069,2.18,
Department of Health,Salisbury NHS Foundation Trust,12-Apr-13,PATIENT APPLIANCES,Surgery,NHS LOGISTICS,1014002069,3.21,
Department of Health,Salisbury NHS Foundation Trust,12-Apr-13,PATIENT APPLIANCES,Surgery,NHS LOGISTICS,1014002069,3.21,
Department of Health,Salisbury NHS Foundation Trust,12-Apr-13,PATIENT APPLIANCES,Surgery,NHS LOGISTICS,1014002069,3.21,
Department of Health,Salisbury NHS Foundation Trust,12-Apr-13,OPTICAL  -  OTHER,Surgery,NHS LOGISTICS,1014002069,8.72,
Department of Health,Salisbury NHS Foundation Trust,12-Apr-13,PATIENTS BEDWEAR UNISEX,Medicine,NHS LOGISTICS,1014002069,10.5,
Department of Health,Salisbury NHS Foundation Trust,12-Apr-13,PAPER ITEMS GENERAL STATIONERY SUNDRIES,Medicine,NHS LOGISTICS,1014002069,6.03,
Department of Health,Salisbury NHS Foundation Trust,12-Apr-13,OTHER MEDICAL SUPPLIES,Surgery,NHS LOGISTICS,1014002069,4.42,
Department of Health,Salisbury NHS Foundation Trust,12-Apr-13,DRESSINGS - PRE STERILE,Surgery,NHS LOGISTICS,1014002069,1.33,
Department of Health,Salisbury NHS Foundation Trust,12-Apr-13,OTHER MEDICAL SUPPLIES,Surgery,NHS LOGISTICS,1014002069,1.14,
Department of Health,Salisbury NHS Foundation Trust,12-Apr-13,PATIENTS INCONTINENCE,Surgery,NHS LOGISTICS,1014002069,3.31,
Department of Health,Salisbury NHS Foundation Trust,12-Apr-13,NON DISPOSABLE BED LINEN,Surgery,NHS LOGISTICS,1014002069,4.17,
Department of Health,Salisbury NHS Foundation Trust,12-Apr-13,TISSUES HAND TOWELS & TOILET PAPER,Clinical Support and Family Services,NHS LOGISTICS,1014002069,4.02,
Department of Health,Salisbury NHS Foundation Trust,12-Apr-13,COOKING & KITCHEN UTENSILS,Clinical Support and Family Services,NHS LOGISTICS,1014002069,0.98,
Department of Health,Salisbury NHS Foundation Trust,12-Apr-13,DRESSINGS - PRE STERILE,Clinical Support and Family Services,NHS LOGISTICS,1014002069,1.09,
Department of Health,Salisbury NHS Foundation Trust,12-Apr-13,NON DISPOSABLE BED LINEN,Clinical Support and Family Services,NHS LOGISTICS,1014002069,0.91,
Department of Health,Salisbury NHS Foundation Trust,12-Apr-13,NON DISPOSABLE BED LINEN,Clinical Support and Family Services,NHS LOGISTICS,1014002069,4.17,
Department of Health,Salisbury NHS Foundation Trust,12-Apr-13,TISSUES HAND TOWELS & TOILET PAPER,Critical care,NHS LOGISTICS,1014002069,0.36,
Department of Health,Salisbury NHS Foundation Trust,12-Apr-13,PAPER ITEMS GENERAL STATIONERY SUNDRIES,Surgery,NHS LOGISTICS,1014002069,0.47,
Department of Health,Salisbury NHS Foundation Trust,12-Apr-13,ELECTRICAL EQUIPMENT x,Critical care,NHS LOGISTICS,1014002069,0.64,
Department of Health,Salisbury NHS Foundation Trust,12-Apr-13,PAPER ITEMS GENERAL STATIONERY SUNDRIES,Critical care,NHS LOGISTICS,1014002069,2.78,
Department of Health,Salisbury NHS Foundation Trust,12-Apr-13,STATIONERY SUNDRIES,Critical care,NHS LOGISTICS,1014002069,4.05,
Department of Health,Salisbury NHS Foundation Trust,12-Apr-13,HARD/SOFTWARE-COMPUTER ACCESSORIES  TEST EQUIPMENT,Critical care,NHS LOGISTICS,1014002069,0.42,
Department of Health,Salisbury NHS Foundation Trust,12-Apr-13,STATIONERY SUNDRIES,Critical care,NHS LOGISTICS,1014002069,3.45,
Department of Health,Salisbury NHS Foundation Trust,12-Apr-13,STATIONERY SUNDRIES,Critical care,NHS LOGISTICS,1014002069,0.1,
Department of Health,Salisbury NHS Foundation Trust,12-Apr-13,TISSUES HAND TOWELS & TOILET PAPER,Critical care,NHS LOGISTICS,1014002069,1.5,
Department of Health,Salisbury NHS Foundation Trust,12-Apr-13,STATIONERY SUNDRIES,Critical care,NHS LOGISTICS,1014002069,0.44,
Department of Health,Salisbury NHS Foundation Trust,12-Apr-13,PAPER ITEMS GENERAL STATIONERY SUNDRIES,Critical care,NHS LOGISTICS,1014002069,3.09,
Department of Health,Salisbury NHS Foundation Trust,12-Apr-13,STATIONERY SUNDRIES,Critical care,NHS LOGISTICS,1014002069,0.5,
Department of Health,Salisbury NHS Foundation Trust,12-Apr-13,DRESSINGS - PRE STERILE,Critical care,NHS LOGISTICS,1014002069,0.5,
Department of Health,Salisbury NHS Foundation Trust,12-Apr-13,PATIENTS FOOTWEAR,Critical care,NHS LOGISTICS,1014002069,7.66,
Department of Health,Salisbury NHS Foundation Trust,12-Apr-13,PATIENTS FOOTWEAR,Critical care,NHS LOGISTICS,1014002069,7.66,
Department of Health,Salisbury NHS Foundation Trust,12-Apr-13,TISSUES HAND TOWELS & TOILET PAPER,Critical care,NHS LOGISTICS,1014002069,2.18,
Department of Health,Salisbury NHS Foundation Trust,12-Apr-13,COOKING & KITCHEN UTENSILS,Critical care,NHS LOGISTICS,1014002069,0.74,
Department of Health,Salisbury NHS Foundation Trust,12-Apr-13,DRESSINGS - PRE STERILE,Critical care,NHS LOGISTICS,1014002069,5.54,
Department of Health,Salisbury NHS Foundation Trust,12-Apr-13,DRESSINGS - PRE STERILE,Critical care,NHS LOGISTICS,1014002069,3.96,
Department of Health,Salisbury NHS Foundation Trust,12-Apr-13,DRESSINGS - PRE STERILE,Critical care,NHS LOGISTICS,1014002069,4.56,
Department of Health,Salisbury NHS Foundation Trust,12-Apr-13,DRESSINGS - PRE STERILE,Critical care,NHS LOGISTICS,1014002069,2.67,
Department of Health,Salisbury NHS Foundation Trust,12-Apr-13,TOILETRIES PERSONAL HYGIENE PRODUCTS,Surgery,NHS LOGISTICS,1014002069,2.3,
Department of Health,Salisbury NHS Foundation Trust,12-Apr-13,TOILETRIES PERSONAL HYGIENE PRODUCTS,Surgery,NHS LOGISTICS,1014002069,0.79,
Department of Health,Salisbury NHS Foundation Trust,12-Apr-13,PAPER ITEMS GENERAL STATIONERY SUNDRIES,Surgery,NHS LOGISTICS,1014002069,1.2,
Department of Health,Salisbury NHS Foundation Trust,12-Apr-13,TISSUES HAND TOWELS & TOILET PAPER,Surgery,NHS LOGISTICS,1014002069,2.25,
Department of Health,Salisbury NHS Foundation Trust,12-Apr-13,MEDSURGCONS - OTHER,Medicine,NHS LOGISTICS,1014002069,3.51,
Department of Health,Salisbury NHS Foundation Trust,12-Apr-13,MEDSURGCONS-SUTURES,Medicine,NHS LOGISTICS,1014002069,8.78,
Department of Health,Salisbury NHS Foundation Trust,12-Apr-13,MEDSURGCONS - OTHER,Medicine,NHS LOGISTICS,1014002069,1.04,
Department of Health,Salisbury NHS Foundation Trust,12-Apr-13,DRESSINGS - PRE STERILE,Medicine,NHS LOGISTICS,1014002069,0.22,
Department of Health,Salisbury NHS Foundation Trust,12-Apr-13,MEDSURGCONS - OTHER,Medicine,NHS LOGISTICS,1014002069,0.23,
Department of Health,Salisbury NHS Foundation Trust,12-Apr-13,MEDSURGCONS - OTHER,Medicine,NHS LOGISTICS,1014002069,3.65,
Department of Health,Salisbury NHS Foundation Trust,12-Apr-13,PATIENT APPLIANCES,Medicine,NHS LOGISTICS,1014002069,6.59,
Department of Health,Salisbury NHS Foundation Trust,12-Apr-13,PATIENT APPLIANCES,Medicine,NHS LOGISTICS,1014002069,3.29,
Department of Health,Salisbury NHS Foundation Trust,12-Apr-13,PATIENT APPLIANCES,Medicine,NHS LOGISTICS,1014002069,4.94,
Department of Health,Salisbury NHS Foundation Trust,12-Apr-13,PATIENT APPLIANCES,Medicine,NHS LOGISTICS,1014002069,3.29,
Department of Health,Salisbury NHS Foundation Trust,12-Apr-13,PATIENT APPLIANCES,Medicine,NHS LOGISTICS,1014002069,3.29,
Department of Health,Salisbury NHS Foundation Trust,12-Apr-13,OTHER MEDICAL SUPPLIES,Medicine,NHS LOGISTICS,1014002069,2.22,
Department of Health,Salisbury NHS Foundation Trust,12-Apr-13,PATIENTS INCONTINENCE,Medicine,NHS LOGISTICS,1014002069,0.86,
Department of Health,Salisbury NHS Foundation Trust,12-Apr-13,PATIENTS INCONTINENCE,Medicine,NHS LOGISTICS,1014002069,1.09,
Department of Health,Salisbury NHS Foundation Trust,12-Apr-13,MEDSURGCONS - OTHER,Medicine,NHS LOGISTICS,1014002069,1.37,
Department of Health,Salisbury NHS Foundation Trust,12-Apr-13,MEDSURGCONS - OTHER,Medicine,NHS LOGISTICS,1014002069,3.13,
Department of Health,Salisbury NHS Foundation Trust,12-Apr-13,MEDSURGCONS - OTHER,Medicine,NHS LOGISTICS,1014002069,1.65,
Department of Health,Salisbury NHS Foundation Trust,12-Apr-13,TOILETRIES PERSONAL HYGIENE PRODUCTS,Medicine,NHS LOGISTICS,1014002069,0.64,
Department of Health,Salisbury NHS Foundation Trust,12-Apr-13,NON DISPOSABLE BED LINEN,Medicine,NHS LOGISTICS,1014002069,2.15,
Department of Health,Salisbury NHS Foundation Trust,12-Apr-13,ANAESTHETIC EQUIPMENT ACCESSORIES,Surgery,NHS LOGISTICS,1014002069,17.13,
Department of Health,Salisbury NHS Foundation Trust,12-Apr-13,MEDSURGCONS - OTHER,Surgery,NHS LOGISTICS,1014002069,5.5,
Department of Health,Salisbury NHS Foundation Trust,12-Apr-13,OTHER MEDICAL SUPPLIES,Surgery,NHS LOGISTICS,1014002069,9.17,
Department of Health,Salisbury NHS Foundation Trust,12-Apr-13,OTHER MEDICAL SUPPLIES,Surgery,NHS LOGISTICS,1014002069,2.33,
Department of Health,Salisbury NHS Foundation Trust,12-Apr-13,OTHER MEDICAL SUPPLIES,Surgery,NHS LOGISTICS,1014002069,2.33,
Department of Health,Salisbury NHS Foundation Trust,12-Apr-13,BEVERAGES & AMBIENT FOOD,Facilities Directorate,NHS LOGISTICS,1014002069,2.2,
Department of Health,Salisbury NHS Foundation Trust,12-Apr-13,LIQUID REFRESHMENTS,Facilities Directorate,NHS LOGISTICS,1014002069,14.76,
Department of Health,Salisbury NHS Foundation Trust,12-Apr-13,BEVERAGES & AMBIENT FOOD,Facilities Directorate,NHS LOGISTICS,1014002069,2.55,
Department of Health,Salisbury NHS Foundation Trust,12-Apr-13,BEVERAGES & AMBIENT FOOD,Facilities Directorate,NHS LOGISTICS,1014002069,2.55,
Department of Health,Salisbury NHS Foundation Trust,12-Apr-13,M & S EQUIPELECTEQUIPINST - OTHER,Critical care,NHS LOGISTICS,1014002069,4.34,
Department of Health,Salisbury NHS Foundation Trust,12-Apr-13,COOKING & KITCHEN UTENSILS,Clinical Support and Family Services,NHS LOGISTICS,1014002069,0.49,
Department of Health,Salisbury NHS Foundation Trust,12-Apr-13,DISPOSABLE THEATRE DRAPES WIPES,Clinical Support and Family Services,NHS LOGISTICS,1014002069,0.33,
Department of Health,Salisbury NHS Foundation Trust,12-Apr-13,MEDSURGCONS - OTHER,Clinical Support and Family Services,NHS LOGISTICS,1014002069,2.16,
Department of Health,Salisbury NHS Foundation Trust,12-Apr-13,MEDSURGCONS - OTHER,Clinical Support and Family Services,NHS LOGISTICS,1014002069,2.16,
Department of Health,Salisbury NHS Foundation Trust,12-Apr-13,DRESSINGS - PRE STERILE,Clinical Support and Family Services,NHS LOGISTICS,1014002069,0.08,
Department of Health,Salisbury NHS Foundation Trust,12-Apr-13,LAB EQUIP-LABORATORY APPARATUS,Clinical Support and Family Services,NHS LOGISTICS,1014002069,1.51,
Department of Health,Salisbury NHS Foundation Trust,12-Apr-13,DRUGS,Clinical Support and Family Services,NHS LOGISTICS,1014002069,0.17,
Department of Health,Salisbury NHS Foundation Trust,12-Apr-13,TISSUES HAND TOWELS & TOILET PAPER,Clinical Support and Family Services,NHS LOGISTICS,1014002069,4.02,
Department of Health,Salisbury NHS Foundation Trust,12-Apr-13,OTHER MEDICAL SUPPLIES,Clinical Support and Family Services,NHS LOGISTICS,1014002069,1.68,
Department of Health,Salisbury NHS Foundation Trust,12-Apr-13,TOILETRIES PERSONAL HYGIENE PRODUCTS,Clinical Support and Family Services,NHS LOGISTICS,1014002069,0.79,
Department of Health,Salisbury NHS Foundation Trust,12-Apr-13,DISPOSABLE THEATRE DRAPES WIPES,Clinical Support and Family Services,NHS LOGISTICS,1014002069,2.29,
Department of Health,Salisbury NHS Foundation Trust,12-Apr-13,DISPOSABLE THEATRE DRAPES WIPES,Clinical Support and Family Services,NHS LOGISTICS,1014002069,0.13,
Department of Health,Salisbury NHS Foundation Trust,12-Apr-13,OTHER MEDICAL SUPPLIES,Clinical Support and Family Services,NHS LOGISTICS,1014002069,16.34,
Department of Health,Salisbury NHS Foundation Trust,12-Apr-13,NON DISPOSABLE BED LINEN,Clinical Support and Family Services,NHS LOGISTICS,1014002069,1.08,
Department of Health,Salisbury NHS Foundation Trust,12-Apr-13,TISSUES HAND TOWELS & TOILET PAPER,Clinical Support and Family Services,NHS LOGISTICS,1014002069,0.45,
Department of Health,Salisbury NHS Foundation Trust,12-Apr-13,COOKING & KITCHEN UTENSILS,Clinical Support and Family Services,NHS LOGISTICS,1014002069,0.49,
Department of Health,Salisbury NHS Foundation Trust,12-Apr-13,TISSUES HAND TOWELS & TOILET PAPER,Clinical Support and Family Services,NHS LOGISTICS,1014002069,9.3,
Department of Health,Salisbury NHS Foundation Trust,12-Apr-13,DRESSINGS - PRE STERILE,Clinical Support and Family Services,NHS LOGISTICS,1014002069,0.36,
Department of Health,Salisbury NHS Foundation Trust,12-Apr-13,BABY TEXTURE MODIFIED FOODS,Clinical Support and Family Services,NHS LOGISTICS,1014002069,5.91,
Department of Health,Salisbury NHS Foundation Trust,12-Apr-13,DISPOSABLE THEATRE DRAPES WIPES,Clinical Support and Family Services,NHS LOGISTICS,1014002069,1.42,
Department of Health,Salisbury NHS Foundation Trust,12-Apr-13,MEDSURGCONS - OTHER,Clinical Support and Family Services,NHS LOGISTICS,1014002069,1.37,
Department of Health,Salisbury NHS Foundation Trust,12-Apr-13,MEDSURGCONS - OTHER,Clinical Support and Family Services,NHS LOGISTICS,1014002069,1.98,
Department of Health,Salisbury NHS Foundation Trust,12-Apr-13,M & S EQUIPELECTEQUIPINST - OTHER,Clinical Support and Family Services,NHS LOGISTICS,1014002069,3.18,
Department of Health,Salisbury NHS Foundation Trust,12-Apr-13,OTHER MEDICAL SUPPLIES,Clinical Support and Family Services,NHS LOGISTICS,1014002069,0.56,
Department of Health,Salisbury NHS Foundation Trust,12-Apr-13,MEDSURGCONS - OTHER,Clinical Support and Family Services,NHS LOGISTICS,1014002069,1.14,
Department of Health,Salisbury NHS Foundation Trust,12-Apr-13,DRESSINGS - PRE STERILE,Clinical Support and Family Services,NHS LOGISTICS,1014002069,0.43,
Department of Health,Salisbury NHS Foundation Trust,12-Apr-13,M & S EQUIPELECTEQUIPINST - OTHER,Clinical Support and Family Services,NHS LOGISTICS,1014002069,0.69,
Department of Health,Salisbury NHS Foundation Trust,12-Apr-13,MEDSURGCONS-SUTURES,Surgery,NHS LOGISTICS,1014002069,6.59,
Department of Health,Salisbury NHS Foundation Trust,12-Apr-13,MEDSURGCONS-SUTURES,Surgery,NHS LOGISTICS,1014002069,21.2,
Department of Health,Salisbury NHS Foundation Trust,12-Apr-13,MEDSURGCONS-SUTURES,Surgery,NHS LOGISTICS,1014002069,7.11,
Department of Health,Salisbury NHS Foundation Trust,12-Apr-13,MEDSURGCONS-SUTURES,Surgery,NHS LOGISTICS,1014002069,10.79,
Department of Health,Salisbury NHS Foundation Trust,12-Apr-13,MEDSURGCONS-SUTURES,Surgery,NHS LOGISTICS,1014002069,12.15,
Department of Health,Salisbury NHS Foundation Trust,12-Apr-13,MEDSURGCONS-SUTURES,Surgery,NHS LOGISTICS,1014002069,17.57,
Department of Health,Salisbury NHS Foundation Trust,12-Apr-13,MEDSURGCONS-SUTURES,Surgery,NHS LOGISTICS,1014002069,21.31,
Department of Health,Salisbury NHS Foundation Trust,12-Apr-13,MEDSURGCONS-SUTURES,Surgery,NHS LOGISTICS,1014002069,3.64,
Department of Health,Salisbury NHS Foundation Trust,12-Apr-13,MEDSURGCONS-SUTURES,Surgery,NHS LOGISTICS,1014002069,10.54,
Department of Health,Salisbury NHS Foundation Trust,12-Apr-13,MEDSURGCONS-SUTURES,Surgery,NHS LOGISTICS,1014002069,17.24,
Department of Health,Salisbury NHS Foundation Trust,12-Apr-13,MEDSURGCONS-SUTURES,Surgery,NHS LOGISTICS,1014002069,11.22,
Department of Health,Salisbury NHS Foundation Trust,12-Apr-13,MEDSURGCONS-SUTURES,Surgery,NHS LOGISTICS,1014002069,12.13,
Department of Health,Salisbury NHS Foundation Trust,12-Apr-13,MEDSURGCONS-SUTURES,Surgery,NHS LOGISTICS,1014002069,21.32,
Department of Health,Salisbury NHS Foundation Trust,12-Apr-13,DRESSINGS - PRE STERILE,Medicine,NHS LOGISTICS,1014002069,9.12,
Department of Health,Salisbury NHS Foundation Trust,12-Apr-13,DRESSINGS - PRE STERILE,Medicine,NHS LOGISTICS,1014002069,11.16,
Department of Health,Salisbury NHS Foundation Trust,12-Apr-13,BABY TEXTURE MODIFIED FOODS,Clinical Support and Family Services,NHS LOGISTICS,1014002069,3.54,
Department of Health,Salisbury NHS Foundation Trust,12-Apr-13,PAPER ITEMS GENERAL STATIONERY SUNDRIES,Medicine,NHS LOGISTICS,1014002069,4.02,
Department of Health,Salisbury NHS Foundation Trust,12-Apr-13,STATIONERY SUNDRIES,Medicine,NHS LOGISTICS,1014002069,2.74,
Department of Health,Salisbury NHS Foundation Trust,12-Apr-13,PATIENTS BEDWEAR UNISEX,Critical care,NHS LOGISTICS,1014002069,10.5,
Department of Health,Salisbury NHS Foundation Trust,12-Apr-13,STATIONERY SUNDRIES,Critical care,NHS LOGISTICS,1014002069,0.08,
Department of Health,Salisbury NHS Foundation Trust,12-Apr-13,HEALTHCARE - WEAR,Surgery,NHS LOGISTICS,1014002069,51.07,
Department of Health,Salisbury NHS Foundation Trust,12-Apr-13,HEALTHCARE - WEAR,Surgery,NHS LOGISTICS,1014002069,29.34,
Department of Health,Salisbury NHS Foundation Trust,12-Apr-13,PAPER ITEMS GENERAL STATIONERY SUNDRIES,Surgery,NHS LOGISTICS,1014002069,4.54,
Department of Health,Salisbury NHS Foundation Trust,12-Apr-13,PAPER ITEMS GENERAL STATIONERY SUNDRIES,Surgery,NHS LOGISTICS,1014002069,5.56,
Department of Health,Salisbury NHS Foundation Trust,12-Apr-13,PAPER ITEMS GENERAL STATIONERY SUNDRIES,Surgery,NHS LOGISTICS,1014002069,7.47,
Department of Health,Salisbury NHS Foundation Trust,12-Apr-13,STATIONERY SUNDRIES,Surgery,NHS LOGISTICS,1014002069,0.37,
Department of Health,Salisbury NHS Foundation Trust,12-Apr-13,MEDSURGCONS - OTHER,Medicine,NHS LOGISTICS,1014002069,0.28,
Department of Health,Salisbury NHS Foundation Trust,12-Apr-13,MEDSURGCONS - OTHER,Medicine,NHS LOGISTICS,1014002069,0.55,
Department of Health,Salisbury NHS Foundation Trust,12-Apr-13,BAGS SACKS - OTHER,Medicine,NHS LOGISTICS,1014002069,3.85,
Department of Health,Salisbury NHS Foundation Trust,12-Apr-13,TISSUES HAND TOWELS & TOILET PAPER,Medicine,NHS LOGISTICS,1014002069,1.09,
Department of Health,Salisbury NHS Foundation Trust,12-Apr-13,TISSUES HAND TOWELS & TOILET PAPER,Medicine,NHS LOGISTICS,1014002069,0.71,
Department of Health,Salisbury NHS Foundation Trust,12-Apr-13,CLEANING MATERIALS PRODUCTS SUNDRIES,Medicine,NHS LOGISTICS,1014002069,4.45,
Department of Health,Salisbury NHS Foundation Trust,12-Apr-13,PATIENT APPLIANCES,Medicine,NHS LOGISTICS,1014002069,0.78,
Department of Health,Salisbury NHS Foundation Trust,12-Apr-13,MEDSURGCONS - OTHER,Medicine,NHS LOGISTICS,1014002069,1.04,
Department of Health,Salisbury NHS Foundation Trust,12-Apr-13,NON DISPOSABLE BED LINEN,Medicine,NHS LOGISTICS,1014002069,3.23,
Department of Health,Salisbury NHS Foundation Trust,12-Apr-13,PATIENT APPLIANCES,Medicine,NHS LOGISTICS,1014002069,1.06,
Department of Health,Salisbury NHS Foundation Trust,12-Apr-13,PATIENT APPLIANCES,Medicine,NHS LOGISTICS,1014002069,0.38,
Department of Health,Salisbury NHS Foundation Trust,12-Apr-13,OTHER MEDICAL SUPPLIES,Surgery,NHS LOGISTICS,1014002069,7.07,
Department of Health,Salisbury NHS Foundation Trust,12-Apr-13,TUBES,Surgery,NHS LOGISTICS,1014002069,4.13,
Department of Health,Salisbury NHS Foundation Trust,12-Apr-13,MEDSURGCONS - OTHER,Surgery,NHS LOGISTICS,1014002069,6.17,
Department of Health,Salisbury NHS Foundation Trust,12-Apr-13,ANAESTHETIC EQUIPMENT ACCESSORIES,Surgery,NHS LOGISTICS,1014002069,6.35,
Department of Health,Salisbury NHS Foundation Trust,12-Apr-13,DRESSINGS - PRE STERILE,Surgery,NHS LOGISTICS,1014002069,13.1,
Department of Health,Salisbury NHS Foundation Trust,12-Apr-13,MEDSURGCONS - OTHER,Surgery,NHS LOGISTICS,1014002069,2.75,
Department of Health,Salisbury NHS Foundation Trust,12-Apr-13,MEDSURGCONS - OTHER,Surgery,NHS LOGISTICS,1014002069,2.44,
Department of Health,Salisbury NHS Foundation Trust,12-Apr-13,HABERDASHERY,Surgery,NHS LOGISTICS,1014002069,1.99,
Department of Health,Salisbury NHS Foundation Trust,12-Apr-13,TOILETRIES PERSONAL HYGIENE PRODUCTS,Surgery,NHS LOGISTICS,1014002069,0.75,
Department of Health,Salisbury NHS Foundation Trust,12-Apr-13,TOILETRIES PERSONAL HYGIENE PRODUCTS,Surgery,NHS LOGISTICS,1014002069,1.2,
Department of Health,Salisbury NHS Foundation Trust,12-Apr-13,DRESSINGS - PRE STERILE,Surgery,NHS LOGISTICS,1014002069,5.77,
Department of Health,Salisbury NHS Foundation Trust,12-Apr-13,BAGS SACKS - OTHER,Surgery,NHS LOGISTICS,1014002069,2.41,
Department of Health,Salisbury NHS Foundation Trust,12-Apr-13,MEDSURGCONS-LAPAROSCOPIC EQUIPMENT,Surgery,NHS LOGISTICS,1014002069,26.94,
Department of Health,Salisbury NHS Foundation Trust,12-Apr-13,CLEANING MATERIALS PRODUCTS SUNDRIES,Surgery,NHS LOGISTICS,1014002069,5.67,
Department of Health,Salisbury NHS Foundation Trust,12-Apr-13,COOKING & KITCHEN UTENSILS,Surgery,NHS LOGISTICS,1014002069,3.51,
Department of Health,Salisbury NHS Foundation Trust,12-Apr-13,DRESSINGS  -  PROCEDURE PACKS,Surgery,NHS LOGISTICS,1014002069,0.29,
Department of Health,Salisbury NHS Foundation Trust,12-Apr-13,BEVERAGES & AMBIENT FOOD,Surgery,NHS LOGISTICS,1014002069,5.89,
Department of Health,Salisbury NHS Foundation Trust,12-Apr-13,BEVERAGES & AMBIENT FOOD,Surgery,NHS LOGISTICS,1014002069,1.22,
Department of Health,Salisbury NHS Foundation Trust,12-Apr-13,MEDSURGCONS - OTHER,Surgery,NHS LOGISTICS,1014002069,25.44,
Department of Health,Salisbury NHS Foundation Trust,12-Apr-13,DRESSINGS  -  PROCEDURE PACKS,Surgery,NHS LOGISTICS,1014002069,2.73,
Department of Health,Salisbury NHS Foundation Trust,12-Apr-13,PAPER ITEMS GENERAL STATIONERY SUNDRIES,Surgery,NHS LOGISTICS,1014002069,2.01,
Department of Health,Salisbury NHS Foundation Trust,12-Apr-13,DRUGS,Surgery,NHS LOGISTICS,1014002069,18.12,
Department of Health,Salisbury NHS Foundation Trust,12-Apr-13,BEVERAGES & AMBIENT FOOD,Surgery,NHS LOGISTICS,1014002069,0.45,
Department of Health,Salisbury NHS Foundation Trust,12-Apr-13,DRUGS,Surgery,NHS LOGISTICS,1014002069,9.06,
Department of Health,Salisbury NHS Foundation Trust,12-Apr-13,DRESSINGS - PRE STERILE,Surgery,NHS LOGISTICS,1014002069,4.01,
Department of Health,Salisbury NHS Foundation Trust,12-Apr-13,DRESSINGS - PRE STERILE,Surgery,NHS LOGISTICS,1014002069,6.96,
Department of Health,Salisbury NHS Foundation Trust,12-Apr-13,DRESSINGS - PRE STERILE,Surgery,NHS LOGISTICS,1014002069,11.74,
Department of Health,Salisbury NHS Foundation Trust,12-Apr-13,PATIENT APPLIANCES,Surgery,NHS LOGISTICS,1014002069,4.25,
Department of Health,Salisbury NHS Foundation Trust,12-Apr-13,CLEANING MATERIALS PRODUCTS SUNDRIES,Surgery,NHS LOGISTICS,1014002069,1.28,
Department of Health,Salisbury NHS Foundation Trust,12-Apr-13,DISPOSABLE THEATRE DRAPES WIPES,Surgery,NHS LOGISTICS,1014002069,2.25,
Department of Health,Salisbury NHS Foundation Trust,12-Apr-13,OTHER MEDICAL SUPPLIES,Medicine,NHS LOGISTICS,1014002069,4.42,
Department of Health,Salisbury NHS Foundation Trust,12-Apr-13,DRESSINGS - PRE STERILE,Medicine,NHS LOGISTICS,1014002069,0.43,
Department of Health,Salisbury NHS Foundation Trust,12-Apr-13,DRESSINGS - PRE STERILE,Medicine,NHS LOGISTICS,1014002069,1.33,
Department of Health,Salisbury NHS Foundation Trust,12-Apr-13,OTHER MEDICAL SUPPLIES,Medicine,NHS LOGISTICS,1014002069,3.31,
Department of Health,Salisbury NHS Foundation Trust,12-Apr-13,CLEANING MATERIALS PRODUCTS SUNDRIES,Medicine,NHS LOGISTICS,1014002069,1.39,
Department of Health,Salisbury NHS Foundation Trust,12-Apr-13,TUBES,Medicine,NHS LOGISTICS,1014002069,1.23,
Department of Health,Salisbury NHS Foundation Trust,12-Apr-13,OTHER MEDICAL SUPPLIES,Medicine,NHS LOGISTICS,1014002069,1.14,
Department of Health,Salisbury NHS Foundation Trust,12-Apr-13,PATIENTS INCONTINENCE,Medicine,NHS LOGISTICS,1014002069,0.86,
Department of Health,Salisbury NHS Foundation Trust,12-Apr-13,TOILETRIES PERSONAL HYGIENE PRODUCTS,Medicine,NHS LOGISTICS,1014002069,3.82,
Department of Health,Salisbury NHS Foundation Trust,12-Apr-13,MEDSURGCONS - OTHER,Medicine,NHS LOGISTICS,1014002069,3.13,
Department of Health,Salisbury NHS Foundation Trust,12-Apr-13,MEDSURGCONS - OTHER,Medicine,NHS LOGISTICS,1014002069,2.48,
Department of Health,Salisbury NHS Foundation Trust,12-Apr-13,TISSUES HAND TOWELS & TOILET PAPER,Medicine,NHS LOGISTICS,1014002069,0.43,
Department of Health,Salisbury NHS Foundation Trust,12-Apr-13,MED SURG EQUIP REP MAINT CLEANING,Medicine,NHS LOGISTICS,1014002069,2.22,
Department of Health,Salisbury NHS Foundation Trust,12-Apr-13,NON DISPOSABLE BED LINEN,Medicine,NHS LOGISTICS,1014002069,2.15,
Department of Health,Salisbury NHS Foundation Trust,12-Apr-13,DRESSINGS  -  PROCEDURE PACKS,Surgery,NHS LOGISTICS,1014002069,0.23,
Department of Health,Salisbury NHS Foundation Trust,12-Apr-13,DRESSINGS  -  PROCEDURE PACKS,Surgery,NHS LOGISTICS,1014002069,0.35,
Department of Health,Salisbury NHS Foundation Trust,12-Apr-13,DRESSINGS - PRE STERILE,Surgery,NHS LOGISTICS,1014002069,5.87,
Department of Health,Salisbury NHS Foundation Trust,12-Apr-13,TISSUES HAND TOWELS & TOILET PAPER,Surgery,NHS LOGISTICS,1014002069,0.14,
Department of Health,Salisbury NHS Foundation Trust,12-Apr-13,TISSUES HAND TOWELS & TOILET PAPER,Surgery,NHS LOGISTICS,1014002069,0.36,
Department of Health,Salisbury NHS Foundation Trust,12-Apr-13,DISPOSABLE THEATRE DRAPES WIPES,Surgery,NHS LOGISTICS,1014002069,0.44,
Department of Health,Salisbury NHS Foundation Trust,12-Apr-13,OTHER MEDICAL SUPPLIES,Surgery,NHS LOGISTICS,1014002069,4.42,
Department of Health,Salisbury NHS Foundation Trust,12-Apr-13,BAGS SACKS - OTHER,Surgery,NHS LOGISTICS,1014002069,0.8,
Department of Health,Salisbury NHS Foundation Trust,12-Apr-13,OTHER MEDICAL SUPPLIES,Surgery,NHS LOGISTICS,1014002069,3.31,
Department of Health,Salisbury NHS Foundation Trust,12-Apr-13,COOKING & KITCHEN UTENSILS,Surgery,NHS LOGISTICS,1014002069,1.96,
Department of Health,Salisbury NHS Foundation Trust,12-Apr-13,CLEANING MATERIALS PRODUCTS SUNDRIES,Surgery,NHS LOGISTICS,1014002069,1.39,
Department of Health,Salisbury NHS Foundation Trust,12-Apr-13,PATIENTS INCONTINENCE,Surgery,NHS LOGISTICS,1014002069,0.81,
Department of Health,Salisbury NHS Foundation Trust,12-Apr-13,MED SURG EQUIP REP MAINT CLEANING,Surgery,NHS LOGISTICS,1014002069,3.45,
Department of Health,Salisbury NHS Foundation Trust,12-Apr-13,M & S EQUIPELECTEQUIPINST - OTHER,Surgery,NHS LOGISTICS,1014002069,12.73,
Department of Health,Salisbury NHS Foundation Trust,12-Apr-13,MEDSURGCONS - OTHER,Surgery,NHS LOGISTICS,1014002069,3.3,
Department of Health,Salisbury NHS Foundation Trust,12-Apr-13,DRESSINGS - PRE STERILE,Surgery,NHS LOGISTICS,1014002069,0.27,
Department of Health,Salisbury NHS Foundation Trust,12-Apr-13,PATIENTS INCONTINENCE,Surgery,NHS LOGISTICS,1014002069,2.58,
Department of Health,Salisbury NHS Foundation Trust,12-Apr-13,MEDSURGCONS - OTHER,Surgery,NHS LOGISTICS,1014002069,3.25,
Department of Health,Salisbury NHS Foundation Trust,12-Apr-13,MEDSURGCONS - OTHER,Surgery,NHS LOGISTICS,1014002069,2.08,
Department of Health,Salisbury NHS Foundation Trust,12-Apr-13,NON DISPOSABLE BED LINEN,Surgery,NHS LOGISTICS,1014002069,4.17,
Department of Health,Salisbury NHS Foundation Trust,12-Apr-13,PATIENT APPLIANCES,Surgery,NHS LOGISTICS,1014002069,1.06,
Department of Health,Salisbury NHS Foundation Trust,12-Apr-13,OTHER MEDICAL SUPPLIES,Medicine,NHS LOGISTICS,1014002069,10.35,
Department of Health,Salisbury NHS Foundation Trust,12-Apr-13,TISSUES HAND TOWELS & TOILET PAPER,Medicine,NHS LOGISTICS,1014002069,0.36,
Department of Health,Salisbury NHS Foundation Trust,12-Apr-13,OTHER MEDICAL SUPPLIES,Medicine,NHS LOGISTICS,1014002069,0.36,
Department of Health,Salisbury NHS Foundation Trust,12-Apr-13,DRESSINGS - PRE STERILE,Medicine,NHS LOGISTICS,1014002069,0.92,
Department of Health,Salisbury NHS Foundation Trust,12-Apr-13,OTHER MEDICAL SUPPLIES,Medicine,NHS LOGISTICS,1014002069,1.77,
Department of Health,Salisbury NHS Foundation Trust,12-Apr-13,TISSUES HAND TOWELS & TOILET PAPER,Medicine,NHS LOGISTICS,1014002069,0.18,
Department of Health,Salisbury NHS Foundation Trust,12-Apr-13,MEDSURGCONS - OTHER,Medicine,NHS LOGISTICS,1014002069,2.8,
Department of Health,Salisbury NHS Foundation Trust,12-Apr-13,MEDSURGCONS - OTHER,Medicine,NHS LOGISTICS,1014002069,1.86,
Department of Health,Salisbury NHS Foundation Trust,12-Apr-13,MEDSURGCONS - OTHER,Medicine,NHS LOGISTICS,1014002069,10.92,
Department of Health,Salisbury NHS Foundation Trust,12-Apr-13,OTHER MEDICAL SUPPLIES,Medicine,NHS LOGISTICS,1014002069,1.49,
Department of Health,Salisbury NHS Foundation Trust,12-Apr-13,MEDSURGCONS - OTHER,Medicine,NHS LOGISTICS,1014002069,3.13,
Department of Health,Salisbury NHS Foundation Trust,12-Apr-13,NON DISPOSABLE BED LINEN,Medicine,NHS LOGISTICS,1014002069,2.15,
Department of Health,Salisbury NHS Foundation Trust,12-Apr-13,DRESSINGS - PRE STERILE,Medicine,NHS LOGISTICS,1014002069,1.33,
Department of Health,Salisbury NHS Foundation Trust,12-Apr-13,OTHER MEDICAL SUPPLIES,Medicine,NHS LOGISTICS,1014002069,3.31,
Department of Health,Salisbury NHS Foundation Trust,12-Apr-13,PATIENTS INCONTINENCE,Medicine,NHS LOGISTICS,1014002069,0.67,
Department of Health,Salisbury NHS Foundation Trust,12-Apr-13,PATIENTS INCONTINENCE,Medicine,NHS LOGISTICS,1014002069,3.09,
Department of Health,Salisbury NHS Foundation Trust,12-Apr-13,PATIENTS INCONTINENCE,Medicine,NHS LOGISTICS,1014002069,1.26,
Department of Health,Salisbury NHS Foundation Trust,12-Apr-13,MED SURG EQUIP REP MAINT CLEANING,Medicine,NHS LOGISTICS,1014002069,3.45,
Department of Health,Salisbury NHS Foundation Trust,12-Apr-13,OTHER MEDICAL SUPPLIES,Medicine,NHS LOGISTICS,1014002069,1.14,
Department of Health,Salisbury NHS Foundation Trust,12-Apr-13,PATIENTS INCONTINENCE,Medicine,NHS LOGISTICS,1014002069,0.73,
Department of Health,Salisbury NHS Foundation Trust,12-Apr-13,PATIENTS INCONTINENCE,Medicine,NHS LOGISTICS,1014002069,9.31,
Department of Health,Salisbury NHS Foundation Trust,12-Apr-13,TISSUES HAND TOWELS & TOILET PAPER,Medicine,NHS LOGISTICS,1014002069,0.07,
Department of Health,Salisbury NHS Foundation Trust,12-Apr-13,NON DISPOSABLE BED LINEN,Medicine,NHS LOGISTICS,1014002069,12.52,
Department of Health,Salisbury NHS Foundation Trust,12-Apr-13,PATIENT APPLIANCES,Medicine,NHS LOGISTICS,1014002069,4.75,
Department of Health,Salisbury NHS Foundation Trust,12-Apr-13,PATIENT APPLIANCES,Medicine,NHS LOGISTICS,1014002069,2.13,
Department of Health,Salisbury NHS Foundation Trust,12-Apr-13,PATIENT APPLIANCES,Medicine,NHS LOGISTICS,1014002069,3.83,
Department of Health,Salisbury NHS Foundation Trust,12-Apr-13,OTHER MEDICAL SUPPLIES,Medicine,NHS LOGISTICS,1014002069,3.31,
Department of Health,Salisbury NHS Foundation Trust,12-Apr-13,TISSUES HAND TOWELS & TOILET PAPER,Medicine,NHS LOGISTICS,1014002069,0.36,
Department of Health,Salisbury NHS Foundation Trust,12-Apr-13,PATIENTS INCONTINENCE,Medicine,NHS LOGISTICS,1014002069,1.62,
Department of Health,Salisbury NHS Foundation Trust,12-Apr-13,NON DISPOSABLE BED LINEN,Medicine,NHS LOGISTICS,1014002069,4.17,
Department of Health,Salisbury NHS Foundation Trust,12-Apr-13,BAGS SACKS - OTHER,Critical care,NHS LOGISTICS,1014002069,2.41,
Department of Health,Salisbury NHS Foundation Trust,12-Apr-13,OTHER MEDICAL SUPPLIES,Critical care,NHS LOGISTICS,1014002069,6.61,
Department of Health,Salisbury NHS Foundation Trust,12-Apr-13,TISSUES HAND TOWELS & TOILET PAPER,Critical care,NHS LOGISTICS,1014002069,0.73,
Department of Health,Salisbury NHS Foundation Trust,12-Apr-13,COOKING & KITCHEN UTENSILS,Critical care,NHS LOGISTICS,1014002069,1.47,
Department of Health,Salisbury NHS Foundation Trust,12-Apr-13,PATIENTS INCONTINENCE,Critical care,NHS LOGISTICS,1014002069,0.63,
Department of Health,Salisbury NHS Foundation Trust,12-Apr-13,NON DISPOSABLE BED LINEN,Critical care,NHS LOGISTICS,1014002069,2.51,
Department of Health,Salisbury NHS Foundation Trust,12-Apr-13,OTHER MEDICAL SUPPLIES,Critical care,NHS LOGISTICS,1014002069,0.65,
Department of Health,Salisbury NHS Foundation Trust,12-Apr-13,PATIENTS INCONTINENCE,Critical care,NHS LOGISTICS,1014002069,5.03,
Department of Health,Salisbury NHS Foundation Trust,12-Apr-13,PATIENT APPLIANCES,Critical care,NHS LOGISTICS,1014002069,0.78,
Department of Health,Salisbury NHS Foundation Trust,12-Apr-13,DRUGS,Critical care,NHS LOGISTICS,1014002069,0.77,
Department of Health,Salisbury NHS Foundation Trust,12-Apr-13,MEDSURGCONS - OTHER,Critical care,NHS LOGISTICS,1014002069,3.75,
Department of Health,Salisbury NHS Foundation Trust,12-Apr-13,MEDSURGCONS - OTHER,Critical care,NHS LOGISTICS,1014002069,3.03,
Department of Health,Salisbury NHS Foundation Trust,12-Apr-13,MEDSURGCONS - OTHER,Critical care,NHS LOGISTICS,1014002069,2.08,
Department of Health,Salisbury NHS Foundation Trust,12-Apr-13,TOILETRIES PERSONAL HYGIENE PRODUCTS,Critical care,NHS LOGISTICS,1014002069,0.64,
Department of Health,Salisbury NHS Foundation Trust,12-Apr-13,NON DISPOSABLE BED LINEN,Critical care,NHS LOGISTICS,1014002069,4.17,
Department of Health,Salisbury NHS Foundation Trust,12-Apr-13,PATIENT APPLIANCES,Critical care,NHS LOGISTICS,1014002069,1.58,
Department of Health,Salisbury NHS Foundation Trust,12-Apr-13,PATIENT APPLIANCES,Critical care,NHS LOGISTICS,1014002069,2.13,
Department of Health,Salisbury NHS Foundation Trust,12-Apr-13,DISPOSABLE THEATRE DRAPES WIPES,Medicine,NHS LOGISTICS,1014002069,3.41,
Department of Health,Salisbury NHS Foundation Trust,12-Apr-13,DISPOSABLE THEATRE DRAPES WIPES,Medicine,NHS LOGISTICS,1014002069,2.25,
Department of Health,Salisbury NHS Foundation Trust,12-Apr-13,OTHER MEDICAL SUPPLIES,Surgery,NHS LOGISTICS,1014002069,2.65,
Department of Health,Salisbury NHS Foundation Trust,12-Apr-13,DRESSINGS  -  PROCEDURE PACKS,Surgery,NHS LOGISTICS,1014002069,1.5,
Department of Health,Salisbury NHS Foundation Trust,12-Apr-13,DRESSINGS - PRE STERILE,Surgery,NHS LOGISTICS,1014002069,0.34,
Department of Health,Salisbury NHS Foundation Trust,12-Apr-13,OTHER MEDICAL SUPPLIES,Clinical Support and Family Services,NHS LOGISTICS,1014002069,0.88,
Department of Health,Salisbury NHS Foundation Trust,12-Apr-13,MEDSURGCONS - OTHER,Clinical Support and Family Services,NHS LOGISTICS,1014002069,2.63,
Department of Health,Salisbury NHS Foundation Trust,12-Apr-13,TISSUES HAND TOWELS & TOILET PAPER,Clinical Support and Family Services,NHS LOGISTICS,1014002069,0.36,
Department of Health,Salisbury NHS Foundation Trust,12-Apr-13,COOKING & KITCHEN UTENSILS,Clinical Support and Family Services,NHS LOGISTICS,1014002069,0.25,
Department of Health,Salisbury NHS Foundation Trust,12-Apr-13,M & S EQUIPELECTEQUIPINST - OTHER,Clinical Support and Family Services,NHS LOGISTICS,1014002069,39.38,
Department of Health,Salisbury NHS Foundation Trust,12-Apr-13,M & S EQUIPELECTEQUIPINST - OTHER,Clinical Support and Family Services,NHS LOGISTICS,1014002069,23.97,
Department of Health,Salisbury NHS Foundation Trust,12-Apr-13,M & S EQUIPELECTEQUIPINST - OTHER,Clinical Support and Family Services,NHS LOGISTICS,1014002069,33.47,
Department of Health,Salisbury NHS Foundation Trust,12-Apr-13,M & S EQUIPELECTEQUIPINST - OTHER,Clinical Support and Family Services,NHS LOGISTICS,1014002069,48.2,
Department of Health,Salisbury NHS Foundation Trust,12-Apr-13,M & S EQUIPELECTEQUIPINST - OTHER,Clinical Support and Family Services,NHS LOGISTICS,1014002069,36.83,
Department of Health,Salisbury NHS Foundation Trust,12-Apr-13,OTHER MEDICAL SUPPLIES,Medicine,NHS LOGISTICS,1014002069,4.42,
Department of Health,Salisbury NHS Foundation Trust,12-Apr-13,DRESSINGS - PRE STERILE,Medicine,NHS LOGISTICS,1014002069,0.22,
Department of Health,Salisbury NHS Foundation Trust,12-Apr-13,OTHER MEDICAL SUPPLIES,Medicine,NHS LOGISTICS,1014002069,3.31,
Department of Health,Salisbury NHS Foundation Trust,12-Apr-13,TISSUES HAND TOWELS & TOILET PAPER,Medicine,NHS LOGISTICS,1014002069,0.36,
Department of Health,Salisbury NHS Foundation Trust,12-Apr-13,PATIENTS INCONTINENCE,Medicine,NHS LOGISTICS,1014002069,0.67,
Department of Health,Salisbury NHS Foundation Trust,12-Apr-13,PATIENTS INCONTINENCE,Medicine,NHS LOGISTICS,1014002069,0.81,
Department of Health,Salisbury NHS Foundation Trust,12-Apr-13,MEDSURGCONS - OTHER,Medicine,NHS LOGISTICS,1014002069,3.65,
Department of Health,Salisbury NHS Foundation Trust,12-Apr-13,PATIENTS INCONTINENCE,Medicine,NHS LOGISTICS,1014002069,0.36,
Department of Health,Salisbury NHS Foundation Trust,12-Apr-13,PATIENTS INCONTINENCE,Medicine,NHS LOGISTICS,1014002069,3.69,
Department of Health,Salisbury NHS Foundation Trust,12-Apr-13,DRESSINGS - PRE STERILE,Medicine,NHS LOGISTICS,1014002069,0.12,
Department of Health,Salisbury NHS Foundation Trust,12-Apr-13,NON DISPOSABLE BED LINEN,Medicine,NHS LOGISTICS,1014002069,2.15,
Department of Health,Salisbury NHS Foundation Trust,12-Apr-13,SURGICAL INSTRUMENTS: DISPOSABLE,Clinical Support and Family Services,NHS LOGISTICS,1014002069,2.68,
Department of Health,Salisbury NHS Foundation Trust,12-Apr-13,DRESSINGS - PRE STERILE,Medicine,NHS LOGISTICS,1014002069,5.9,
Department of Health,Salisbury NHS Foundation Trust,12-Apr-13,TISSUES HAND TOWELS & TOILET PAPER,Medicine,NHS LOGISTICS,1014002069,0.18,
Department of Health,Salisbury NHS Foundation Trust,12-Apr-13,MEDSURGCONS-SUTURES,Medicine,NHS LOGISTICS,1014002069,4.51,
Department of Health,Salisbury NHS Foundation Trust,12-Apr-13,OTHER MEDICAL SUPPLIES,Medicine,NHS LOGISTICS,1014002069,4.42,
Department of Health,Salisbury NHS Foundation Trust,12-Apr-13,PATIENTS INCONTINENCE,Medicine,NHS LOGISTICS,1014002069,3.46,
Department of Health,Salisbury NHS Foundation Trust,12-Apr-13,PATIENTS INCONTINENCE,Medicine,NHS LOGISTICS,1014002069,3.35,
Department of Health,Salisbury NHS Foundation Trust,12-Apr-13,OTHER MEDICAL SUPPLIES,Medicine,NHS LOGISTICS,1014002069,3.31,
Department of Health,Salisbury NHS Foundation Trust,12-Apr-13,PATIENTS INCONTINENCE,Medicine,NHS LOGISTICS,1014002069,0.81,
Department of Health,Salisbury NHS Foundation Trust,12-Apr-13,TUBES,Medicine,NHS LOGISTICS,1014002069,1.23,
Department of Health,Salisbury NHS Foundation Trust,12-Apr-13,DISPOSABLE TABLE LINEN,Medicine,NHS LOGISTICS,1014002069,0.65,
Department of Health,Salisbury NHS Foundation Trust,12-Apr-13,PATIENTS INCONTINENCE,Medicine,NHS LOGISTICS,1014002069,1.72,
Department of Health,Salisbury NHS Foundation Trust,12-Apr-13,DRESSINGS - PRE STERILE,Medicine,NHS LOGISTICS,1014002069,0.12,
Department of Health,Salisbury NHS Foundation Trust,12-Apr-13,TISSUES HAND TOWELS & TOILET PAPER,Medicine,NHS LOGISTICS,1014002069,0.14,
Department of Health,Salisbury NHS Foundation Trust,12-Apr-13,NON DISPOSABLE BED LINEN,Medicine,NHS LOGISTICS,1014002069,4.17,
Department of Health,Salisbury NHS Foundation Trust,12-Apr-13,MEDSURGCONS-SUTURES,Surgery,NHS LOGISTICS,1014002069,8.51,
Department of Health,Salisbury NHS Foundation Trust,12-Apr-13,DRUGS,Surgery,NHS LOGISTICS,1014002069,1.63,
Department of Health,Salisbury NHS Foundation Trust,12-Apr-13,MEDSURGCONS-SUTURES,Surgery,NHS LOGISTICS,1014002069,5.29,
Department of Health,Salisbury NHS Foundation Trust,12-Apr-13,DRUGS,Surgery,NHS LOGISTICS,1014002069,5.28,
Department of Health,Salisbury NHS Foundation Trust,12-Apr-13,MEDSURGCONS-SUTURES,Surgery,NHS LOGISTICS,1014002069,4.39,
Department of Health,Salisbury NHS Foundation Trust,12-Apr-13,MEDSURGCONS-SUTURES,Surgery,NHS LOGISTICS,1014002069,4.45,
Department of Health,Salisbury NHS Foundation Trust,12-Apr-13,MEDSURGCONS-SUTURES,Surgery,NHS LOGISTICS,1014002069,7.89,
Department of Health,Salisbury NHS Foundation Trust,12-Apr-13,MEDSURGCONS-SUTURES,Surgery,NHS LOGISTICS,1014002069,5.4,
Department of Health,Salisbury NHS Foundation Trust,12-Apr-13,MEDSURGCONS - OTHER,Surgery,NHS LOGISTICS,1014002069,2.33,
Department of Health,Salisbury NHS Foundation Trust,12-Apr-13,MEDSURGCONS - OTHER,Surgery,NHS LOGISTICS,1014002069,1.17,
Department of Health,Salisbury NHS Foundation Trust,12-Apr-13,MEDSURGCONS - OTHER,Surgery,NHS LOGISTICS,1014002069,2.33,
Department of Health,Salisbury NHS Foundation Trust,12-Apr-13,MEDSURGCONS - OTHER,Surgery,NHS LOGISTICS,1014002069,2.33,
Department of Health,Salisbury NHS Foundation Trust,12-Apr-13,MEDSURGCONS - OTHER,Surgery,NHS LOGISTICS,1014002069,0.74,
Department of Health,Salisbury NHS Foundation Trust,12-Apr-13,PAPER ITEMS GENERAL STATIONERY SUNDRIES,Medicine,NHS LOGISTICS,1014002069,4.11,
Department of Health,Salisbury NHS Foundation Trust,12-Apr-13,OTHER MEDICAL SUPPLIES,Medicine,NHS LOGISTICS,1014002069,0.17,
Department of Health,Salisbury NHS Foundation Trust,12-Apr-13,TISSUES HAND TOWELS & TOILET PAPER,Medicine,NHS LOGISTICS,1014002069,0.09,
Department of Health,Salisbury NHS Foundation Trust,12-Apr-13,TISSUES HAND TOWELS & TOILET PAPER,Medicine,NHS LOGISTICS,1014002069,2.18,
Department of Health,Salisbury NHS Foundation Trust,12-Apr-13,MEDSURGCONS-SUTURES,Medicine,NHS LOGISTICS,1014002069,17.97,
Department of Health,Salisbury NHS Foundation Trust,12-Apr-13,DRUGS,Surgery,NHS LOGISTICS,1014002069,5.28,
Department of Health,Salisbury NHS Foundation Trust,12-Apr-13,PATIENTS BABY WEAR,Medicine,NHS LOGISTICS,1014002069,0.72,
Department of Health,Salisbury NHS Foundation Trust,12-Apr-13,PATIENTS BABY WEAR,Medicine,NHS LOGISTICS,1014002069,0.85,
Department of Health,Salisbury NHS Foundation Trust,12-Apr-13,OTHER MEDICAL SUPPLIES,Surgery,NHS LOGISTICS,1014002069,8.12,
Department of Health,Salisbury NHS Foundation Trust,12-Apr-13,OTHER MEDICAL SUPPLIES,Critical care,NHS LOGISTICS,1014002069,4.42,
Department of Health,Salisbury NHS Foundation Trust,12-Apr-13,MEDSURGCONS - OTHER,Critical care,NHS LOGISTICS,1014002069,3.25,
Department of Health,Salisbury NHS Foundation Trust,12-Apr-13,MEDSURGCONS - OTHER,Critical care,NHS LOGISTICS,1014002069,3.75,
Department of Health,Salisbury NHS Foundation Trust,12-Apr-13,MEDSURGCONS - OTHER,Critical care,NHS LOGISTICS,1014002069,3.25,
Department of Health,Salisbury NHS Foundation Trust,12-Apr-13,TISSUES HAND TOWELS & TOILET PAPER,Clinical Support and Family Services,NHS LOGISTICS,1014002069,0.73,
Department of Health,Salisbury NHS Foundation Trust,12-Apr-13,NON DISPOSABLE BED LINEN,Clinical Support and Family Services,NHS LOGISTICS,1014002069,1.08,
Department of Health,Salisbury NHS Foundation Trust,12-Apr-13,OTHER MEDICAL SUPPLIES,Critical care,NHS LOGISTICS,1014002069,4.42,
Department of Health,Salisbury NHS Foundation Trust,12-Apr-13,HEALTHCARE - WEAR,Critical care,NHS LOGISTICS,1014002069,5.72,
Department of Health,Salisbury NHS Foundation Trust,12-Apr-13,DRESSINGS - PRE STERILE,Critical care,NHS LOGISTICS,1014002069,1.33,
Department of Health,Salisbury NHS Foundation Trust,12-Apr-13,DRESSINGS - PRE STERILE,Critical care,NHS LOGISTICS,1014002069,1.94,
Department of Health,Salisbury NHS Foundation Trust,12-Apr-13,COOKING & KITCHEN UTENSILS,Critical care,NHS LOGISTICS,1014002069,0.49,
Department of Health,Salisbury NHS Foundation Trust,12-Apr-13,CLEANING MATERIALS PRODUCTS SUNDRIES,Critical care,NHS LOGISTICS,1014002069,1.58,
Department of Health,Salisbury NHS Foundation Trust,12-Apr-13,NON DISPOSABLE BED LINEN,Critical care,NHS LOGISTICS,1014002069,2.15,
Department of Health,Salisbury NHS Foundation Trust,12-Apr-13,PATIENT APPLIANCES,Critical care,NHS LOGISTICS,1014002069,1.06,
Department of Health,Salisbury NHS Foundation Trust,12-Apr-13,ANAESTHETIC EQUIPMENT ACCESSORIES,Critical care,NHS LOGISTICS,1014002069,1.68,
Department of Health,Salisbury NHS Foundation Trust,12-Apr-13,DRESSINGS - PRE STERILE,Critical care,NHS LOGISTICS,1014002069,1.81,
Department of Health,Salisbury NHS Foundation Trust,12-Apr-13,NON DISPOSABLE BED LINEN,Critical care,NHS LOGISTICS,1014002069,2.15,
Department of Health,Salisbury NHS Foundation Trust,12-Apr-13,OTHER MEDICAL SUPPLIES,Medicine,NHS LOGISTICS,1014002069,3.53,
Department of Health,Salisbury NHS Foundation Trust,12-Apr-13,PATIENTS INCONTINENCE,Medicine,NHS LOGISTICS,1014002069,1.72,
Department of Health,Salisbury NHS Foundation Trust,12-Apr-13,BAGS SACKS - OTHER,Medicine,NHS LOGISTICS,1014002069,0.8,
Department of Health,Salisbury NHS Foundation Trust,12-Apr-13,OTHER MEDICAL SUPPLIES,Medicine,NHS LOGISTICS,1014002069,3.31,
Department of Health,Salisbury NHS Foundation Trust,12-Apr-13,TISSUES HAND TOWELS & TOILET PAPER,Medicine,NHS LOGISTICS,1014002069,0.36,
Department of Health,Salisbury NHS Foundation Trust,12-Apr-13,COOKING & KITCHEN UTENSILS,Medicine,NHS LOGISTICS,1014002069,1.72,
Department of Health,Salisbury NHS Foundation Trust,12-Apr-13,DRESSINGS  -  PROCEDURE PACKS,Medicine,NHS LOGISTICS,1014002069,0.56,
Department of Health,Salisbury NHS Foundation Trust,12-Apr-13,MEDSURGCONS - OTHER,Medicine,NHS LOGISTICS,1014002069,6.6,
Department of Health,Salisbury NHS Foundation Trust,12-Apr-13,TOILETRIES PERSONAL HYGIENE PRODUCTS,Medicine,NHS LOGISTICS,1014002069,1.91,
Department of Health,Salisbury NHS Foundation Trust,12-Apr-13,MEDSURGCONS - OTHER,Medicine,NHS LOGISTICS,1014002069,1.04,
Department of Health,Salisbury NHS Foundation Trust,12-Apr-13,NON DISPOSABLE BED LINEN,Medicine,NHS LOGISTICS,1014002069,1.08,
Department of Health,Salisbury NHS Foundation Trust,12-Apr-13,PATIENT APPLIANCES,Medicine,NHS LOGISTICS,1014002069,1.06,
Department of Health,Salisbury NHS Foundation Trust,12-Apr-13,TISSUES HAND TOWELS & TOILET PAPER,Clinical Support and Family Services,NHS LOGISTICS,1014002069,10.22,
Department of Health,Salisbury NHS Foundation Trust,12-Apr-13,COOKING & KITCHEN UTENSILS,Clinical Support and Family Services,NHS LOGISTICS,1014002069,0.98,
Department of Health,Salisbury NHS Foundation Trust,12-Apr-13,MEDSURGCONS - OTHER,Clinical Support and Family Services,NHS LOGISTICS,1014002069,1.86,
Department of Health,Salisbury NHS Foundation Trust,12-Apr-13,MEDSURGCONS - OTHER,Clinical Support and Family Services,NHS LOGISTICS,1014002069,1.04,
Department of Health,Salisbury NHS Foundation Trust,12-Apr-13,NON DISPOSABLE BED LINEN,Clinical Support and Family Services,NHS LOGISTICS,1014002069,4.57,
Department of Health,Salisbury NHS Foundation Trust,12-Apr-13,NON DISPOSABLE BED LINEN,Clinical Support and Family Services,NHS LOGISTICS,1014002069,4.17,
Department of Health,Salisbury NHS Foundation Trust,12-Apr-13,OTHER MEDICAL SUPPLIES,Clinical Support and Family Services,NHS LOGISTICS,1014002069,11.55,
Department of Health,Salisbury NHS Foundation Trust,12-Apr-13,COOKING & KITCHEN UTENSILS,Clinical Support and Family Services,NHS LOGISTICS,1014002069,0.49,
Department of Health,Salisbury NHS Foundation Trust,12-Apr-13,TUBES,Clinical Support and Family Services,NHS LOGISTICS,1014002069,1.23,
Department of Health,Salisbury NHS Foundation Trust,12-Apr-13,BABY TEXTURE MODIFIED FOODS,Clinical Support and Family Services,NHS LOGISTICS,1014002069,2.95,
Department of Health,Salisbury NHS Foundation Trust,12-Apr-13,MED SURG EQUIP REP MAINT CLEANING,Clinical Support and Family Services,NHS LOGISTICS,1014002069,13.48,
Department of Health,Salisbury NHS Foundation Trust,12-Apr-13,MED SURG EQUIP REP MAINT CLEANING,Clinical Support and Family Services,NHS LOGISTICS,1014002069,21.74,
Department of Health,Salisbury NHS Foundation Trust,12-Apr-13,MED SURG EQUIP REP MAINT CLEANING,Clinical Support and Family Services,NHS LOGISTICS,1014002069,2.34,
Department of Health,Salisbury NHS Foundation Trust,12-Apr-13,MED SURG EQUIP REP MAINT CLEANING,Clinical Support and Family Services,NHS LOGISTICS,1014002069,2.34,
Department of Health,Salisbury NHS Foundation Trust,12-Apr-13,OTHER MEDICAL SUPPLIES,Medicine,NHS LOGISTICS,1014002069,0.88,
Department of Health,Salisbury NHS Foundation Trust,12-Apr-13,DRESSINGS - PRE STERILE,Clinical Support and Family Services,NHS LOGISTICS,1014002069,1.33,
Department of Health,Salisbury NHS Foundation Trust,12-Apr-13,DRESSINGS - PRE STERILE,Clinical Support and Family Services,NHS LOGISTICS,1014002069,0.55,
Department of Health,Salisbury NHS Foundation Trust,12-Apr-13,OTHER MEDICAL SUPPLIES,Clinical Support and Family Services,NHS LOGISTICS,1014002069,3.87,
Department of Health,Salisbury NHS Foundation Trust,12-Apr-13,TUBES,Clinical Support and Family Services,NHS LOGISTICS,1014002069,1.38,
Department of Health,Salisbury NHS Foundation Trust,12-Apr-13,TUBES,Clinical Support and Family Services,NHS LOGISTICS,1014002069,1.45,
Department of Health,Salisbury NHS Foundation Trust,12-Apr-13,TISSUES HAND TOWELS & TOILET PAPER,Clinical Support and Family Services,NHS LOGISTICS,1014002069,1.45,
Department of Health,Salisbury NHS Foundation Trust,12-Apr-13,MEDSURGCONS - OTHER,Clinical Support and Family Services,NHS LOGISTICS,1014002069,0.68,
Department of Health,Salisbury NHS Foundation Trust,12-Apr-13,MEDSURGCONS - OTHER,Clinical Support and Family Services,NHS LOGISTICS,1014002069,0.44,
Department of Health,Salisbury NHS Foundation Trust,12-Apr-13,TOILETRIES PERSONAL HYGIENE PRODUCTS,Clinical Support and Family Services,NHS LOGISTICS,1014002069,0.77,
Department of Health,Salisbury NHS Foundation Trust,12-Apr-13,DRESSINGS - PRE STERILE,Clinical Support and Family Services,NHS LOGISTICS,1014002069,2.02,
Department of Health,Salisbury NHS Foundation Trust,12-Apr-13,OTHER MEDICAL SUPPLIES,Surgery,NHS LOGISTICS,1014002069,7.83,
Department of Health,Salisbury NHS Foundation Trust,12-Apr-13,ANAESTHETIC EQUIPMENT ACCESSORIES,Surgery,NHS LOGISTICS,1014002069,0.41,
Department of Health,Salisbury NHS Foundation Trust,12-Apr-13,PATIENTS INCONTINENCE,Surgery,NHS LOGISTICS,1014002069,1.62,
Department of Health,Salisbury NHS Foundation Trust,12-Apr-13,OTHER MEDICAL SUPPLIES,Surgery,NHS LOGISTICS,1014002069,1.14,
Department of Health,Salisbury NHS Foundation Trust,12-Apr-13,PATIENT APPLIANCES,Surgery,NHS LOGISTICS,1014002069,1.58,
Department of Health,Salisbury NHS Foundation Trust,12-Apr-13,OTHER MEDICAL SUPPLIES,Surgery,NHS LOGISTICS,1014002069,3.53,
Department of Health,Salisbury NHS Foundation Trust,12-Apr-13,OTHER MEDICAL SUPPLIES,Surgery,NHS LOGISTICS,1014002069,9.17,
Department of Health,Salisbury NHS Foundation Trust,12-Apr-13,MEDSURGCONS - OTHER,Surgery,NHS LOGISTICS,1014002069,2.16,
Department of Health,Salisbury NHS Foundation Trust,12-Apr-13,MEDSURGCONS - OTHER,Surgery,NHS LOGISTICS,1014002069,2.16,
Department of Health,Salisbury NHS Foundation Trust,12-Apr-13,DRESSINGS  -  PROCEDURE PACKS,Surgery,NHS LOGISTICS,1014002069,3.17,
Department of Health,Salisbury NHS Foundation Trust,12-Apr-13,DRESSINGS - PRE STERILE,Surgery,NHS LOGISTICS,1014002069,1.03,
Department of Health,Salisbury NHS Foundation Trust,12-Apr-13,COOKING & KITCHEN UTENSILS,Surgery,NHS LOGISTICS,1014002069,3.51,
Department of Health,Salisbury NHS Foundation Trust,12-Apr-13,OTHER MEDICAL SUPPLIES,Medicine,NHS LOGISTICS,1014002069,4.42,
Department of Health,Salisbury NHS Foundation Trust,12-Apr-13,DRESSINGS - PRE STERILE,Medicine,NHS LOGISTICS,1014002069,0.22,
Department of Health,Salisbury NHS Foundation Trust,12-Apr-13,DRESSINGS - PRE STERILE,Medicine,NHS LOGISTICS,1014002069,1.15,
Department of Health,Salisbury NHS Foundation Trust,12-Apr-13,MEDSURGCONS - OTHER,Medicine,NHS LOGISTICS,1014002069,1.82,
Department of Health,Salisbury NHS Foundation Trust,12-Apr-13,PATIENT APPLIANCES,Medicine,NHS LOGISTICS,1014002069,1.65,
Department of Health,Salisbury NHS Foundation Trust,12-Apr-13,PATIENT APPLIANCES,Medicine,NHS LOGISTICS,1014002069,1.65,
Department of Health,Salisbury NHS Foundation Trust,12-Apr-13,PATIENT APPLIANCES,Medicine,NHS LOGISTICS,1014002069,1.65,
Department of Health,Salisbury NHS Foundation Trust,12-Apr-13,TUBES,Medicine,NHS LOGISTICS,1014002069,1.23,
Department of Health,Salisbury NHS Foundation Trust,12-Apr-13,MEDSURGCONS-SUTURES,Medicine,NHS LOGISTICS,1014002069,12.53,
Department of Health,Salisbury NHS Foundation Trust,12-Apr-13,MEDSURGCONS - OTHER,Medicine,NHS LOGISTICS,1014002069,2.08,
Department of Health,Salisbury NHS Foundation Trust,12-Apr-13,NON DISPOSABLE BED LINEN,Medicine,NHS LOGISTICS,1014002069,2.15,
Department of Health,Salisbury NHS Foundation Trust,12-Apr-13,DRESSINGS - PRE STERILE,Critical care,NHS LOGISTICS,1014002069,1.33,
Department of Health,Salisbury NHS Foundation Trust,12-Apr-13,TISSUES HAND TOWELS & TOILET PAPER,Critical care,NHS LOGISTICS,1014002069,2.18,
Department of Health,Salisbury NHS Foundation Trust,12-Apr-13,DRESSINGS - PRE STERILE,Critical care,NHS LOGISTICS,1014002069,8.29,
Department of Health,Salisbury NHS Foundation Trust,12-Apr-13,DRESSINGS - PRE STERILE,Critical care,NHS LOGISTICS,1014002069,6,
Department of Health,Salisbury NHS Foundation Trust,12-Apr-13,MEDSURGCONS-SUTURES,Critical care,NHS LOGISTICS,1014002069,8.66,
Department of Health,Salisbury NHS Foundation Trust,12-Apr-13,MED SURG EQUIP REP MAINT CLEANING,Clinical Support and Family Services,NHS LOGISTICS,1014002069,18.37,
Department of Health,Salisbury NHS Foundation Trust,12-Apr-13,TISSUES HAND TOWELS & TOILET PAPER,Clinical Support and Family Services,NHS LOGISTICS,1014002069,0.36,
Department of Health,Salisbury NHS Foundation Trust,12-Apr-13,TOILETRIES PERSONAL HYGIENE PRODUCTS,Clinical Support and Family Services,NHS LOGISTICS,1014002069,1.2,
Department of Health,Salisbury NHS Foundation Trust,12-Apr-13,M & S EQUIPELECTEQUIPINST - OTHER,Clinical Support and Family Services,NHS LOGISTICS,1014002069,36.06,
Department of Health,Salisbury NHS Foundation Trust,12-Apr-13,TISSUES HAND TOWELS & TOILET PAPER,Clinical Support and Family Services,NHS LOGISTICS,1014002069,0.27,
Department of Health,Salisbury NHS Foundation Trust,12-Apr-13,DRESSINGS - PRE STERILE,Clinical Support and Family Services,NHS LOGISTICS,1014002069,0.08,
Department of Health,Salisbury NHS Foundation Trust,12-Apr-13,OTHER MEDICAL SUPPLIES,Clinical Support and Family Services,NHS LOGISTICS,1014002069,1.3,
Department of Health,Salisbury NHS Foundation Trust,12-Apr-13,MEDSURGCONS - OTHER,Clinical Support and Family Services,NHS LOGISTICS,1014002069,1.04,
Department of Health,Salisbury NHS Foundation Trust,12-Apr-13,NON DISPOSABLE BED LINEN,Clinical Support and Family Services,NHS LOGISTICS,1014002069,3.23,
Department of Health,Salisbury NHS Foundation Trust,12-Apr-13,MEDSURGCONS - OTHER,Surgery,NHS LOGISTICS,1014002069,0.93,
Department of Health,Salisbury NHS Foundation Trust,12-Apr-13,MEDSURGCONS - OTHER,Surgery,NHS LOGISTICS,1014002069,0.93,
Department of Health,Salisbury NHS Foundation Trust,12-Apr-13,MEDSURGCONS - OTHER,Surgery,NHS LOGISTICS,1014002069,0.93,
Department of Health,Salisbury NHS Foundation Trust,12-Apr-13,DISPOSABLE THEATRE DRAPES WIPES,Surgery,NHS LOGISTICS,1014002069,2.37,
Department of Health,Salisbury NHS Foundation Trust,12-Apr-13,TISSUES HAND TOWELS & TOILET PAPER,Surgery,NHS LOGISTICS,1014002069,6.2,
Department of Health,Salisbury NHS Foundation Trust,12-Apr-13,BAGS SACKS - OTHER,Surgery,NHS LOGISTICS,1014002069,1.38,
Department of Health,Salisbury NHS Foundation Trust,12-Apr-13,OTHER MEDICAL SUPPLIES,Surgery,NHS LOGISTICS,1014002069,8.12,
Department of Health,Salisbury NHS Foundation Trust,12-Apr-13,TUBES,Surgery,NHS LOGISTICS,1014002069,7.78,
Department of Health,Salisbury NHS Foundation Trust,12-Apr-13,BAGS SACKS - OTHER,Surgery,NHS LOGISTICS,1014002069,8.22,
Department of Health,Salisbury NHS Foundation Trust,12-Apr-13,BAGS SACKS - OTHER,Surgery,NHS LOGISTICS,1014002069,9.24,
Department of Health,Salisbury NHS Foundation Trust,12-Apr-13,MEDSURGCONS-SUTURES,Surgery,NHS LOGISTICS,1014002069,14.58,
Department of Health,Salisbury NHS Foundation Trust,12-Apr-13,MEDSURGCONS-SUTURES,Surgery,NHS LOGISTICS,1014002069,9.02,
Department of Health,Salisbury NHS Foundation Trust,12-Apr-13,MEDSURGCONS-SUTURES,Surgery,NHS LOGISTICS,1014002069,12.15,
Department of Health,Salisbury NHS Foundation Trust,12-Apr-13,MEDSURGCONS-SUTURES,Surgery,NHS LOGISTICS,1014002069,26.93,
Department of Health,Salisbury NHS Foundation Trust,12-Apr-13,MEDSURGCONS-SUTURES,Surgery,NHS LOGISTICS,1014002069,21.31,
Department of Health,Salisbury NHS Foundation Trust,12-Apr-13,MEDSURGCONS-SUTURES,Surgery,NHS LOGISTICS,1014002069,5.87,
Department of Health,Salisbury NHS Foundation Trust,12-Apr-13,MEDSURGCONS-SUTURES,Surgery,NHS LOGISTICS,1014002069,6.72,
Department of Health,Salisbury NHS Foundation Trust,12-Apr-13,MEDSURGCONS-SUTURES,Surgery,NHS LOGISTICS,1014002069,4.61,
Department of Health,Salisbury NHS Foundation Trust,12-Apr-13,MEDSURGCONS-SUTURES,Surgery,NHS LOGISTICS,1014002069,5.88,
Department of Health,Salisbury NHS Foundation Trust,12-Apr-13,MEDSURGCONS-SUTURES,Surgery,NHS LOGISTICS,1014002069,3.64,
Department of Health,Salisbury NHS Foundation Trust,12-Apr-13,MEDSURGCONS-SUTURES,Surgery,NHS LOGISTICS,1014002069,11.22,
Department of Health,Salisbury NHS Foundation Trust,12-Apr-13,MEDSURGCONS-SUTURES,Surgery,NHS LOGISTICS,1014002069,6.07,
Department of Health,Salisbury NHS Foundation Trust,12-Apr-13,MEDSURGCONS-SUTURES,Surgery,NHS LOGISTICS,1014002069,9,
Department of Health,Salisbury NHS Foundation Trust,12-Apr-13,MEDSURGCONS-SUTURES,Surgery,NHS LOGISTICS,1014002069,5.26,
Department of Health,Salisbury NHS Foundation Trust,12-Apr-13,MEDSURGCONS-SUTURES,Surgery,NHS LOGISTICS,1014002069,4.39,
Department of Health,Salisbury NHS Foundation Trust,12-Apr-13,MEDSURGCONS-SUTURES,Surgery,NHS LOGISTICS,1014002069,21.19,
Department of Health,Salisbury NHS Foundation Trust,12-Apr-13,MEDSURGCONS-SUTURES,Surgery,NHS LOGISTICS,1014002069,5.61,
Department of Health,Salisbury NHS Foundation Trust,12-Apr-13,MEDSURGCONS - OTHER,Medicine,NHS LOGISTICS,1014002069,6.37,
Department of Health,Salisbury NHS Foundation Trust,12-Apr-13,LAB EQUIP-LABORATORY APPARATUS,Clinical Support and Family Services,NHS LOGISTICS,1014002069,12.17,
Department of Health,Salisbury NHS Foundation Trust,12-Apr-13,OTHER MEDICAL SUPPLIES,Medicine,NHS LOGISTICS,1014002069,5.62,
Department of Health,Salisbury NHS Foundation Trust,12-Apr-13,STATIONERY SUNDRIES,Medicine,NHS LOGISTICS,1014002069,10.91,
Department of Health,Salisbury NHS Foundation Trust,12-Apr-13,ANAESTHETIC EQUIPMENT ACCESSORIES,Clinical Support and Family Services,NHS LOGISTICS,1014002069,12.33,
Department of Health,Salisbury NHS Foundation Trust,12-Apr-13,ANAESTHETIC EQUIPMENT ACCESSORIES,Clinical Support and Family Services,NHS LOGISTICS,1014002069,8.8,
Department of Health,Salisbury NHS Foundation Trust,12-Apr-13,MEDSURGCONS-SUTURES,Surgery,NHS LOGISTICS,1014002069,18.09,
Department of Health,Salisbury NHS Foundation Trust,12-Apr-13,OTHER MEDICAL SUPPLIES,Surgery,NHS LOGISTICS,1014002069,9.6,
Department of Health,Salisbury NHS Foundation Trust,12-Apr-13,DRESSINGS - PRE STERILE,Facilities Directorate,NHS LOGISTICS,1014002069,4.58,
Department of Health,Salisbury NHS Foundation Trust,12-Apr-13,TOILETRIES PERSONAL HYGIENE PRODUCTS,Facilities Directorate,NHS LOGISTICS,1014002069,3.17,
Department of Health,Salisbury NHS Foundation Trust,12-Apr-13,MEDSURGCONS - OTHER,Facilities Directorate,NHS LOGISTICS,1014002069,120,
Department of Health,Salisbury NHS Foundation Trust,12-Apr-13,TISSUES HAND TOWELS & TOILET PAPER,Facilities Directorate,NHS LOGISTICS,1014002069,5.4,
Department of Health,Salisbury NHS Foundation Trust,12-Apr-13,DRESSINGS  -  PROCEDURE PACKS,Facilities Directorate,NHS LOGISTICS,1014002069,2.28,
Department of Health,Salisbury NHS Foundation Trust,12-Apr-13,HEALTHCARE - WEAR,Facilities Directorate,NHS LOGISTICS,1014002069,38.51,
Department of Health,Salisbury NHS Foundation Trust,12-Apr-13,PAPER ITEMS GENERAL STATIONERY SUNDRIES,Facilities Directorate,NHS LOGISTICS,1014002069,3.13,
Department of Health,Salisbury NHS Foundation Trust,12-Apr-13,PAPER ITEMS GENERAL STATIONERY SUNDRIES,Facilities Directorate,NHS LOGISTICS,1014002069,2.01,
Department of Health,Salisbury NHS Foundation Trust,12-Apr-13,PAPER ITEMS GENERAL STATIONERY SUNDRIES,Facilities Directorate,NHS LOGISTICS,1014002069,3.13,
Department of Health,Salisbury NHS Foundation Trust,12-Apr-13,STATIONERY SUNDRIES,Facilities Directorate,NHS LOGISTICS,1014002069,7.75,
Department of Health,Salisbury NHS Foundation Trust,12-Apr-13,DRESSINGS - PRE STERILE,Facilities Directorate,NHS LOGISTICS,1014002069,0.38,
Department of Health,Salisbury NHS Foundation Trust,12-Apr-13,DRESSINGS  -  PROCEDURE PACKS,Facilities Directorate,NHS LOGISTICS,1014002069,10.8,
Department of Health,Salisbury NHS Foundation Trust,12-Apr-13,MEDSURGCONS - OTHER,Facilities Directorate,NHS LOGISTICS,1014002069,2.08,
Department of Health,Salisbury NHS Foundation Trust,12-Apr-13,HEALTHCARE - WEAR,Facilities Directorate,NHS LOGISTICS,1014002069,8.42,
Department of Health,Salisbury NHS Foundation Trust,12-Apr-13,STATIONERY SUNDRIES,Facilities Directorate,NHS LOGISTICS,1014002069,0.69,
Department of Health,Salisbury NHS Foundation Trust,12-Apr-13,DRESSINGS - PRE STERILE,Facilities Directorate,NHS LOGISTICS,1014002069,10.74,
Department of Health,Salisbury NHS Foundation Trust,12-Apr-13,DRESSINGS - PRE STERILE,Facilities Directorate,NHS LOGISTICS,1014002069,1.45,
Department of Health,Salisbury NHS Foundation Trust,12-Apr-13,MED SURG EQUIP REP MAINT CLEANING,Surgery,NHS LOGISTICS,1014002069,1.39,
Department of Health,Salisbury NHS Foundation Trust,12-Apr-13,MED SURG EQUIP REP MAINT CLEANING,Surgery,NHS LOGISTICS,1014002069,1.39,
Department of Health,Salisbury NHS Foundation Trust,12-Apr-13,MED SURG EQUIP REP MAINT CLEANING,Surgery,NHS LOGISTICS,1014002069,1.39,
Department of Health,Salisbury NHS Foundation Trust,12-Apr-13,MEDSURGCONS-SUTURES,Surgery,NHS LOGISTICS,1014002069,13.52,
Department of Health,Salisbury NHS Foundation Trust,12-Apr-13,TUBES,Surgery,NHS LOGISTICS,1014002069,2.56,
Department of Health,Salisbury NHS Foundation Trust,12-Apr-13,MEDSURGCONS - OTHER,Surgery,NHS LOGISTICS,1014002069,1.4,
Department of Health,Salisbury NHS Foundation Trust,12-Apr-13,COOKING & KITCHEN UTENSILS,Facilities Directorate,NHS LOGISTICS,1014002069,5.63,
Department of Health,Salisbury NHS Foundation Trust,12-Apr-13,HEALTHCARE - WEAR,Facilities Directorate,NHS LOGISTICS,1014002069,20.72,
Department of Health,Salisbury NHS Foundation Trust,12-Apr-13,COOKING & KITCHEN UTENSILS,Facilities Directorate,NHS LOGISTICS,1014002069,3.56,
Department of Health,Salisbury NHS Foundation Trust,12-Apr-13,LIQUID REFRESHMENTS,Facilities Directorate,NHS LOGISTICS,1014002069,3.22,
Department of Health,Salisbury NHS Foundation Trust,12-Apr-13,TISSUES HAND TOWELS & TOILET PAPER,Facilities Directorate,NHS LOGISTICS,1014002069,2.18,
Department of Health,Salisbury NHS Foundation Trust,12-Apr-13,LIQUID REFRESHMENTS,Facilities Directorate,NHS LOGISTICS,1014002069,0.59,
Department of Health,Salisbury NHS Foundation Trust,12-Apr-13,COOKING & KITCHEN UTENSILS,Facilities Directorate,NHS LOGISTICS,1014002069,19.3,
Department of Health,Salisbury NHS Foundation Trust,12-Apr-13,LIQUID REFRESHMENTS,Facilities Directorate,NHS LOGISTICS,1014002069,4.6,
Department of Health,Salisbury NHS Foundation Trust,12-Apr-13,LIQUID REFRESHMENTS,Facilities Directorate,NHS LOGISTICS,1014002069,2.66,
Department of Health,Salisbury NHS Foundation Trust,12-Apr-13,LIQUID REFRESHMENTS,Facilities Directorate,NHS LOGISTICS,1014002069,3.07,
Department of Health,Salisbury NHS Foundation Trust,12-Apr-13,LIQUID REFRESHMENTS,Facilities Directorate,NHS LOGISTICS,1014002069,6.98,
Department of Health,Salisbury NHS Foundation Trust,12-Apr-13,LIQUID REFRESHMENTS,Facilities Directorate,NHS LOGISTICS,1014002069,3.68,
Department of Health,Salisbury NHS Foundation Trust,12-Apr-13,LIQUID REFRESHMENTS,Facilities Directorate,NHS LOGISTICS,1014002069,2.14,
Department of Health,Salisbury NHS Foundation Trust,12-Apr-13,LIQUID REFRESHMENTS,Facilities Directorate,NHS LOGISTICS,1014002069,29.52,
Department of Health,Salisbury NHS Foundation Trust,12-Apr-13,COOKING & KITCHEN UTENSILS,Facilities Directorate,NHS LOGISTICS,1014002069,5.7,
Department of Health,Salisbury NHS Foundation Trust,12-Apr-13,BAGS SACKS - OTHER,Facilities Directorate,NHS LOGISTICS,1014002069,7.53,
Department of Health,Salisbury NHS Foundation Trust,12-Apr-13,LIQUID REFRESHMENTS,Facilities Directorate,NHS LOGISTICS,1014002069,3.4,
Department of Health,Salisbury NHS Foundation Trust,12-Apr-13,LIQUID REFRESHMENTS,Facilities Directorate,NHS LOGISTICS,1014002069,2.14,
Department of Health,Salisbury NHS Foundation Trust,12-Apr-13,LIQUID REFRESHMENTS,Facilities Directorate,NHS LOGISTICS,1014002069,0.77,
Department of Health,Salisbury NHS Foundation Trust,12-Apr-13,BAGS SACKS - OTHER,Facilities Directorate,NHS LOGISTICS,1014002069,1.18,
Department of Health,Salisbury NHS Foundation Trust,12-Apr-13,BAGS SACKS - OTHER,Facilities Directorate,NHS LOGISTICS,1014002069,1.65,
Department of Health,Salisbury NHS Foundation Trust,12-Apr-13,LIQUID REFRESHMENTS,Facilities Directorate,NHS LOGISTICS,1014002069,0.64,
Department of Health,Salisbury NHS Foundation Trust,12-Apr-13,COOKING & KITCHEN UTENSILS,Facilities Directorate,NHS LOGISTICS,1014002069,5.5,
Department of Health,Salisbury NHS Foundation Trust,12-Apr-13,M & S EQUIPELECTEQUIPINST - OTHER,Clinical Support and Family Services,NHS LOGISTICS,1014002069,187.17,
Department of Health,Salisbury NHS Foundation Trust,12-Apr-13,OTHER MEDICAL SUPPLIES,Surgery,NHS LOGISTICS,1014002069,1.54,
Department of Health,Salisbury NHS Foundation Trust,12-Apr-13,DRESSINGS - PRE STERILE,Critical care,NHS LOGISTICS,1014002069,4,
Department of Health,Salisbury NHS Foundation Trust,12-Apr-13,DRESSINGS - PRE STERILE,Critical care,NHS LOGISTICS,1014002069,8.29,
Department of Health,Salisbury NHS Foundation Trust,12-Apr-13,MEDSURGCONS - OTHER,Critical care,NHS LOGISTICS,1014002069,3.51,
Department of Health,Salisbury NHS Foundation Trust,12-Apr-13,MOBILE ITEMS,Clinical Support and Family Services,NHS LOGISTICS,1014002069,3.75,
Department of Health,Salisbury NHS Foundation Trust,12-Apr-13,STATIONERY SUNDRIES,Surgery,NHS LOGISTICS,1014002069,2.33,
Department of Health,Salisbury NHS Foundation Trust,12-Apr-13,STATIONERY SUNDRIES,Surgery,NHS LOGISTICS,1014002069,3.01,
Department of Health,Salisbury NHS Foundation Trust,12-Apr-13,MEDSURGCONS-SUTURES,Surgery,NHS LOGISTICS,1014002069,12.15,
Department of Health,Salisbury NHS Foundation Trust,12-Apr-13,MEDSURGCONS-SUTURES,Surgery,NHS LOGISTICS,1014002069,14.32,
Department of Health,Salisbury NHS Foundation Trust,12-Apr-13,MEDSURGCONS-SUTURES,Surgery,NHS LOGISTICS,1014002069,7.07,
Department of Health,Salisbury NHS Foundation Trust,12-Apr-13,MEDSURGCONS-SUTURES,Surgery,NHS LOGISTICS,1014002069,13.28,
Department of Health,Salisbury NHS Foundation Trust,12-Apr-13,MEDSURGCONS-SUTURES,Surgery,NHS LOGISTICS,1014002069,9.72,
Department of Health,Salisbury NHS Foundation Trust,12-Apr-13,MEDSURGCONS-SUTURES,Surgery,NHS LOGISTICS,1014002069,4.5,
Department of Health,Salisbury NHS Foundation Trust,12-Apr-13,MEDSURGCONS-SUTURES,Surgery,NHS LOGISTICS,1014002069,8.3,
Department of Health,Salisbury NHS Foundation Trust,12-Apr-13,MEDSURGCONS-SUTURES,Surgery,NHS LOGISTICS,1014002069,8.53,
Department of Health,Salisbury NHS Foundation Trust,12-Apr-13,OTHER MEDICAL SUPPLIES,Surgery,NHS LOGISTICS,1014002069,7.36,
Department of Health,Salisbury NHS Foundation Trust,12-Apr-13,MEDSURGCONS-SUTURES,Surgery,NHS LOGISTICS,1014002069,18.09,
Department of Health,Salisbury NHS Foundation Trust,12-Apr-13,HARD/SOFTWARE-OFF THE SHELF APPLICATIONS,Medicine,NHS LOGISTICS,1014002069,7.85,
Department of Health,Salisbury NHS Foundation Trust,12-Apr-13,SURGICAL INSTRUMENTS: GENERAL,Clinical Support and Family Services,NHS LOGISTICS,1013202228,87.5,
Department of Health,Salisbury NHS Foundation Trust,12-Apr-13,MEDSURGCONS - OTHER,Clinical Support and Family Services,NHS LOGISTICS,1013202228,37.83,
Department of Health,Salisbury NHS Foundation Trust,12-Apr-13,MEDSURGCONS - OTHER,Clinical Support and Family Services,NHS LOGISTICS,1013202228,31.67,
Department of Health,Salisbury NHS Foundation Trust,12-Apr-13,MEDSURGCONS - OTHER,Clinical Support and Family Services,NHS LOGISTICS,1013202228,17.22,
